Workbook

Sheet Vejledning
B2: Indtjeningssimulering på plantebrug
B4: Med dette regneark kan man beregne økonomien ved tilførelse eller afgivelse af arealer, afhængig af forventet afgrødesammensætning, priser og omkostningsniveauer mv. Værdier fra gældende afgrædekalkuler foreslås som standard i beregningen. | I4: Udgiver: | J4: SEGES
J5: Erhvervsøkonomi
I6: Udgivelsesdato: | J6: 2020-12-01
I7: Forfatter: | J7: Morten Nyland Christensen og Ove Lund
I8: Version: | J8: 4.0
I10: Datagrundlag: | J10: Afgrødekalkuler fra FarmtalOnline, og oplsyninger fra RegnskabsDataBank
B11: Gå til Oplysninger
B14: Gå til Beregning | J14: Afgrødekalkuler opdateres en gang årligt.
I15: Excel version: | J15: Excel 2010
I16: Dokument: | J16: Se vejledning
B17: Indsæt regnskab til beregning | I17: Ansvar: | J17: Se vilkår
B20: Brugervejledning:
B22: Modellen beregner et realistisk resultat ved ddriften af et givende areal. Beregningerne er delvis automatiske, når de lyseblå felter er udfyldt.
B23: De beregnede resultater kan altid ændres via egne værdier
B25: I modellen er der mulighed for at indsætte det seneste nye regnskab for bedriften. Resultaterne herfa bruges til diverse produktionsoplysninger og inspiration til egne værdier
B26: Data hentes i RegnskabsDataBanken og indsættes i celle A1 i fanen Input regnskab
B28: Grundoplysninger om bedriften indtastes i fanen "Oplysninger". De mørkeblå felter er information hentet fra regnskabet, de lyseblå er informationer der enten skal indtastes eller celler til at overskrive resultaterne fra regnskabet. Der vil være et "rullegardin" hvor der kan vælges mellem bestemte variable der er markeret med grønt.
B29: I afgrødevalg vælges de relevante afgrøder. Overskydende celler efterlades bare tomme. Afgrødeforelingen i de lyseblå celler er lavet ud fra afgrødefordelingen i regnskabet (total, ikke kun på forpagtet jord). Hvis Ingen eller andet vælges så skal der indtastes en procentsats i de lyseblå celler hvis den skal tælle med. Fordelingerne fra regnskabet kan overskrives via de lyseblå celler.
B33: I fanen Beregninger sker selve beregningerne ud fra enten kalkulerne eller fra egne indtastede værdier. I fanen Regnskab står de informationer der findes fra regnskabet. Disse bruges ikke i beregningerne, men kan være inspiration til egne værdier som indtastes i de lyseblå celler, hvis kalkuleberegningen ikke er tilstrækkelig.
B36: Transportomkostninger kan beregnes mere specifik ved at trykke på "Gå til transportomkostninger"
B38: Fanen Udskrift samler de overordnede resultater fra beregningerne.
B39: Sidst på siden vises en beregnet fremstillngspris pr. afgrødeenhed med og uden korrektion for arbejdstid og fri kapacitet.

Sheet Oplysninger
D3: Oplysninger i mørkeblå felter stammer fra regnskabet. Kan overskrives via de lyseblå felter til højre for. De grønne celler er der en drop down boks der kan vælges oplysninger til. | J3: Celler som skal skjules
B5: Oplysninger om bedrift
B7: Basisoplysninger
B8: CVR.nr. | D8: =IF(F8<>"",F8,J8) -> 38264125 | F8: 38264125 | J8: =IFERROR(VLOOKUP(L8,'Input regnskab'!$A$1:$G$10000,7,FALSE),"") -> 27025676 | L8: 6425
B9: Areal der skal beregnes på (ha)? | D9: =IF(F9<>"",F9,J9) -> 97 | F9: 97 | J9: =IFERROR(VLOOKUP(L9,'Input regnskab'!$A$1:$G$10000,7,FALSE),"") -> 545 | L9: 3911
B10: Jordbonitet? | D10: =IF(F10<>"",F10,IF(J10=1,Datagrundlag!M8,IF(J10=2,Datagrundlag!M7,IF(J10=5,Datagrundlag!M6,"")))) -> sandjord med vanding | F10: sandjord med vanding | J10: =IFERROR(VLOOKUP(L10,'Input regnskab'!$A$1:$G$10000,7,FALSE),"") -> 1 | L10: JB_type | M10: sandjord m vand = 1 sandjord u vand = 2 lerjord = 5
B11: Gødskning med husdyrgødning? | D11: Ja | J11: =IF(D11="Ja"," med gylle"," uden gylle") -> med gylle
B12: Anvendes der udelukkende maskinstation? | D12: Nej
B13: Har du ledig arbejdstid? | D13: Ja | E13: *
B14: =IF(D13="Nej"," ","Hvis ja, hvad vil du sælge den til (kr/t)?") -> Hvis ja, hvad vil du sælge den til (kr/t)? | D14: 100
B15: Har du ledig maskinkapacitet? | D15: Nej | E15: *
B16: Er du kornsælger? | D16: =IF(F16="",IF(OR(J16<>0,K16<>0),IF(J16>K16*(-1),"Ja","Nej"),""),F16) -> Ja | F16: Ja | J16: =IFERROR(VLOOKUP(L16,'Input regnskab'!$A$1:$G$10000,7,FALSE),0) -> 2666570 | K16: =IFERROR(VLOOKUP(M16,'Input regnskab'!$A$1:$G$10000,7,FALSE),0) -> 0 | L16: 6905 | M16: 8201 | N16: 6905 salg kv og 8201 køb kv | O16: hvis salg > køb ?
B18: Afgrødevalg - hovedafgrøde# | J18: ha | K18: procent tilbage til afgrøder:
B19: Afgrøde 1 | C19: Vårbyg | D19: =IFERROR(IF(AND(C19=Datagrundlag!$M$40,Oplysninger!F19=""),0,IF(Oplysninger!F19<>"",F19,L19)),0) -> 0.25 | F19: 0.25 | H19: Hvis der ændres på afgrødefordelingen udover for "ingen eller andet" så HUSK at summen skal være lig 100% | J19: =IFERROR(VLOOKUP(C19,Datagrundlag!$A$23:$F$37,Datagrundlag!$F$21,FALSE),0) -> 424 | K19: =100%-SUMIFS(Oplysninger!$D$19:$D$24,Oplysninger!$C$19:$C$24,Datagrundlag!M40) -> 1 | L19: =J19/SUM($J$19:$J$24)*$K$19 -> 1 | Q19: 0.2
B20: Afgrøde 2 | C20: Vinterhvede | D20: =IFERROR(IF(AND(C20=Datagrundlag!$M$40,Oplysninger!F20=""),0,IF(Oplysninger!F20<>"",F20,L20)),0) -> 0.5 | F20: 0.5 | J20: =IFERROR(VLOOKUP(C20,Datagrundlag!$A$23:$F$37,Datagrundlag!$F$21,FALSE),0) -> 0 | L20: =J20/SUM($J$19:$J$24)*$K$19 -> 0 | Q20: 0.2
B21: Afgrøde 3 | C21: Vinterraps | D21: =IFERROR(IF(AND(C21=Datagrundlag!$M$40,Oplysninger!F21=""),0,IF(Oplysninger!F21<>"",F21,L21)),0) -> 0.1 | F21: 0.1 | J21: =IFERROR(VLOOKUP(C21,Datagrundlag!$A$23:$F$37,Datagrundlag!$F$21,FALSE),0) -> 0 | L21: 0 | Q21: 0.2
B22: Afgrøde 4 | C22: Majs til helsæd | D22: =IFERROR(IF(AND(C22=Datagrundlag!$M$40,Oplysninger!F22=""),0,IF(Oplysninger!F22<>"",F22,L22)),0) -> 0.15 | F22: 0.15 | J22: =IFERROR(VLOOKUP(C22,Datagrundlag!$A$23:$F$37,Datagrundlag!$F$21,FALSE),0) -> 0 | L22: 0 | Q22: 0.2
B23: Afgrøde 5 | C23: Fabriksroer | D23: =IFERROR(IF(AND(C23=Datagrundlag!$M$40,Oplysninger!F23=""),0,IF(Oplysninger!F23<>"",F23,L23)),0) -> 0 | F23: 0 | J23: =IFERROR(VLOOKUP(C23,Datagrundlag!$A$23:$F$37,Datagrundlag!$F$21,FALSE),0) -> 0 | L23: 0 | Q23: 0.1
B24: Afgrøde 6 | C24: Slætgræs 4 slæt | D24: =IFERROR(IF(AND(C24=Datagrundlag!$M$40,Oplysninger!F24=""),0,IF(Oplysninger!F24<>"",F24,L24)),0) -> 0 | F24: 0 | J24: =IFERROR(VLOOKUP(C24,Datagrundlag!$A$23:$F$37,Datagrundlag!$F$21,FALSE),0) -> 0 | L24: 0 | Q24: 0.1
D25: =SUM(D19:D24) -> 1
B26: # der beregnes ikke krav til eller økonomi for efterafgrøder
B27: Andre oplysninger
B28: Gødningsværdi eller salgsværdi halm** | D28: 500 | F28: Kr. pr. tons
B29: Forskel mellem pris ved kornkøb og kornsalg | D29: 12 | F29: Kr. pr. hkg
B30: Transportafstand (ud over "normal" transportafstand til egne marker) | D30: 1.5 | F30: Km (enkelt)
B31: Transporthastighed gennemsnit | D31: 25 | F31: Km i timen
B32: Transportomkostning (arbejdstid, drift og kapitalomk.) | D32: 500 | F32: Kr. pr. time
B34: * Beregningen med reducerede arbejds- og maskinomkostninger skal anvendes med omtanke! Det er især kritisk at antage "ledig maskinkapacitet", der forudsætter at der ikke beregnes yderligere renter og afskrivninger af de anvendte maskiner. Der vil altid være et ekstra værditab ved ekstra brug, og det bør tages med i vurderingen.
B36: ** Maskin- og arbejdsomkostninger og beregning af transportomkostninger omfatter både presning og hjemkørsel af halm

Sheet Beregninger
B1: Beregning af indtjening pr. ha
F2: Kalkule/egne | G2: Enhed | H2: Regnskab | I2: Egne værdier | O2: Skjules | Q2: Skjules
B4: Bruttoudbytte
B5: Udbytter: | C5: =IF(Oplysninger!C19="Ingen eller andet","",Oplysninger!C19) -> Vårbyg | D5: =IF(OR(Oplysninger!C19="Ingen eller andet",Oplysninger!C19=""),"",Oplysninger!C19&" på "&Oplysninger!D$10&Oplysninger!J$11) -> Vårbyg på sandjord med vanding med gylle | F5: =IF(I5="",O5,I5) -> 60 | G5: =IF(Oplysninger!$C19="Majs til helsæd","FEN pr. ha",IF(Oplysninger!$C19="Slætgræs 4 slæt","FEN pr. ha","hkg. pr. ha")) -> hkg. pr. ha | H5: =IFERROR(VLOOKUP(C5,Datagrundlag!$A$22:$K$37,Datagrundlag!$K$21,FALSE),"") -> 66.03773585 | K5: =IFERROR(_xlfn.IFS(AND(D5<>"",F5=0),"ingen kalkule, intast egen værdi",D5="","Vælge afgrøde, hvis ønsket"),"") ->  | O5: =IF(ISNUMBER(Q5),Q5,0) -> 60 | Q5: =VLOOKUP(D5,Datagrundlag!M$70:O$153,2,FALSE) -> 60
C6: =IF(Oplysninger!C20="Ingen eller andet","",Oplysninger!C20) -> Vinterhvede | D6: =IF(OR(Oplysninger!C20="Ingen eller andet",Oplysninger!C20=""),"",Oplysninger!C20&" på "&Oplysninger!D$10&Oplysninger!J$11) -> Vinterhvede på sandjord med vanding med gylle | F6: 84 | G6: =IF(Oplysninger!$C20="Majs til helsæd","FEN pr. ha",IF(Oplysninger!$C20="Slætgræs 4 slæt","FEN pr. ha","hkg. pr. ha")) -> hkg. pr. ha | H6: =IFERROR(VLOOKUP(C6,Datagrundlag!$A$22:$K$37,Datagrundlag!$K$21,FALSE),"") -> 0 | K6: =IFERROR(_xlfn.IFS(AND(D6<>"",F6=0),"ingen kalkule, intast egen værdi",D6="","Vælge afgrøde, hvis ønsket"),"") ->  | O6: =IF(ISNUMBER(Q6),Q6,0) -> 84 | Q6: =VLOOKUP(D6,Datagrundlag!M$70:P$153,2,FALSE) -> 84
C7: =IF(Oplysninger!C21="Ingen eller andet","",Oplysninger!C21) -> Vinterraps | D7: =IF(OR(Oplysninger!C21="Ingen eller andet",Oplysninger!C21=""),"",Oplysninger!C21&" på "&Oplysninger!D$10&Oplysninger!J$11) -> Vinterraps på sandjord med vanding med gylle | F7: 40 | G7: =IF(Oplysninger!$C21="Majs til helsæd","FEN pr. ha",IF(Oplysninger!$C21="Slætgræs 4 slæt","FEN pr. ha","hkg. pr. ha")) -> hkg. pr. ha | H7: =IFERROR(VLOOKUP(C7,Datagrundlag!$A$22:$K$37,Datagrundlag!$K$21,FALSE),"") -> 0 | K7: =IFERROR(_xlfn.IFS(AND(D7<>"",F7=0),"ingen kalkule, intast egen værdi",D7="","Vælge afgrøde, hvis ønsket"),"") ->  | O7: 40 | Q7: =VLOOKUP(D7,Datagrundlag!M$70:P$153,2,FALSE) -> 40
C8: =IF(Oplysninger!C22="Ingen eller andet","",Oplysninger!C22) -> Majs til helsæd | D8: =IF(OR(Oplysninger!C22="Ingen eller andet",Oplysninger!C22=""),"",Oplysninger!C22&" på "&Oplysninger!D$10&Oplysninger!J$11) -> Majs til helsæd på sandjord med vanding med gylle | F8: 11800 | G8: =IF(Oplysninger!$C22="Majs til helsæd","FEN pr. ha",IF(Oplysninger!$C22="Slætgræs 4 slæt","FEN pr. ha","hkg. pr. ha")) -> FEN pr. ha | H8: =IFERROR(VLOOKUP(C8,Datagrundlag!$A$22:$K$37,Datagrundlag!$K$21,FALSE),"") -> 0 | K8: =IFERROR(_xlfn.IFS(AND(D8<>"",F8=0),"ingen kalkule, intast egen værdi",D8="","Vælge afgrøde, hvis ønsket"),"") ->  | O8: 11800 | Q8: =VLOOKUP(D8,Datagrundlag!M$70:P$153,2,FALSE) -> 11800
C9: =IF(Oplysninger!C23="Ingen eller andet","",Oplysninger!C23) -> Fabriksroer | D9: =IF(OR(Oplysninger!C23="Ingen eller andet",Oplysninger!C23=""),"",Oplysninger!C23&" på "&Oplysninger!D$10&Oplysninger!J$11) -> Fabriksroer på sandjord med vanding med gylle | F9: 0 | G9: =IF(Oplysninger!$C23="Majs til helsæd","FEN pr. ha",IF(Oplysninger!$C23="Slætgræs 4 slæt","FEN pr. ha","hkg. pr. ha")) -> hkg. pr. ha | H9: =IFERROR(VLOOKUP(C9,Datagrundlag!$A$22:$K$37,Datagrundlag!$K$21,FALSE),"") -> 0 | K9: =IFERROR(_xlfn.IFS(AND(D9<>"",F9=0),"ingen kalkule, intast egen værdi",D9="","Vælge afgrøde, hvis ønsket"),"") -> ingen kalkule, intast egen værdi | O9: 0 | Q9: =VLOOKUP(D9,Datagrundlag!M$70:P$153,2,FALSE) -> 0
C10: =IF(Oplysninger!C24="Ingen eller andet","",Oplysninger!C24) -> Slætgræs 4 slæt | D10: =IF(OR(Oplysninger!C24="Ingen eller andet",Oplysninger!C24=""),"",Oplysninger!C24&" på "&Oplysninger!D$10&Oplysninger!J$11) -> Slætgræs 4 slæt på sandjord med vanding med gylle | F10: 10100 | G10: =IF(Oplysninger!$C24="Majs til helsæd","FEN pr. ha",IF(Oplysninger!$C24="Slætgræs 4 slæt","FEN pr. ha","hkg. pr. ha")) -> FEN pr. ha | H10: =IFERROR(VLOOKUP(C10,Datagrundlag!$A$22:$K$37,Datagrundlag!$K$21,FALSE),"") -> 0 | K10: =IFERROR(_xlfn.IFS(AND(D10<>"",F10=0),"ingen kalkule, intast egen værdi",D10="","Vælge afgrøde, hvis ønsket"),"") ->  | O10: 10100 | Q10: =VLOOKUP(D10,Datagrundlag!M$70:P$153,2,FALSE) -> 10100
B11: Priser: | D11: =IF(OR(Oplysninger!C19="Ingen eller andet",Oplysninger!C19=""),E5,IF(Oplysninger!C19="Vårbyg","Byg",IF(Oplysninger!C19="Vårhvede","Hvede",IF(Oplysninger!C19="Vinterhvede","Hvede",IF(Oplysninger!C19="Vinterraps","Raps",IF(Oplysninger!C19="Vinterbyg","Byg",IF(Oplysninger!C19="Vinterrug","Rug",Oplysninger!C19))))))) -> Byg | F11: =IF(I11<>0,I11,IF(AND(I11="",Oplysninger!D$16="Ja"),O11,IF(AND(I11="",Oplysninger!D$16="Nej",Oplysninger!C19="Vårbyg"),O11+Oplysninger!D$29,IF(AND(I11="",Oplysninger!C19="Vinterhvede"),O11+Oplysninger!D$29,IF(AND(I11="",Oplysninger!C19="Havre"),O11+Oplysninger!D$29,IF(AND(I11="",Oplysninger!C19="Vinterraps"),O11+Oplysninger!D$29,IF(AND(I11="",Oplysninger!C19="Rug"),O11+Oplysninger!$D$29,IF(AND(I11="",Oplysninger!C19="Vinterbyg"),O11+Oplysninger!D$29,O11)))))))) -> 109 | G11: =IF(OR(Oplysninger!$C19="Majs til helsæd",Oplysninger!C19="Slætgræs 4 slæt"),"Kr. pr. FEN","kr. pr. hkg") -> kr. pr. hkg | H11: =IFERROR(VLOOKUP(D11,Datagrundlag!$A$5:$F$19,Datagrundlag!$F$5,FALSE),"") -> 141.9585987 | O11: 109 | Q11: =VLOOKUP(D11,Datagrundlag!O$9:P$22,2,FALSE) -> 109
D12: =IF(OR(Oplysninger!C20="Ingen eller andet",Oplysninger!C20=""),E6,IF(Oplysninger!C20="Vårbyg","Byg",IF(Oplysninger!C20="Vårhvede","Hvede",IF(Oplysninger!C20="Vinterhvede","Hvede",IF(Oplysninger!C20="Vinterraps","Raps",IF(Oplysninger!C20="Vinterbyg","Byg",IF(Oplysninger!C20="Vinterrug","Rug",Oplysninger!C20))))))) -> Hvede | F12: =IF(I12<>0,I12,IF(AND(I12="",Oplysninger!D$16="Ja"),O12,IF(AND(I12="",Oplysninger!D$16="Nej",Oplysninger!C20="Vårbyg"),O12+Oplysninger!D$29,IF(AND(I12="",Oplysninger!C20="Vinterhvede"),O12+Oplysninger!D$29,IF(AND(I12="",Oplysninger!C20="Havre"),O12+Oplysninger!D$29,IF(AND(I12="",Oplysninger!C20="Vinterraps"),O12+Oplysninger!D$29,IF(AND(I12="",Oplysninger!C20="Rug"),O12+Oplysninger!$D$29,IF(AND(I12="",Oplysninger!C20="Vinterbyg"),O12+Oplysninger!D$29,O12)))))))) -> 115 | G12: =IF(OR(Oplysninger!$C20="Majs til helsæd",Oplysninger!C20="Slætgræs 4 slæt"),"Kr. pr. FEN","kr. pr. hkg") -> kr. pr. hkg | H12: =IFERROR(VLOOKUP(D12,Datagrundlag!$A$5:$F$19,Datagrundlag!$F$5,FALSE),"") -> 0 | O12: 115 | Q12: =VLOOKUP(D12,Datagrundlag!O$9:P$22,2,FALSE) -> 115
D13: =IF(OR(Oplysninger!C21="Ingen eller andet",Oplysninger!C21=""),E7,IF(Oplysninger!C21="Vårbyg","Byg",IF(Oplysninger!C21="Vårhvede","Hvede",IF(Oplysninger!C21="Vinterhvede","Hvede",IF(Oplysninger!C21="Vinterraps","Raps",IF(Oplysninger!C21="Vinterbyg","Byg",IF(Oplysninger!C21="Vinterrug","Rug",Oplysninger!C21))))))) -> Raps | F13: =IF(I13<>0,I13,IF(AND(I13="",Oplysninger!D$16="Ja"),O13,IF(AND(I13="",Oplysninger!D$16="Nej",Oplysninger!C21="Vårbyg"),O13+Oplysninger!D$29,IF(AND(I13="",Oplysninger!C21="Vinterhvede"),O13+Oplysninger!D$29,IF(AND(I13="",Oplysninger!C21="Havre"),O13+Oplysninger!D$29,IF(AND(I13="",Oplysninger!C21="Vinterraps"),O13+Oplysninger!D$29,IF(AND(I13="",Oplysninger!C21="Rug"),O13+Oplysninger!$D$29,IF(AND(I13="",Oplysninger!C21="Vinterbyg"),O13+Oplysninger!D$29,O13)))))))) -> 280 | G13: =IF(OR(Oplysninger!$C21="Majs til helsæd",Oplysninger!C21="Slætgræs 4 slæt"),"Kr. pr. FEN","kr. pr. hkg") -> kr. pr. hkg | H13: =IFERROR(VLOOKUP(D13,Datagrundlag!$A$5:$F$19,Datagrundlag!$F$5,FALSE),"") -> 0 | O13: 280 | Q13: =VLOOKUP(D13,Datagrundlag!O$9:P$22,2,FALSE) -> 280
D14: =IF(OR(Oplysninger!C22="Ingen eller andet",Oplysninger!C22=""),E8,IF(Oplysninger!C22="Vårbyg","Byg",IF(Oplysninger!C22="Vårhvede","Hvede",IF(Oplysninger!C22="Vinterhvede","Hvede",IF(Oplysninger!C22="Vinterraps","Raps",IF(Oplysninger!C22="Vinterbyg","Byg",IF(Oplysninger!C22="Vinterrug","Rug",Oplysninger!C22))))))) -> Majs til helsæd | F14: =IF(I14<>0,I14,IF(AND(I14="",Oplysninger!D$16="Ja"),O14,IF(AND(I14="",Oplysninger!D$16="Nej",Oplysninger!C22="Vårbyg"),O14+Oplysninger!D$29,IF(AND(I14="",Oplysninger!C22="Vinterhvede"),O14+Oplysninger!D$29,IF(AND(I14="",Oplysninger!C22="Havre"),O14+Oplysninger!D$29,IF(AND(I14="",Oplysninger!C22="Vinterraps"),O14+Oplysninger!D$29,IF(AND(I14="",Oplysninger!C22="Rug"),O14+Oplysninger!$D$29,IF(AND(I14="",Oplysninger!C22="Vinterbyg"),O14+Oplysninger!D$29,O14)))))))) -> 0 | G14: =IF(OR(Oplysninger!$C22="Majs til helsæd",Oplysninger!C22="Slætgræs 4 slæt"),"Kr. pr. FEN","kr. pr. hkg") -> Kr. pr. FEN | H14: =IFERROR(VLOOKUP(D14,Datagrundlag!$A$5:$F$19,Datagrundlag!$F$5,FALSE),"") -> 0 | O14: 0 | Q14: =VLOOKUP(D14,Datagrundlag!O$9:P$22,2,FALSE) -> 
D15: =IF(OR(Oplysninger!C23="Ingen eller andet",Oplysninger!C23=""),E9,IF(Oplysninger!C23="Vårbyg","Byg",IF(Oplysninger!C23="Vårhvede","Hvede",IF(Oplysninger!C23="Vinterhvede","Hvede",IF(Oplysninger!C23="Vinterraps","Raps",IF(Oplysninger!C23="Vinterbyg","Byg",IF(Oplysninger!C23="Vinterrug","Rug",Oplysninger!C23))))))) -> Fabriksroer | F15: =IF(I15<>0,I15,IF(AND(I15="",Oplysninger!D$16="Ja"),O15,IF(AND(I15="",Oplysninger!D$16="Nej",Oplysninger!C23="Vårbyg"),O15+Oplysninger!D$29,IF(AND(I15="",Oplysninger!C23="Vinterhvede"),O15+Oplysninger!D$29,IF(AND(I15="",Oplysninger!C23="Havre"),O15+Oplysninger!D$29,IF(AND(I15="",Oplysninger!C23="Vinterraps"),O15+Oplysninger!D$29,IF(AND(I15="",Oplysninger!C23="Rug"),O15+Oplysninger!$D$29,IF(AND(I15="",Oplysninger!C23="Vinterbyg"),O15+Oplysninger!D$29,O15)))))))) -> 21 | G15: =IF(OR(Oplysninger!$C23="Majs til helsæd",Oplysninger!C23="Slætgræs 4 slæt"),"Kr. pr. FEN","kr. pr. hkg") -> kr. pr. hkg | H15: =IFERROR(VLOOKUP(D15,Datagrundlag!$A$5:$F$19,Datagrundlag!$F$5,FALSE),"") -> 0 | O15: 21 | Q15: =VLOOKUP(D15,Datagrundlag!O$9:P$22,2,FALSE) -> 21
D16: =IF(OR(Oplysninger!C24="Ingen eller andet",Oplysninger!C24=""),E10,IF(Oplysninger!C24="Vårbyg","Byg",IF(Oplysninger!C24="Vårhvede","Hvede",IF(Oplysninger!C24="Vinterhvede","Hvede",IF(Oplysninger!C24="Vinterraps","Raps",IF(Oplysninger!C24="Vinterbyg","Byg",IF(Oplysninger!C24="Vinterrug","Rug",Oplysninger!C24))))))) -> Slætgræs 4 slæt | F16: =IF(I16<>0,I16,IF(AND(I16="",Oplysninger!D$16="Ja"),O16,IF(AND(I16="",Oplysninger!D$16="Nej",Oplysninger!C24="Vårbyg"),O16+Oplysninger!D$29,IF(AND(I16="",Oplysninger!C24="Vinterhvede"),O16+Oplysninger!D$29,IF(AND(I16="",Oplysninger!C24="Havre"),O16+Oplysninger!D$29,IF(AND(I16="",Oplysninger!C24="Vinterraps"),O16+Oplysninger!D$29,IF(AND(I16="",Oplysninger!C24="Rug"),O16+Oplysninger!$D$29,IF(AND(I16="",Oplysninger!C24="Vinterbyg"),O16+Oplysninger!D$29,O16)))))))) -> 0 | G16: =IF(OR(Oplysninger!$C24="Majs til helsæd",Oplysninger!C24="Slætgræs 4 slæt"),"Kr. pr. FEN","kr. pr. hkg") -> Kr. pr. FEN | H16: =IFERROR(VLOOKUP(D16,Datagrundlag!$A$5:$F$19,Datagrundlag!$F$5,FALSE),"") -> 0 | O16: 0 | Q16: =VLOOKUP(D16,Datagrundlag!O$9:P$22,2,FALSE) -> 
B17: Bruttoudbytte: | D17: =D5 -> Vårbyg på sandjord med vanding med gylle | F17: =F5*F11 -> 6540 | G17: kr. pr. ha
D18: =D6 -> Vinterhvede på sandjord med vanding med gylle | F18: =F6*F12 -> 9660 | G18: kr. pr. ha
D19: Vinterraps på sandjord med vanding med gylle | F19: =F7*F13 -> 11200 | G19: kr. pr. ha
D20: Majs til helsæd på sandjord med vanding med gylle | F20: 0 | G20: kr. pr. ha | AQ20: 1
D21: Fabriksroer på sandjord med vanding med gylle | F21: 0 | G21: kr. pr. ha | Y21: Pløjning | Z21: Udbr. husdydrgødning | AA21: Efterharvning | AB21: Gødningsspredning | AC21: Komb. harvning og såning | AD21: Såbedsharvning | AE21: Stenstrenglægning | AF21: Lægning m. gødn. Placering | AG21: Hypning | AH21: Lugning | AI21: Såning og gødningsplacering | AJ21: Såning | AK21: Skårlægning | AL21: Tromling | AM21: Sammenrivning | AN21: Sprøjtning | AO21: Radrensning | AP21: Optagning af roer inkl. Aftopning | AQ21: Optagning | AR21: Mejetærskning | AS21: Snitning, hjemkørsel og indlægning | AT21: Hjemkørsel afgrøde | AU21: Tøring afgrøde | AV21: Halmpresning | AW21: Hjemkørsel halm | AX21: Vanding, fast omkostning | AY21: Vanding, flytning | AZ21: Vanding pr millimeter | BA21: Øvrige opgaver
D22: Slætgræs 4 slæt på sandjord med vanding med gylle | F22: 0 | G22: kr. pr. ha
B23: Bruttoudbytte i alt (vægtet gennemsnit) | F23: =(F17*Oplysninger!D19+F18*Oplysninger!D20+F19*Oplysninger!D21+F20*Oplysninger!D22+F21*Oplysninger!D23+F22*Oplysninger!D24) -> 7585 | G23: kr. pr. ha (vægtet)
B24: Halmindtægt | F24: =IF(I24="",O24,I24) -> 1387.5 | G24: kr. pr. ha | H24: =IFERROR((IFERROR(VLOOKUP(S24,'Input regnskab'!$A$1:$G$10000,7,FALSE),0)+IFERROR(VLOOKUP(T24,'Input regnskab'!$A$1:$G$10000,7,FALSE),0))/IFERROR(VLOOKUP(U24,'Input regnskab'!$A$1:$G$10000,7,FALSE),""),"") -> 940.4578365 | O24: 1387.5 | Q24: =Datagrundlag!O170*Oplysninger!D28/Oplysninger!D9/1000 -> 1387.5 | S24: 7040 | T24: 7043 | U24: korn_areal | Y24: Specifikation af stykomkostningerne fra budgetkalkulerne
B25: Stykomkostninger (se specifikationen ved tryk på knappen "+" øverst til højre for beregningen) | Y25: Udsæd | AA25: Husdyrgødning | AC25: Læggekartofler | AE25: Læggekartofler indkøbt | AG25: Læggekartofler egen avl | AI25: Handels-gødning, kvælstof | AK25: Handels-gødning, fosfor | AM25: Handels-gødning, kalium | AO25: Patentkali | AQ25: Ukrudt | AS25: Sygdom | AU25: Skadedyr | AW25: Nedvisning | AY25: Bejdsning v. lægning | BA25: Sortering af kartofler | BC25: Opbevaring i kule | BE25: Vækstre-gulering | BG25: Analyser | BI25: Rensning | BK25: Plastik | BM25: Fragt
B26: Stykomkostninger: | D26: =IF(OR(Oplysninger!C19="Ingen eller andet",Oplysninger!C19=""),E5,IF(Oplysninger!D$10="lerjord",Oplysninger!C19&Oplysninger!J$11&" på lerjord",IF(Oplysninger!D$10="Sandjord med vanding",Oplysninger!C19&Oplysninger!J$11&" på sandjord med vanding",Oplysninger!C19&Oplysninger!J$11&" på sandjord uden vanding"))) -> Vårbyg med gylle på sandjord med vanding | F26: =IF(AND(I26=0,W26=0),O26,IF(AND(I26<>0,W26=0),I26,IF(AND(I26=0,W26<>0),O26+W26,"IKKE MULIGT"))) -> -757 | G26: kr. pr. ha | O26: =IF(ISNUMBER(Q26),Q26,0) -> -757 | Q26: =-VLOOKUP(D26,Datagrundlag!M$174:P$257,2,FALSE) -> -757 | S26: Henter fra budgetkalkule i datagrundlag | T26: Kan ej specificeres via ØDB | W26: =IF(Z26<>0,Z26-Y26,0)+IF(AB26<>0,AB26-AA26,0)+IF(AD26<>0,AD26-AC26,0)++IF(AF26<>0,AF26-AE26,0)+IF(AH26<>0,AH26-AG26,0)+IF(AJ26<>0,AJ26-AI26,0)+IF(AL26<>0,AL26-AK26,0)+IF(AN26<>0,AN26-AM26,0)+IF(AP26<>0,AP26-AQ26,0)+IF(AR26<>0,AR26-AQ26,0)+IF(AT26<>0,AT26-AS26,0)+IF(AV26<>0,AV26-AU26,0)+IF(AX26<>0,AX26-AW26,0)+IF(AZ26<>0,AZ26-AY26,0)+IF(BB26<>0,BB26-BA26,0)+IF(BD26<>0,BD26-BC26,0)+IF(BF26<>0,BF26-BE26,0)+IF(BH26<>0,BH26-BG26,0)+IF(BJ26<>0,BJ26-BI26,0)+IF(BL26<>0,BL26-BK26,0)+IF(BN26<>0,BN26-BM26,0) -> 0 | Y26: =-VLOOKUP($D26,Datagrundlag!$M$174:$BN$257,4,FALSE) -> -392 | AA26: =-VLOOKUP($D26,Datagrundlag!$M$174:$BN$257,5,FALSE) -> 0 | AC26: =-VLOOKUP($D26,Datagrundlag!$M$174:$BN$257,6,FALSE) -> 0 | AE26: =-VLOOKUP($D26,Datagrundlag!$M$174:$BN$257,7,FALSE) -> 0 | AG26: =-VLOOKUP($D26,Datagrundlag!$M$174:$BN$257,8,FALSE) -> 0 | AI26: =-VLOOKUP($D26,Datagrundlag!$M$174:$BN$257,9,FALSE) -> 0 | AK26: =-VLOOKUP($D26,Datagrundlag!$M$174:$BN$257,10,FALSE) -> 0 | AM26: =-VLOOKUP($D26,Datagrundlag!$M$174:$BN$257,11,FALSE) -> 0 | AO26: =-VLOOKUP($D26,Datagrundlag!$M$174:$BN$257,12,FALSE) -> 0 | AQ26: =-VLOOKUP($D26,Datagrundlag!$M$174:$BN$257,13,FALSE) -> -110 | AS26: =-VLOOKUP($D26,Datagrundlag!$M$174:$BN$257,14,FALSE) -> -165 | AU26: =-VLOOKUP($D26,Datagrundlag!$M$174:$BN$257,15,FALSE) -> -50 | AW26: =-VLOOKUP($D26,Datagrundlag!$M$174:$BN$257,16,FALSE) -> 0 | AY26: =-VLOOKUP($D26,Datagrundlag!$M$174:$BN$257,17,FALSE) -> 0 | BA26: =-VLOOKUP($D26,Datagrundlag!$M$174:$BN$257,18,FALSE) -> 0 | BC26: =-VLOOKUP($D26,Datagrundlag!$M$174:$BN$257,19,FALSE) -> 0 | BE26: =-VLOOKUP($D26,Datagrundlag!$M$174:$BN$257,20,FALSE) -> -40 | BG26: =-VLOOKUP($D26,Datagrundlag!$M$174:$BN$257,21,FALSE) -> 0 | BI26: =-VLOOKUP($D26,Datagrundlag!$M$174:$BN$257,22,FALSE) -> 0 | BK26: =-VLOOKUP($D26,Datagrundlag!$M$174:$BN$257,23,FALSE) -> 0 | BM26: =-VLOOKUP($D26,Datagrundlag!$M$174:$BN$257,24,FALSE) -> 0
D27: =IF(OR(Oplysninger!C20="Ingen eller andet",Oplysninger!C20=""),E6,IF(Oplysninger!D$10="lerjord",Oplysninger!C20&Oplysninger!J$11&" på lerjord",IF(Oplysninger!D$10="Sandjord med vanding",Oplysninger!C20&Oplysninger!J$11&" på sandjord med vanding",Oplysninger!C20&Oplysninger!J$11&" på sandjord uden vanding"))) -> Vinterhvede med gylle på sandjord med vanding | F27: -1827 | G27: kr. pr. ha | O27: -1827 | Q27: =-VLOOKUP(D27,Datagrundlag!M$174:P$257,2,FALSE) -> -1827 | W27: 0 | Y27: =-VLOOKUP($D27,Datagrundlag!$M$174:$BN$257,4,FALSE) -> -450 | AA27: =-VLOOKUP($D27,Datagrundlag!$M$174:$BN$257,5,FALSE) -> 0 | AC27: =-VLOOKUP($D27,Datagrundlag!$M$174:$BN$257,6,FALSE) -> 0 | AE27: =-VLOOKUP($D27,Datagrundlag!$M$174:$BN$257,7,FALSE) -> 0 | AG27: =-VLOOKUP($D27,Datagrundlag!$M$174:$BN$257,8,FALSE) -> 0 | AI27: =-VLOOKUP($D27,Datagrundlag!$M$174:$BN$257,9,FALSE) -> -380 | AK27: =-VLOOKUP($D27,Datagrundlag!$M$174:$BN$257,10,FALSE) -> 0 | AM27: =-VLOOKUP($D27,Datagrundlag!$M$174:$BN$257,11,FALSE) -> 0 | AO27: =-VLOOKUP($D27,Datagrundlag!$M$174:$BN$257,12,FALSE) -> 0 | AQ27: =-VLOOKUP($D27,Datagrundlag!$M$174:$BN$257,13,FALSE) -> -438 | AS27: =-VLOOKUP($D27,Datagrundlag!$M$174:$BN$257,14,FALSE) -> -410 | AU27: =-VLOOKUP($D27,Datagrundlag!$M$174:$BN$257,15,FALSE) -> -90 | AW27: =-VLOOKUP($D27,Datagrundlag!$M$174:$BN$257,16,FALSE) -> 0 | AY27: =-VLOOKUP($D27,Datagrundlag!$M$174:$BN$257,17,FALSE) -> 0 | BA27: =-VLOOKUP($D27,Datagrundlag!$M$174:$BN$257,18,FALSE) -> 0 | BC27: =-VLOOKUP($D27,Datagrundlag!$M$174:$BN$257,19,FALSE) -> 0 | BE27: =-VLOOKUP($D27,Datagrundlag!$M$174:$BN$257,20,FALSE) -> -60 | BG27: =-VLOOKUP($D27,Datagrundlag!$M$174:$BN$257,21,FALSE) -> 0 | BI27: =-VLOOKUP($D27,Datagrundlag!$M$174:$BN$257,22,FALSE) -> 0 | BK27: =-VLOOKUP($D27,Datagrundlag!$M$174:$BN$257,23,FALSE) -> 0 | BM27: =-VLOOKUP($D27,Datagrundlag!$M$174:$BN$257,24,FALSE) -> 0
D28: =IF(OR(Oplysninger!C21="Ingen eller andet",Oplysninger!C21=""),E7,IF(Oplysninger!D$10="lerjord",Oplysninger!C21&Oplysninger!J$11&" på lerjord",IF(Oplysninger!D$10="Sandjord med vanding",Oplysninger!C21&Oplysninger!J$11&" på sandjord med vanding",Oplysninger!C21&Oplysninger!J$11&" på sandjord uden vanding"))) -> Vinterraps med gylle på sandjord med vanding | F28: -2584 | G28: kr. pr. ha | O28: -2584 | Q28: =-VLOOKUP(D28,Datagrundlag!M$174:P$257,2,FALSE) -> -2584 | W28: 0 | Y28: =-VLOOKUP($D28,Datagrundlag!$M$174:$BN$257,4,FALSE) -> -425 | AA28: =-VLOOKUP($D28,Datagrundlag!$M$174:$BN$257,5,FALSE) -> 0 | AC28: =-VLOOKUP($D28,Datagrundlag!$M$174:$BN$257,6,FALSE) -> 0 | AE28: =-VLOOKUP($D28,Datagrundlag!$M$174:$BN$257,7,FALSE) -> 0 | AG28: =-VLOOKUP($D28,Datagrundlag!$M$174:$BN$257,8,FALSE) -> 0 | AI28: =-VLOOKUP($D28,Datagrundlag!$M$174:$BN$257,9,FALSE) -> -374 | AK28: =-VLOOKUP($D28,Datagrundlag!$M$174:$BN$257,10,FALSE) -> 0 | AM28: =-VLOOKUP($D28,Datagrundlag!$M$174:$BN$257,11,FALSE) -> 0 | AO28: =-VLOOKUP($D28,Datagrundlag!$M$174:$BN$257,12,FALSE) -> 0 | AQ28: =-VLOOKUP($D28,Datagrundlag!$M$174:$BN$257,13,FALSE) -> -750 | AS28: =-VLOOKUP($D28,Datagrundlag!$M$174:$BN$257,14,FALSE) -> -215 | AU28: =-VLOOKUP($D28,Datagrundlag!$M$174:$BN$257,15,FALSE) -> -375 | AW28: =-VLOOKUP($D28,Datagrundlag!$M$174:$BN$257,16,FALSE) -> 0 | AY28: =-VLOOKUP($D28,Datagrundlag!$M$174:$BN$257,17,FALSE) -> 0 | BA28: =-VLOOKUP($D28,Datagrundlag!$M$174:$BN$257,18,FALSE) -> 0 | BC28: =-VLOOKUP($D28,Datagrundlag!$M$174:$BN$257,19,FALSE) -> 0 | BE28: =-VLOOKUP($D28,Datagrundlag!$M$174:$BN$257,20,FALSE) -> -40 | BG28: =-VLOOKUP($D28,Datagrundlag!$M$174:$BN$257,21,FALSE) -> -125 | BI28: =-VLOOKUP($D28,Datagrundlag!$M$174:$BN$257,22,FALSE) -> -280 | BK28: =-VLOOKUP($D28,Datagrundlag!$M$174:$BN$257,23,FALSE) -> 0 | BM28: =-VLOOKUP($D28,Datagrundlag!$M$174:$BN$257,24,FALSE) -> 0
D29: =IF(OR(Oplysninger!C22="Ingen eller andet",Oplysninger!C22=""),E8,IF(Oplysninger!D$10="lerjord",Oplysninger!C22&Oplysninger!J$11&" på lerjord",IF(Oplysninger!D$10="Sandjord med vanding",Oplysninger!C22&Oplysninger!J$11&" på sandjord med vanding",Oplysninger!C22&Oplysninger!J$11&" på sandjord uden vanding"))) -> Majs til helsæd med gylle på sandjord med vanding | F29: -2732 | G29: kr. pr. ha | O29: -2732 | Q29: =-VLOOKUP(D29,Datagrundlag!M$174:P$257,2,FALSE) -> -2732 | W29: 0 | Y29: =-VLOOKUP($D29,Datagrundlag!$M$174:$BN$257,4,FALSE) -> -1560 | AA29: =-VLOOKUP($D29,Datagrundlag!$M$174:$BN$257,5,FALSE) -> 0 | AC29: =-VLOOKUP($D29,Datagrundlag!$M$174:$BN$257,6,FALSE) -> 0 | AE29: =-VLOOKUP($D29,Datagrundlag!$M$174:$BN$257,7,FALSE) -> 0 | AG29: =-VLOOKUP($D29,Datagrundlag!$M$174:$BN$257,8,FALSE) -> 0 | AI29: =-VLOOKUP($D29,Datagrundlag!$M$174:$BN$257,9,FALSE) -> -165 | AK29: =-VLOOKUP($D29,Datagrundlag!$M$174:$BN$257,10,FALSE) -> -135 | AM29: =-VLOOKUP($D29,Datagrundlag!$M$174:$BN$257,11,FALSE) -> 0 | AO29: =-VLOOKUP($D29,Datagrundlag!$M$174:$BN$257,12,FALSE) -> 0 | AQ29: =-VLOOKUP($D29,Datagrundlag!$M$174:$BN$257,13,FALSE) -> -425 | AS29: =-VLOOKUP($D29,Datagrundlag!$M$174:$BN$257,14,FALSE) -> -75 | AU29: =-VLOOKUP($D29,Datagrundlag!$M$174:$BN$257,15,FALSE) -> 0 | AW29: =-VLOOKUP($D29,Datagrundlag!$M$174:$BN$257,16,FALSE) -> 0 | AY29: =-VLOOKUP($D29,Datagrundlag!$M$174:$BN$257,17,FALSE) -> 0 | BA29: =-VLOOKUP($D29,Datagrundlag!$M$174:$BN$257,18,FALSE) -> 0 | BC29: =-VLOOKUP($D29,Datagrundlag!$M$174:$BN$257,19,FALSE) -> 0 | BE29: =-VLOOKUP($D29,Datagrundlag!$M$174:$BN$257,20,FALSE) -> 0 | BG29: =-VLOOKUP($D29,Datagrundlag!$M$174:$BN$257,21,FALSE) -> 0 | BI29: =-VLOOKUP($D29,Datagrundlag!$M$174:$BN$257,22,FALSE) -> 0 | BK29: =-VLOOKUP($D29,Datagrundlag!$M$174:$BN$257,23,FALSE) -> -372 | BM29: =-VLOOKUP($D29,Datagrundlag!$M$174:$BN$257,24,FALSE) -> 0
D30: =IF(OR(Oplysninger!C23="Ingen eller andet",Oplysninger!C23=""),E9,IF(Oplysninger!D$10="lerjord",Oplysninger!C23&Oplysninger!J$11&" på lerjord",IF(Oplysninger!D$10="Sandjord med vanding",Oplysninger!C23&Oplysninger!J$11&" på sandjord med vanding",Oplysninger!C23&Oplysninger!J$11&" på sandjord uden vanding"))) -> Fabriksroer med gylle på sandjord med vanding | F30: 0 | G30: kr. pr. ha | O30: 0 | Q30: =-VLOOKUP(D30,Datagrundlag!M$174:P$257,2,FALSE) -> 0 | W30: 0 | Y30: =-VLOOKUP($D30,Datagrundlag!$M$174:$BN$257,4,FALSE) -> 0 | AA30: =-VLOOKUP($D30,Datagrundlag!$M$174:$BN$257,5,FALSE) -> 0 | AC30: =-VLOOKUP($D30,Datagrundlag!$M$174:$BN$257,6,FALSE) -> 0 | AE30: =-VLOOKUP($D30,Datagrundlag!$M$174:$BN$257,7,FALSE) -> 0 | AG30: =-VLOOKUP($D30,Datagrundlag!$M$174:$BN$257,8,FALSE) -> 0 | AI30: =-VLOOKUP($D30,Datagrundlag!$M$174:$BN$257,9,FALSE) -> 0 | AK30: =-VLOOKUP($D30,Datagrundlag!$M$174:$BN$257,10,FALSE) -> 0 | AM30: =-VLOOKUP($D30,Datagrundlag!$M$174:$BN$257,11,FALSE) -> 0 | AO30: =-VLOOKUP($D30,Datagrundlag!$M$174:$BN$257,12,FALSE) -> 0 | AQ30: =-VLOOKUP($D30,Datagrundlag!$M$174:$BN$257,13,FALSE) -> 0 | AS30: =-VLOOKUP($D30,Datagrundlag!$M$174:$BN$257,14,FALSE) -> 0 | AU30: =-VLOOKUP($D30,Datagrundlag!$M$174:$BN$257,15,FALSE) -> 0 | AW30: =-VLOOKUP($D30,Datagrundlag!$M$174:$BN$257,16,FALSE) -> 0 | AY30: =-VLOOKUP($D30,Datagrundlag!$M$174:$BN$257,17,FALSE) -> 0 | BA30: =-VLOOKUP($D30,Datagrundlag!$M$174:$BN$257,18,FALSE) -> 0 | BC30: =-VLOOKUP($D30,Datagrundlag!$M$174:$BN$257,19,FALSE) -> 0 | BE30: =-VLOOKUP($D30,Datagrundlag!$M$174:$BN$257,20,FALSE) -> 0 | BG30: =-VLOOKUP($D30,Datagrundlag!$M$174:$BN$257,21,FALSE) -> 0 | BI30: =-VLOOKUP($D30,Datagrundlag!$M$174:$BN$257,22,FALSE) -> 0 | BK30: =-VLOOKUP($D30,Datagrundlag!$M$174:$BN$257,23,FALSE) -> 0 | BM30: =-VLOOKUP($D30,Datagrundlag!$M$174:$BN$257,24,FALSE) -> 0
D31: =IF(OR(Oplysninger!C24="Ingen eller andet",Oplysninger!C24=""),E10,IF(Oplysninger!D$10="lerjord",Oplysninger!C24&Oplysninger!J$11&" på lerjord",IF(Oplysninger!D$10="Sandjord med vanding",Oplysninger!C24&Oplysninger!J$11&" på sandjord med vanding",Oplysninger!C24&Oplysninger!J$11&" på sandjord uden vanding"))) -> Slætgræs 4 slæt med gylle på sandjord med vanding | F31: -1252 | G31: kr. pr. ha | O31: -1252 | Q31: =-VLOOKUP(D31,Datagrundlag!M$174:P$257,2,FALSE) -> -1252 | W31: 0 | Y31: =-VLOOKUP($D31,Datagrundlag!$M$174:$BN$257,4,FALSE) -> -324 | AA31: =-VLOOKUP($D31,Datagrundlag!$M$174:$BN$257,5,FALSE) -> 0 | AC31: =-VLOOKUP($D31,Datagrundlag!$M$174:$BN$257,6,FALSE) -> 0 | AE31: =-VLOOKUP($D31,Datagrundlag!$M$174:$BN$257,7,FALSE) -> 0 | AG31: =-VLOOKUP($D31,Datagrundlag!$M$174:$BN$257,8,FALSE) -> 0 | AI31: =-VLOOKUP($D31,Datagrundlag!$M$174:$BN$257,9,FALSE) -> -462 | AK31: =-VLOOKUP($D31,Datagrundlag!$M$174:$BN$257,10,FALSE) -> 0 | AM31: =-VLOOKUP($D31,Datagrundlag!$M$174:$BN$257,11,FALSE) -> 0 | AO31: =-VLOOKUP($D31,Datagrundlag!$M$174:$BN$257,12,FALSE) -> 0 | AQ31: =-VLOOKUP($D31,Datagrundlag!$M$174:$BN$257,13,FALSE) -> 0 | AS31: =-VLOOKUP($D31,Datagrundlag!$M$174:$BN$257,14,FALSE) -> 0 | AU31: =-VLOOKUP($D31,Datagrundlag!$M$174:$BN$257,15,FALSE) -> 0 | AW31: =-VLOOKUP($D31,Datagrundlag!$M$174:$BN$257,16,FALSE) -> 0 | AY31: =-VLOOKUP($D31,Datagrundlag!$M$174:$BN$257,17,FALSE) -> 0 | BA31: =-VLOOKUP($D31,Datagrundlag!$M$174:$BN$257,18,FALSE) -> 0 | BC31: =-VLOOKUP($D31,Datagrundlag!$M$174:$BN$257,19,FALSE) -> 0 | BE31: =-VLOOKUP($D31,Datagrundlag!$M$174:$BN$257,20,FALSE) -> 0 | BG31: =-VLOOKUP($D31,Datagrundlag!$M$174:$BN$257,21,FALSE) -> 0 | BI31: =-VLOOKUP($D31,Datagrundlag!$M$174:$BN$257,22,FALSE) -> 0 | BK31: =-VLOOKUP($D31,Datagrundlag!$M$174:$BN$257,23,FALSE) -> -466 | BM31: =-VLOOKUP($D31,Datagrundlag!$M$174:$BN$257,24,FALSE) -> 0
B32: Stykomkostninger (vægtet gennemsnit)* | F32: =F26*Oplysninger!D19+F27*Oplysninger!D20+F28*Oplysninger!D21+F29*Oplysninger!D22+F30*Oplysninger!D23+F31*Oplysninger!D24 -> -1770.95 | G32: kr. pr. ha (vægtet)
B33: Dækningsbidrag | F33: =F23+F24+F32 -> 7201.55 | G33: kr. pr. ha | Y33: Specifikation af maskinomkostninger inkl. arbejde fra budgetkalkulerne
B34: Kapacitetsomkostninger (se specifikationen ved tryk på knappen "+" øverst til højre for beregningen) | Y34: Pløjning | AA34: Udbring. husdyr-gødning | AC34: Efterharvning | AE34: Gødningsspred-ning | AG34: Komb. harvning og såning | AI34: Såbeds-harvning | AK34: Stenstrenglægning | AM34: Lægning m. gødn. Placering | AO34: Hypning | AQ34: Lugning | AS34: Såning og gød-ningsplacering | AU34: Såning | AW34: Skårlægning | AY34: Tromling | BA34: Sammenrivning | BC34: Sprøjtning | BE34: Radrensning | BG34: Optagning af roer inkl. aftopning | BI34: Optagning | BK34: Mejetærskning | BM34: Snitning, hjem-kørsel og indlægning | BO34: Hjemkørsel afgrøde | BQ34: Tøring afgrøde | BS34: Halmpresning | BU34: Hjemkørsel halm | BW34: Vanding, fast omkostning | BY34: Vanding flytning | CA34: Vanding pr millimeter | CC34: Øvrige opgaver *
B35: Maskinomk. inkl. arb.omk.: | D35: =IF(OR(Oplysninger!C19="Ingen eller andet",Oplysninger!C19=""),E5,IF(Oplysninger!D$10="lerjord",Oplysninger!C19&Oplysninger!J$11&" på lerjord",IF(Oplysninger!D$10="Sandjord med vanding",Oplysninger!C19&Oplysninger!J$11&" på sandjord med vanding",Oplysninger!C19&Oplysninger!J$11&" på sandjord uden vanding"))) -> Vårbyg med gylle på sandjord med vanding | F35: =IF(AND(I35=0,W35=0),O35,IF(AND(I35<>0,W35=0),I35,IF(AND(I35=0,W35<>0),O35+W35,"IKKE MULIGT"))) -> -7301 | G35: kr. pr. ha | O35: =IF(ISNUMBER(Q35),Q35,0) -> -7301 | Q35: =-VLOOKUP(D35,Datagrundlag!$M$174:$O$257,3,FALSE) -> -7301 | S35: Henter fra budgetkalkule i datagrundlag | T35: Kan ej specificeres via ØDB | W35: =IF(Z35<>0,Z35-Y35,0)+IF(AB35<>0,AB35-AA35,0)+IF(AD35<>0,AD35-AC35,0)+IF(AF35<>0,AF35-AE35,0)+IF(AH35<>0,AH35-AG35,0)+IF(AJ35<>0,AJ35-AI35,0)+IF(AL35<>0,AL35-AK35,0)+IF(AN35<>0,AN35-AM35,0)+IF(AP35<>0,AP35-AO35,0)+IF(AR35<>0,AR35-AQ35,0)+IF(AT35<>0,AT35-AS35,0)+IF(AV35<>0,AV35-AU35,0)+IF(AX35<>0,AX35-AW35,0)+IF(AZ35<>0,AZ35-AY35,0)+IF(BB35<>0,BB35-BA35,0)+IF(BD35<>0,BD35-BC35,0)+IF(BF35<>0,BF35-BE35,0)+IF(BH35<>0,BH35-BG35,0)+IF(BJ35<>0,BJ35-BI35,0)+IF(BL35<>0,BL35-BK35,0)+IF(BN35<>0,BN35-BM35,0)+IF(BP35<>0,BP35-BO35,0)+IF(BR35<>0,BR35-BQ35,0)+IF(BT35<>0,BT35-BS35,0)+IF(BV35<>0,BV35-BU35,0)+IF(BX35<>0,BX35-BW35,0)+IF(BZ35<>0,BZ35-BY35,0)+IF(CB35<>0,CB35-CA35,0)+IF(CD35<>0,CD35-CC35,0) -> 0 | Y35: =-VLOOKUP($D35,Datagrundlag!$M$174:$BN$257,26,FALSE) -> -653 | AA35: =-VLOOKUP($D35,Datagrundlag!$M$174:$BN$257,27,FALSE) -> -812 | AC35: =-VLOOKUP($D35,Datagrundlag!$M$174:$BN$257,28,FALSE) -> 0 | AE35: =-VLOOKUP($D35,Datagrundlag!$M$174:$BN$257,29,FALSE) -> 0 | AG35: =-VLOOKUP($D35,Datagrundlag!$M$174:$BN$257,30,FALSE) -> -380 | AI35: =-VLOOKUP($D35,Datagrundlag!$M$174:$BN$257,31,FALSE) -> 0 | AK35: =-VLOOKUP($D35,Datagrundlag!$M$174:$BN$257,32,FALSE) -> 0 | AM35: =-VLOOKUP($D35,Datagrundlag!$M$174:$BN$257,33,FALSE) -> 0 | AO35: =-VLOOKUP($D35,Datagrundlag!$M$174:$BN$257,34,FALSE) -> 0 | AQ35: =-VLOOKUP($D35,Datagrundlag!$M$174:$BN$257,35,FALSE) -> 0 | AS35: =-VLOOKUP($D35,Datagrundlag!$M$174:$BN$257,36,FALSE) -> 0 | AU35: =-VLOOKUP($D35,Datagrundlag!$M$174:$BN$257,37,FALSE) -> 0 | AW35: =-VLOOKUP($D35,Datagrundlag!$M$174:$BN$257,38,FALSE) -> 0 | AY35: =-VLOOKUP($D35,Datagrundlag!$M$174:$BN$257,39,FALSE) -> 0 | BA35: =-VLOOKUP($D35,Datagrundlag!$M$174:$BN$257,40,FALSE) -> 0 | BC35: =-VLOOKUP($D35,Datagrundlag!$M$174:$BN$257,41,FALSE) -> -540 | BE35: =-VLOOKUP($D35,Datagrundlag!$M$174:$BN$257,42,FALSE) -> 0 | BG35: =-VLOOKUP($D35,Datagrundlag!$M$174:$BN$257,43,FALSE) -> 0 | BI35: =-VLOOKUP($D35,Datagrundlag!$M$174:$BN$257,44,FALSE) -> 0 | BK35: =-VLOOKUP($D35,Datagrundlag!$M$174:$BN$257,45,FALSE) -> -864 | BM35: =-VLOOKUP($D35,Datagrundlag!$M$174:$BN$257,46,FALSE) -> 0 | BO35: =-VLOOKUP($D35,Datagrundlag!$M$174:$BN$257,47,FALSE) -> -407 | BQ35: =-VLOOKUP($D35,Datagrundlag!$M$174:$BN$257,48,FALSE) -> -540 | BS35: =-VLOOKUP($D35,Datagrundlag!$M$174:$BN$257,49,FALSE) -> -527 | BU35: =-VLOOKUP($D35,Datagrundlag!$M$174:$BN$257,50,FALSE) -> -229 | BW35: =-VLOOKUP($D35,Datagrundlag!$M$174:$BN$257,51,FALSE) -> -1225 | BY35: =-VLOOKUP($D35,Datagrundlag!$M$174:$BN$257,52,FALSE) -> -250 | CA35: =-VLOOKUP($D35,Datagrundlag!$M$174:$BN$257,53,FALSE) -> -375 | CC35: =-VLOOKUP($D35,Datagrundlag!$M$174:$BN$257,54,FALSE) -> -500
D36: =IF(OR(Oplysninger!C20="Ingen eller andet",Oplysninger!C20=""),E6,IF(Oplysninger!D$10="lerjord",Oplysninger!C20&Oplysninger!J$11&" på lerjord",IF(Oplysninger!D$10="Sandjord med vanding",Oplysninger!C20&Oplysninger!J$11&" på sandjord med vanding",Oplysninger!C20&Oplysninger!J$11&" på sandjord uden vanding"))) -> Vinterhvede med gylle på sandjord med vanding | F36: -8469 | G36: kr. pr. ha | K36: Gå til Finan siering | O36: -8469 | Q36: =-VLOOKUP(D36,Datagrundlag!$M$174:$O$257,3,FALSE) -> -8469 | W36: =IF(Z36<>0,Z36-Y36,0)+IF(AB36<>0,AB36-AA36,0)+IF(AD36<>0,AD36-AC36,0)+IF(AF36<>0,AF36-AE36,0)+IF(AH36<>0,AH36-AG36,0)+IF(AJ36<>0,AJ36-AI36,0)+IF(AL36<>0,AL36-AK36,0)+IF(AN36<>0,AN36-AM36,0)+IF(AP36<>0,AP36-AO36,0)+IF(AR36<>0,AR36-AQ36,0)+IF(AT36<>0,AT36-AS36,0)+IF(AV36<>0,AV36-AU36,0)+IF(AX36<>0,AX36-AW36,0)+IF(AZ36<>0,AZ36-AY36,0)+IF(BB36<>0,BB36-BA36,0)+IF(BD36<>0,BD36-BC36,0)+IF(BF36<>0,BF36-BE36,0)+IF(BH36<>0,BH36-BG36,0)+IF(BJ36<>0,BJ36-BI36,0)+IF(BL36<>0,BL36-BK36,0)+IF(BN36<>0,BN36-BM36,0)+IF(BP36<>0,BP36-BO36,0)+IF(BR36<>0,BR36-BQ36,0)+IF(BT36<>0,BT36-BS36,0)+IF(BV36<>0,BV36-BU36,0)+IF(BX36<>0,BX36-BW36,0)+IF(BZ36<>0,BZ36-BY36,0)+IF(CB36<>0,CB36-CA36,0)+IF(CD36<>0,CD36-CC36,0) -> 0 | Y36: =-VLOOKUP($D36,Datagrundlag!$M$174:$BN$257,26,FALSE) -> -653 | AA36: =-VLOOKUP($D36,Datagrundlag!$M$174:$BN$257,27,FALSE) -> -570 | AC36: =-VLOOKUP($D36,Datagrundlag!$M$174:$BN$257,28,FALSE) -> 0 | AE36: =-VLOOKUP($D36,Datagrundlag!$M$174:$BN$257,29,FALSE) -> -143 | AG36: =-VLOOKUP($D36,Datagrundlag!$M$174:$BN$257,30,FALSE) -> -380 | AI36: =-VLOOKUP($D36,Datagrundlag!$M$174:$BN$257,31,FALSE) -> 0 | AK36: =-VLOOKUP($D36,Datagrundlag!$M$174:$BN$257,32,FALSE) -> 0 | AM36: =-VLOOKUP($D36,Datagrundlag!$M$174:$BN$257,33,FALSE) -> 0 | AO36: =-VLOOKUP($D36,Datagrundlag!$M$174:$BN$257,34,FALSE) -> 0 | AQ36: =-VLOOKUP($D36,Datagrundlag!$M$174:$BN$257,35,FALSE) -> 0 | AS36: =-VLOOKUP($D36,Datagrundlag!$M$174:$BN$257,36,FALSE) -> 0 | AU36: =-VLOOKUP($D36,Datagrundlag!$M$174:$BN$257,37,FALSE) -> 0 | AW36: =-VLOOKUP($D36,Datagrundlag!$M$174:$BN$257,38,FALSE) -> 0 | AY36: =-VLOOKUP($D36,Datagrundlag!$M$174:$BN$257,39,FALSE) -> 0 | BA36: =-VLOOKUP($D36,Datagrundlag!$M$174:$BN$257,40,FALSE) -> 0 | BC36: =-VLOOKUP($D36,Datagrundlag!$M$174:$BN$257,41,FALSE) -> -900 | BE36: =-VLOOKUP($D36,Datagrundlag!$M$174:$BN$257,42,FALSE) -> 0 | BG36: =-VLOOKUP($D36,Datagrundlag!$M$174:$BN$257,43,FALSE) -> 0 | BI36: =-VLOOKUP($D36,Datagrundlag!$M$174:$BN$257,44,FALSE) -> 0 | BK36: =-VLOOKUP($D36,Datagrundlag!$M$174:$BN$257,45,FALSE) -> -1020 | BM36: =-VLOOKUP($D36,Datagrundlag!$M$174:$BN$257,46,FALSE) -> 0 | BO36: =-VLOOKUP($D36,Datagrundlag!$M$174:$BN$257,47,FALSE) -> -480 | BQ36: =-VLOOKUP($D36,Datagrundlag!$M$174:$BN$257,48,FALSE) -> -756 | BS36: =-VLOOKUP($D36,Datagrundlag!$M$174:$BN$257,49,FALSE) -> -680 | BU36: =-VLOOKUP($D36,Datagrundlag!$M$174:$BN$257,50,FALSE) -> -263 | BW36: =-VLOOKUP($D36,Datagrundlag!$M$174:$BN$257,51,FALSE) -> -1225 | BY36: =-VLOOKUP($D36,Datagrundlag!$M$174:$BN$257,52,FALSE) -> -375 | CA36: =-VLOOKUP($D36,Datagrundlag!$M$174:$BN$257,53,FALSE) -> -525 | CC36: =-VLOOKUP($D36,Datagrundlag!$M$174:$BN$257,54,FALSE) -> -500
D37: =IF(OR(Oplysninger!C21="Ingen eller andet",Oplysninger!C21=""),E7,IF(Oplysninger!D$10="lerjord",Oplysninger!C21&Oplysninger!J$11&" på lerjord",IF(Oplysninger!D$10="Sandjord med vanding",Oplysninger!C21&Oplysninger!J$11&" på sandjord med vanding",Oplysninger!C21&Oplysninger!J$11&" på sandjord uden vanding"))) -> Vinterraps med gylle på sandjord med vanding | F37: -7556 | G37: kr. pr. ha | O37: -7556 | Q37: =-VLOOKUP(D37,Datagrundlag!$M$174:$O$257,3,FALSE) -> -7556 | W37: 0 | Y37: =-VLOOKUP($D37,Datagrundlag!$M$174:$BN$257,26,FALSE) -> -653 | AA37: =-VLOOKUP($D37,Datagrundlag!$M$174:$BN$257,27,FALSE) -> -665 | AC37: =-VLOOKUP($D37,Datagrundlag!$M$174:$BN$257,28,FALSE) -> 0 | AE37: =-VLOOKUP($D37,Datagrundlag!$M$174:$BN$257,29,FALSE) -> -143 | AG37: =-VLOOKUP($D37,Datagrundlag!$M$174:$BN$257,30,FALSE) -> -380 | AI37: =-VLOOKUP($D37,Datagrundlag!$M$174:$BN$257,31,FALSE) -> 0 | AK37: =-VLOOKUP($D37,Datagrundlag!$M$174:$BN$257,32,FALSE) -> 0 | AM37: =-VLOOKUP($D37,Datagrundlag!$M$174:$BN$257,33,FALSE) -> 0 | AO37: =-VLOOKUP($D37,Datagrundlag!$M$174:$BN$257,34,FALSE) -> 0 | AQ37: =-VLOOKUP($D37,Datagrundlag!$M$174:$BN$257,35,FALSE) -> 0 | AS37: =-VLOOKUP($D37,Datagrundlag!$M$174:$BN$257,36,FALSE) -> 0 | AU37: =-VLOOKUP($D37,Datagrundlag!$M$174:$BN$257,37,FALSE) -> 0 | AW37: =-VLOOKUP($D37,Datagrundlag!$M$174:$BN$257,38,FALSE) -> 0 | AY37: =-VLOOKUP($D37,Datagrundlag!$M$174:$BN$257,39,FALSE) -> 0 | BA37: =-VLOOKUP($D37,Datagrundlag!$M$174:$BN$257,40,FALSE) -> 0 | BC37: =-VLOOKUP($D37,Datagrundlag!$M$174:$BN$257,41,FALSE) -> -1080 | BE37: =-VLOOKUP($D37,Datagrundlag!$M$174:$BN$257,42,FALSE) -> 0 | BG37: =-VLOOKUP($D37,Datagrundlag!$M$174:$BN$257,43,FALSE) -> 0 | BI37: =-VLOOKUP($D37,Datagrundlag!$M$174:$BN$257,44,FALSE) -> 0 | BK37: =-VLOOKUP($D37,Datagrundlag!$M$174:$BN$257,45,FALSE) -> -956 | BM37: =-VLOOKUP($D37,Datagrundlag!$M$174:$BN$257,46,FALSE) -> 0 | BO37: =-VLOOKUP($D37,Datagrundlag!$M$174:$BN$257,47,FALSE) -> -450 | BQ37: =-VLOOKUP($D37,Datagrundlag!$M$174:$BN$257,48,FALSE) -> -680 | BS37: =-VLOOKUP($D37,Datagrundlag!$M$174:$BN$257,49,FALSE) -> 0 | BU37: =-VLOOKUP($D37,Datagrundlag!$M$174:$BN$257,50,FALSE) -> 0 | BW37: =-VLOOKUP($D37,Datagrundlag!$M$174:$BN$257,51,FALSE) -> -1225 | BY37: =-VLOOKUP($D37,Datagrundlag!$M$174:$BN$257,52,FALSE) -> -375 | CA37: =-VLOOKUP($D37,Datagrundlag!$M$174:$BN$257,53,FALSE) -> -450 | CC37: =-VLOOKUP($D37,Datagrundlag!$M$174:$BN$257,54,FALSE) -> -500
D38: =IF(OR(Oplysninger!C22="Ingen eller andet",Oplysninger!C22=""),E8,IF(Oplysninger!D$10="lerjord",Oplysninger!C22&Oplysninger!J$11&" på lerjord",IF(Oplysninger!D$10="Sandjord med vanding",Oplysninger!C22&Oplysninger!J$11&" på sandjord med vanding",Oplysninger!C22&Oplysninger!J$11&" på sandjord uden vanding"))) -> Majs til helsæd med gylle på sandjord med vanding | F38: -6823 | G38: kr. pr. ha | O38: -6823 | Q38: =-VLOOKUP(D38,Datagrundlag!$M$174:$O$257,3,FALSE) -> -6823 | W38: 0 | Y38: =-VLOOKUP($D38,Datagrundlag!$M$174:$BN$257,26,FALSE) -> -653 | AA38: =-VLOOKUP($D38,Datagrundlag!$M$174:$BN$257,27,FALSE) -> -851 | AC38: =-VLOOKUP($D38,Datagrundlag!$M$174:$BN$257,28,FALSE) -> 0 | AE38: =-VLOOKUP($D38,Datagrundlag!$M$174:$BN$257,29,FALSE) -> 0 | AG38: =-VLOOKUP($D38,Datagrundlag!$M$174:$BN$257,30,FALSE) -> 0 | AI38: =-VLOOKUP($D38,Datagrundlag!$M$174:$BN$257,31,FALSE) -> -166 | AK38: =-VLOOKUP($D38,Datagrundlag!$M$174:$BN$257,32,FALSE) -> 0 | AM38: =-VLOOKUP($D38,Datagrundlag!$M$174:$BN$257,33,FALSE) -> 0 | AO38: =-VLOOKUP($D38,Datagrundlag!$M$174:$BN$257,34,FALSE) -> 0 | AQ38: =-VLOOKUP($D38,Datagrundlag!$M$174:$BN$257,35,FALSE) -> 0 | AS38: =-VLOOKUP($D38,Datagrundlag!$M$174:$BN$257,36,FALSE) -> -499 | AU38: =-VLOOKUP($D38,Datagrundlag!$M$174:$BN$257,37,FALSE) -> 0 | AW38: =-VLOOKUP($D38,Datagrundlag!$M$174:$BN$257,38,FALSE) -> 0 | AY38: =-VLOOKUP($D38,Datagrundlag!$M$174:$BN$257,39,FALSE) -> -165 | BA38: =-VLOOKUP($D38,Datagrundlag!$M$174:$BN$257,40,FALSE) -> 0 | BC38: =-VLOOKUP($D38,Datagrundlag!$M$174:$BN$257,41,FALSE) -> -360 | BE38: =-VLOOKUP($D38,Datagrundlag!$M$174:$BN$257,42,FALSE) -> 0 | BG38: =-VLOOKUP($D38,Datagrundlag!$M$174:$BN$257,43,FALSE) -> 0 | BI38: =-VLOOKUP($D38,Datagrundlag!$M$174:$BN$257,44,FALSE) -> 0 | BK38: =-VLOOKUP($D38,Datagrundlag!$M$174:$BN$257,45,FALSE) -> 0 | BM38: =-VLOOKUP($D38,Datagrundlag!$M$174:$BN$257,46,FALSE) -> -1804 | BO38: =-VLOOKUP($D38,Datagrundlag!$M$174:$BN$257,47,FALSE) -> 0 | BQ38: =-VLOOKUP($D38,Datagrundlag!$M$174:$BN$257,48,FALSE) -> 0 | BS38: =-VLOOKUP($D38,Datagrundlag!$M$174:$BN$257,49,FALSE) -> 0 | BU38: =-VLOOKUP($D38,Datagrundlag!$M$174:$BN$257,50,FALSE) -> 0 | BW38: =-VLOOKUP($D38,Datagrundlag!$M$174:$BN$257,51,FALSE) -> -1225 | BY38: =-VLOOKUP($D38,Datagrundlag!$M$174:$BN$257,52,FALSE) -> -250 | CA38: =-VLOOKUP($D38,Datagrundlag!$M$174:$BN$257,53,FALSE) -> -350 | CC38: =-VLOOKUP($D38,Datagrundlag!$M$174:$BN$257,54,FALSE) -> -500
D39: =IF(OR(Oplysninger!C23="Ingen eller andet",Oplysninger!C23=""),E9,IF(Oplysninger!D$10="lerjord",Oplysninger!C23&Oplysninger!J$11&" på lerjord",IF(Oplysninger!D$10="Sandjord med vanding",Oplysninger!C23&Oplysninger!J$11&" på sandjord med vanding",Oplysninger!C23&Oplysninger!J$11&" på sandjord uden vanding"))) -> Fabriksroer med gylle på sandjord med vanding | F39: 0 | G39: kr. pr. ha | O39: 0 | Q39: =-VLOOKUP(D39,Datagrundlag!$M$174:$O$257,3,FALSE) -> 0 | W39: 0 | Y39: =-VLOOKUP($D39,Datagrundlag!$M$174:$BN$257,26,FALSE) -> 0 | AA39: =-VLOOKUP($D39,Datagrundlag!$M$174:$BN$257,27,FALSE) -> 0 | AC39: =-VLOOKUP($D39,Datagrundlag!$M$174:$BN$257,28,FALSE) -> 0 | AE39: =-VLOOKUP($D39,Datagrundlag!$M$174:$BN$257,29,FALSE) -> 0 | AG39: =-VLOOKUP($D39,Datagrundlag!$M$174:$BN$257,30,FALSE) -> 0 | AI39: =-VLOOKUP($D39,Datagrundlag!$M$174:$BN$257,31,FALSE) -> 0 | AK39: =-VLOOKUP($D39,Datagrundlag!$M$174:$BN$257,32,FALSE) -> 0 | AM39: =-VLOOKUP($D39,Datagrundlag!$M$174:$BN$257,33,FALSE) -> 0 | AO39: =-VLOOKUP($D39,Datagrundlag!$M$174:$BN$257,34,FALSE) -> 0 | AQ39: =-VLOOKUP($D39,Datagrundlag!$M$174:$BN$257,35,FALSE) -> 0 | AS39: =-VLOOKUP($D39,Datagrundlag!$M$174:$BN$257,36,FALSE) -> 0 | AU39: =-VLOOKUP($D39,Datagrundlag!$M$174:$BN$257,37,FALSE) -> 0 | AW39: =-VLOOKUP($D39,Datagrundlag!$M$174:$BN$257,38,FALSE) -> 0 | AY39: =-VLOOKUP($D39,Datagrundlag!$M$174:$BN$257,39,FALSE) -> 0 | BA39: =-VLOOKUP($D39,Datagrundlag!$M$174:$BN$257,40,FALSE) -> 0 | BC39: =-VLOOKUP($D39,Datagrundlag!$M$174:$BN$257,41,FALSE) -> 0 | BE39: =-VLOOKUP($D39,Datagrundlag!$M$174:$BN$257,42,FALSE) -> 0 | BG39: =-VLOOKUP($D39,Datagrundlag!$M$174:$BN$257,43,FALSE) -> 0 | BI39: =-VLOOKUP($D39,Datagrundlag!$M$174:$BN$257,44,FALSE) -> 0 | BK39: =-VLOOKUP($D39,Datagrundlag!$M$174:$BN$257,45,FALSE) -> 0 | BM39: =-VLOOKUP($D39,Datagrundlag!$M$174:$BN$257,46,FALSE) -> 0 | BO39: =-VLOOKUP($D39,Datagrundlag!$M$174:$BN$257,47,FALSE) -> 0 | BQ39: =-VLOOKUP($D39,Datagrundlag!$M$174:$BN$257,48,FALSE) -> 0 | BS39: =-VLOOKUP($D39,Datagrundlag!$M$174:$BN$257,49,FALSE) -> 0 | BU39: =-VLOOKUP($D39,Datagrundlag!$M$174:$BN$257,50,FALSE) -> 0 | BW39: =-VLOOKUP($D39,Datagrundlag!$M$174:$BN$257,51,FALSE) -> 0 | BY39: =-VLOOKUP($D39,Datagrundlag!$M$174:$BN$257,52,FALSE) -> 0 | CA39: =-VLOOKUP($D39,Datagrundlag!$M$174:$BN$257,53,FALSE) -> 0 | CC39: =-VLOOKUP($D39,Datagrundlag!$M$174:$BN$257,54,FALSE) -> 0
D40: =IF(OR(Oplysninger!C24="Ingen eller andet",Oplysninger!C24=""),E10,IF(Oplysninger!D$10="lerjord",Oplysninger!C24&Oplysninger!J$11&" på lerjord",IF(Oplysninger!D$10="Sandjord med vanding",Oplysninger!C24&Oplysninger!J$11&" på sandjord med vanding",Oplysninger!C24&Oplysninger!J$11&" på sandjord uden vanding"))) -> Slætgræs 4 slæt med gylle på sandjord med vanding | F40: -9496 | G40: kr. pr. ha | O40: -9496 | Q40: =-VLOOKUP(D40,Datagrundlag!$M$174:$O$257,3,FALSE) -> -9496 | W40: 0 | Y40: =-VLOOKUP($D40,Datagrundlag!$M$174:$BN$257,26,FALSE) -> 0 | AA40: =-VLOOKUP($D40,Datagrundlag!$M$174:$BN$257,27,FALSE) -> -1350 | AC40: =-VLOOKUP($D40,Datagrundlag!$M$174:$BN$257,28,FALSE) -> 0 | AE40: =-VLOOKUP($D40,Datagrundlag!$M$174:$BN$257,29,FALSE) -> -143 | AG40: =-VLOOKUP($D40,Datagrundlag!$M$174:$BN$257,30,FALSE) -> 0 | AI40: =-VLOOKUP($D40,Datagrundlag!$M$174:$BN$257,31,FALSE) -> 0 | AK40: =-VLOOKUP($D40,Datagrundlag!$M$174:$BN$257,32,FALSE) -> 0 | AM40: =-VLOOKUP($D40,Datagrundlag!$M$174:$BN$257,33,FALSE) -> 0 | AO40: =-VLOOKUP($D40,Datagrundlag!$M$174:$BN$257,34,FALSE) -> 0 | AQ40: =-VLOOKUP($D40,Datagrundlag!$M$174:$BN$257,35,FALSE) -> 0 | AS40: =-VLOOKUP($D40,Datagrundlag!$M$174:$BN$257,36,FALSE) -> 0 | AU40: =-VLOOKUP($D40,Datagrundlag!$M$174:$BN$257,37,FALSE) -> -125 | AW40: =-VLOOKUP($D40,Datagrundlag!$M$174:$BN$257,38,FALSE) -> -1000 | AY40: =-VLOOKUP($D40,Datagrundlag!$M$174:$BN$257,39,FALSE) -> 0 | BA40: =-VLOOKUP($D40,Datagrundlag!$M$174:$BN$257,40,FALSE) -> -680 | BC40: =-VLOOKUP($D40,Datagrundlag!$M$174:$BN$257,41,FALSE) -> 0 | BE40: =-VLOOKUP($D40,Datagrundlag!$M$174:$BN$257,42,FALSE) -> 0 | BG40: =-VLOOKUP($D40,Datagrundlag!$M$174:$BN$257,43,FALSE) -> 0 | BI40: =-VLOOKUP($D40,Datagrundlag!$M$174:$BN$257,44,FALSE) -> 0 | BK40: =-VLOOKUP($D40,Datagrundlag!$M$174:$BN$257,45,FALSE) -> 0 | BM40: =-VLOOKUP($D40,Datagrundlag!$M$174:$BN$257,46,FALSE) -> -3348 | BO40: =-VLOOKUP($D40,Datagrundlag!$M$174:$BN$257,47,FALSE) -> 0 | BQ40: =-VLOOKUP($D40,Datagrundlag!$M$174:$BN$257,48,FALSE) -> 0 | BS40: =-VLOOKUP($D40,Datagrundlag!$M$174:$BN$257,49,FALSE) -> 0 | BU40: =-VLOOKUP($D40,Datagrundlag!$M$174:$BN$257,50,FALSE) -> 0 | BW40: =-VLOOKUP($D40,Datagrundlag!$M$174:$BN$257,51,FALSE) -> -1225 | BY40: =-VLOOKUP($D40,Datagrundlag!$M$174:$BN$257,52,FALSE) -> -375 | CA40: =-VLOOKUP($D40,Datagrundlag!$M$174:$BN$257,53,FALSE) -> -750 | CC40: =-VLOOKUP($D40,Datagrundlag!$M$174:$BN$257,54,FALSE) -> -500
B41: Maskinomk. inkl. arbejde (vægtet gennemsnit) | F41: =F35*Oplysninger!D19+F36*Oplysninger!D20+F37*Oplysninger!D21+F38*Oplysninger!D22+F39*Oplysninger!D23+F40*Oplysninger!D24 -> -7838.8 | G41: kr. pr. ha (vægtet) | O41: 0
B42: Maskinomkostninger inkl. arbejde (korrigeret for arbejdstid og kapacitet) | F42: =-Udskrift!E40 -> -6427.816 | G42: kr. pr. ha | O42: 0 | Y42: * For alle kalkuler angives en uspecificeret omkostning til ”øvrige opgaver” på ca. 500 kr. pr. ha pr. år. Denne post dækker omkostninger til f.eks.:
B43: Transportomkostninger: | D43: =IF(D11=0,"",D11) -> Byg | F43: =IF(Oplysninger!D$9=0,0,IF(I43="",O43,I43)) -> -148.7010309 | G43: kr. pr. ha | O43: =IF(D5&E5="",0,Q43) -> -148.7010309 | Q43: =-Transport!D$27*Oplysninger!D$30*Oplysninger!D$32/Oplysninger!D$31*2 -> -148.7010309 | S43: Henter fra Transportfane!! | T43: Kan ej specificeres via ØDB
D44: =IF(D12=0,"",D12) -> Hvede | F44: =IF(Oplysninger!D$9=0,0,IF(I44="",O44,I44)) -> -154.8865979 | G44: kr. pr. ha | K44: Gå til trans- portomkost-ninger | O44: -154.8865979 | Q44: =-Transport!F$27*Oplysninger!D$30*Oplysninger!D$32/Oplysninger!D$31*2 -> -154.8865979
D45: Raps | F45: =IF(Oplysninger!D$9=0,0,IF(I45="",O45,I45)) -> -202.2680412 | G45: kr. pr. ha | O45: -202.2680412 | Q45: =-Transport!H$27*Oplysninger!D$30*Oplysninger!D$32/Oplysninger!D$31*2 -> -202.2680412 | Y45: • Tilsyn
D46: Majs til helsæd | F46: =IF(Oplysninger!D$9=0,0,IF(I46="",O46,I46)) -> -224.742268 | G46: kr. pr. ha | O46: -224.742268 | Q46: =-Transport!J$27*Oplysninger!D$30*Oplysninger!D$32/Oplysninger!D$31*2 -> -224.742268 | Y46: • Stensamling
D47: Fabriksroer | F47: =IF(Oplysninger!D$9=0,0,IF(I47="",O47,I47)) -> 0 | G47: kr. pr. ha | O47: 0 | Q47: =-Transport!L$27*Oplysninger!D$30*Oplysninger!D$32/Oplysninger!D$31*2 -> 0 | Y47: • Lugning af flyvehavre
D48: Slætgræs 4 slæt | F48: =IF(Oplysninger!D$9=0,0,IF(I48="",O48,I48)) -> 0 | G48: kr. pr. ha | O48: 0 | Q48: =-Transport!N$27*Oplysninger!D$30*Oplysninger!D$32/Oplysninger!D$31*2 -> 0 | Y48: • Forgæves kørsel (når det regner, lige som skulle i gang)
B49: Transportomkostninger (vægtet gennemsnit) | F49: =F43*Oplysninger!D19+F44*Oplysninger!D20+F45*Oplysninger!D21+F46*Oplysninger!D22+F47*Oplysninger!D23+F48*Oplysninger!D24 -> -168.556701 | G49: kr. pr. ha (vægtet) | O49: 0
B50: Rest til ejer ekskl. andre omk. og EU-støtte | F50: =F33+F42+F49 -> 605.177299 | G50: kr. pr. ha | O50: 0 | Y50: ** Ud over ovennævnte poster er der altid omkostninger til maskiner og arbejdstid, som ikke kan henføres direkte til den enkelte afgrøde. Der kan være tale om:
B51: Andre omkostninger ** | F51: =IF(I51="",O51,I51) -> -500 | G51: kr. pr. ha | I51: -500 | O51: 0
B52: Rest til ejer ekskl. EU-støtte | F52: =F50+F51 -> 105.177299 | G52: kr. pr. ha | O52: 0
B53: EU-støtte | F53: =IF(I53="",O53,I53) -> 1900 | G53: kr. pr. ha | H53: =IFERROR(IFERROR(VLOOKUP(S53,'Input regnskab'!$A$1:$G$10000,7,FALSE),0)/IFERROR(VLOOKUP(T53,'Input regnskab'!$A$1:$G$10000,7,FALSE),0),"") -> 2455.192733 | I53: 1900 | O53: 0 | S53: afk_stotte_mv | T53: dyrk_areal | Y53: • Kalkning
B54: evt omkostning til forpagtningsafgift | F54: =IF(I54="",O54,I54) -> -4000 | G54: kr. pr. ha | H54: =IFERROR((IFERROR(VLOOKUP(S54,'Input regnskab'!$A$1:$G$10000,7,FALSE),0)+IFERROR(VLOOKUP(T54,'Input regnskab'!$A$1:$G$10000,7,FALSE),0)+IFERROR(VLOOKUP(U54,'Input regnskab'!$A$1:$G$10000,7,FALSE),0))/IFERROR(VLOOKUP(V54,'Input regnskab'!$A$1:$G$10000,7,FALSE),0),"") -> -3935.251376 | I54: -4000 | O54: 0 | S54: 815 | T54: 7900 | U54: 7901 | V54: 3911 | Y54: • Brug af glyphosat
B55: Fortjeneste til ejer inkl. EU-støtte | F55: =F52+F53+F54 -> -1994.822701 | G55: kr. pr. ha | O55: 0 | Y55: • Klipning af hegn
O56: 0 | Y56: • Renovering mv. af dræn
Y57: • Vedligeholdelse af veje
B58: * For alle kalkuler angives en uspecificeret omkostning til ”øvrige opgaver” på ca. 500 kr. pr. ha pr. år. Denne post dækker omkostninger til f.eks.: | Y58: • Generel driftsledelse af den samlede markdrift
B59: • Tilsyn | Y59: • Osv.
B60: • Stensamling | Y60: Disse poster, som ikke indgår i den enkelte kalkule, skal medregnes, når man skal beregne de samlede arbejds- og maskinomkostninger på bedriften. Beløbet kan variere meget fra bedrift til bedrift, men i omegnen af 5-10 pct. af de omkostninger, der er totalt på de enkelte afgrøder, er ikke ualmindeligt.
B61: • Lugning af flyvehavre
B62: • Forgæves kørsel (når det regner, lige som skulle i gang)
B64: ** Ud over ovennævnte poster er der altid omkostninger til maskiner og arbejdstid, som ikke kan henføres direkte til den enkelte afgrøde. Der kan være tale om:
B65: • Kalkning
B66: • Brug af glyphosat
B67: • Klipning af hegn
B68: • Renovering mv. af dræn
B69: • Vedligeholdelse af veje
B70: • Generel driftsledelse af den samlede markdrift
B71: • Osv.
B72: Disse poster, som ikke indgår i den enkelte kalkule, skal medregnes, når man skal beregne de samlede arbejds- og maskinomkostninger på bedriften. Beløbet kan variere meget fra bedrift til bedrift, men i omegnen af 5-10 pct. af de omkostninger, der er totalt på de enkelte afgrøder, er ikke ualmindeligt.
B74: Påvirkning af likviditeten
B75: Vær opmærksom på en eventuel likvid periodeforskydning mellem betaling af forpagtningsafgift, omkostninger til drift af markerne og indtægterne fra afgrøderne.

Sheet Udskrift
B2: Resultat og sammenligning
B4: =Beregninger!B23 -> Bruttoudbytte i alt (vægtet gennemsnit) | F4: =IF(B4=Beregninger!B23,Beregninger!F23,"") -> 7585
B5: =Beregninger!B32 -> Stykomkostninger (vægtet gennemsnit)* | F5: =IF(B5=Beregninger!B32,Beregninger!F32,"") -> -1770.95
B6: =Beregninger!B33 -> Dækningsbidrag | F6: =IF(B6=Beregninger!B33,Beregninger!F33,"") -> 7201.55
B7: =Beregninger!B42 -> Maskinomkostninger inkl. arbejde (korrigeret for arbejdstid og kapacitet) | F7: =IF(B7=Beregninger!B42,Beregninger!F42,"") -> -6427.816
B8: =Beregninger!B49 -> Transportomkostninger (vægtet gennemsnit) | F8: =IF(B8=Beregninger!B49,Beregninger!F49,"") -> -168.556701
B9: =Beregninger!B51 -> Andre omkostninger ** | F9: =IF(B9=Beregninger!B51,Beregninger!F51,"") -> -500
B10: =Beregninger!B52 -> Rest til ejer ekskl. EU-støtte | F10: =IF(B10=Beregninger!B52,Beregninger!F52,"") -> 105.177299
B11: =Beregninger!B53 -> EU-støtte | F11: =IF(B11=Beregninger!B53,Beregninger!F53,"") -> 1900
B12: =Beregninger!B54 -> evt omkostning til forpagtningsafgift | F12: =IF(B12=Beregninger!B54,Beregninger!F54,"") -> -4000
B13: =Beregninger!B55 -> Fortjeneste til ejer inkl. EU-støtte | F13: =IF(B13=Beregninger!B55,Beregninger!F55,"") -> -1994.822701
B15: Afgrødefordeling | D15: Vælg sammenligningsgrupper til graf:
D16: Driftsgren | E16: Husdyrproduktion
B17: =IF(H20<=50,"For få observationer","") ->  | D17: Jordbonitet | E17: JB2&4
D18: Landsdel | E18: Nordjylland
H20: =IFERROR(+SUMIFS(Tabel1[x.Antal],Tabel1[Landsdel],$E$18,Tabel1[FTO_jbx],$E$17,Tabel1[type],$E$16),"") -> 391
B24: Fremstillingspris pr. afgrødeenhed (halmindtægt, stykomkostninger, maskin- og arbejdsomkostninger inkl. transport, andre omkostninger, EU-støtte og forpagtningsafgift) | E24: Ikke korrigeret for ledig arbejdstid og fri kapacitet | F24: Korrigeret for ledig arbejdstid og fri kapacitet
B25: =IF(Beregninger!E5="",Beregninger!D5,Beregninger!E5) -> Vårbyg på sandjord med vanding med gylle | E25: =IF(Beregninger!F5=0,"",(-Beregninger!F26-Beregninger!F35-Beregninger!F43-Beregninger!$F$51-Beregninger!$F$53-Beregninger!$F$54-(Datagrundlag!N164*Oplysninger!D$28/1000))/Beregninger!F5) -> 154.2783505 | F25: =IF(Beregninger!F5=0,"", (IF(AND(Beregninger!I35="",Oplysninger!D12="Ja"),Beregninger!F35, IF(AND(Beregninger!I35="",Oplysninger!D12="Nej",Oplysninger!D13="Ja",Oplysninger!D15="Ja"),-Beregninger!F35*(Datagrundlag!P33+Datagrundlag!P35*Oplysninger!D14/Datagrundlag!M17), IF(AND(Beregninger!I35="",Oplysninger!D12="Nej",Oplysninger!D13="Ja",Oplysninger!D15="Nej"),-Beregninger!F35*(Datagrundlag!P33+Datagrundlag!P35*(Oplysninger!D14/Datagrundlag!M17)+Datagrundlag!P34), IF(AND(Beregninger!I35="",Oplysninger!D12="Nej",Oplysninger!D13="Nej",Oplysninger!D15="Ja"),-Beregninger!F35*(Datagrundlag!P33+Datagrundlag!P35), IF(AND(Beregninger!I35="",Oplysninger!D13="Nej",Oplysninger!D15="Nej"),-Beregninger!F35,-Beregninger!I35)))))-Beregninger!F26-Beregninger!F43-Beregninger!F51-Beregninger!F53-Beregninger!F54-(Datagrundlag!N164*Oplysninger!D28/1000))/Beregninger!F5) -> 132.3753505
B26: =IF(Beregninger!E6="",Beregninger!D6,Beregninger!E6) -> Vinterhvede på sandjord med vanding med gylle | E26: =IF(Beregninger!F6=0,"",(-Beregninger!F27-Beregninger!F36-Beregninger!F44-Beregninger!$F$51-Beregninger!$F$53-Beregninger!$F$54-(Datagrundlag!N165*Oplysninger!D$28/1000))/Beregninger!F6) -> 131.5581738 | F26: =IF(Beregninger!F6=0,"", (IF(AND(Beregninger!I36="",Oplysninger!D12="Ja"),Beregninger!F36, IF(AND(Beregninger!I36="",Oplysninger!D12="Nej",Oplysninger!D13="ja",Oplysninger!D15="Ja"),-Beregninger!F36*(Datagrundlag!P33+Datagrundlag!P35*Oplysninger!D14/Datagrundlag!M17), IF(AND(Beregninger!I36="",Oplysninger!D12="Nej",Oplysninger!D13="Ja",Oplysninger!D15="Nej"),-Beregninger!F36*(Datagrundlag!P33+Datagrundlag!P35*(Oplysninger!D14/Datagrundlag!M17)+Datagrundlag!P34), IF(AND(Beregninger!I36="",Oplysninger!D12="Nej",Oplysninger!D13="Nej",Oplysninger!D15="Ja"),-Beregninger!F36*(Datagrundlag!P33+Datagrundlag!P35), IF(AND(Beregninger!I36="",Oplysninger!D13="Nej",Oplysninger!D15="Nej"),-Beregninger!F36,-Beregninger!I36)))))-Beregninger!F27-Beregninger!F44-Beregninger!F51-Beregninger!F53-Beregninger!F54-(Datagrundlag!N165*Oplysninger!D28/1000))/Beregninger!F6) -> 113.4103166
B27: =IF(Beregninger!E7="",Beregninger!D7,Beregninger!E7) -> Vinterraps på sandjord med vanding med gylle | E27: =IF(Beregninger!F7=0,"",(-Beregninger!F28-Beregninger!F37-Beregninger!F45-Beregninger!$F$51-Beregninger!$F$53-Beregninger!$F$54-(Datagrundlag!N166*Oplysninger!D$28/1000))/Beregninger!F7) -> 323.556701 | F27: =IF(Beregninger!F7=0,"",(IF(AND(Beregninger!I37="",Oplysninger!D12="Ja"),Beregninger!F37, IF(AND(Beregninger!I37="",Oplysninger!D12="Nej",Oplysninger!D13="ja",Oplysninger!D15="Ja"),-Beregninger!F37*(Datagrundlag!P33+Datagrundlag!P35*Oplysninger!D14/Datagrundlag!M17), IF(AND(Beregninger!I37="",Oplysninger!D12="Nej",Oplysninger!D13="Ja",Oplysninger!D15="Nej"),-Beregninger!F37*(Datagrundlag!P33+Datagrundlag!P35*(Oplysninger!D14/Datagrundlag!M17)+Datagrundlag!P34), IF(AND(Beregninger!I37="",Oplysninger!D12="Nej",Oplysninger!D13="Nej",Oplysninger!D15="Ja"),-Beregninger!F37*(Datagrundlag!P33+Datagrundlag!P35), IF(AND(Beregninger!I37="",Oplysninger!D13="Nej",Oplysninger!D15="Nej"),-Beregninger!F37,-Beregninger!I37)))))-Beregninger!F28-Beregninger!F45-Beregninger!F51-Beregninger!F53-Beregninger!F54-(Datagrundlag!N166*Oplysninger!D28/1000))/Beregninger!F7) -> 289.554701
B28: =IF(Beregninger!E8="",Beregninger!D8,Beregninger!E8) -> Majs til helsæd på sandjord med vanding med gylle | E28: =IF(Beregninger!F8=0,"",(-Beregninger!F29-Beregninger!F38-Beregninger!F46-Beregninger!$F$51-Beregninger!$F$53-Beregninger!$F$54-(Datagrundlag!N167*Oplysninger!D$28/1000))/Beregninger!F8) -> 1.049130701 | F28: =IF(Beregninger!F8=0,"",(IF(AND(Beregninger!I38="",Oplysninger!D12="Ja"),Beregninger!F38, IF(AND(Beregninger!I38="",Oplysninger!D12="Nej",Oplysninger!D13="ja",Oplysninger!D15="Ja"),-Beregninger!F38*(Datagrundlag!P33+Datagrundlag!P35*Oplysninger!D14/Datagrundlag!M17), IF(AND(Beregninger!I38="",Oplysninger!D12="Nej",Oplysninger!D13="Ja",Oplysninger!D15="Nej"),-Beregninger!F38*(Datagrundlag!P33+Datagrundlag!P35*(Oplysninger!D14/Datagrundlag!M17)+Datagrundlag!P34), IF(AND(Beregninger!I38="",Oplysninger!D12="Nej",Oplysninger!D13="Nej",Oplysninger!D15="Ja"),-Beregninger!F38*(Datagrundlag!P33+Datagrundlag!P35), IF(AND(Beregninger!I38="",Oplysninger!D13="Nej",Oplysninger!D15="Nej"),-Beregninger!F38,-Beregninger!I38)))))-Beregninger!F29-Beregninger!F46-Beregninger!F51-Beregninger!F53-Beregninger!F54-(Datagrundlag!N167*Oplysninger!D28/1000))/Beregninger!F8) -> 0.9450510397
B29: =IF(Beregninger!E9="",Beregninger!D9,Beregninger!E9) -> Fabriksroer på sandjord med vanding med gylle | E29: =IF(Beregninger!F9=0,"",(-Beregninger!F30-Beregninger!F39-Beregninger!F47-Beregninger!$F$51-Beregninger!$F$53-Beregninger!$F$54-(Datagrundlag!N168*Oplysninger!D$28/1000))/Beregninger!F9) ->  | F29: =IF(Beregninger!F9=0,"",(IF(AND(Beregninger!I39="",Oplysninger!D12="Ja"),Beregninger!F39, IF(AND(Beregninger!I39="",Oplysninger!D12="Nej",Oplysninger!D13="ja",Oplysninger!D15="Ja"),-Beregninger!F39*(Datagrundlag!P33+Datagrundlag!P35*Oplysninger!D14/Datagrundlag!M17), IF(AND(Beregninger!I39="",Oplysninger!D12="Nej",Oplysninger!D13="Ja",Oplysninger!D15="Nej"),-Beregninger!F39*(Datagrundlag!P33+Datagrundlag!P35*(Oplysninger!D14/Datagrundlag!M17)+Datagrundlag!P34), IF(AND(Beregninger!I39="",Oplysninger!D12="Nej",Oplysninger!D13="Nej",Oplysninger!D15="Ja"),-Beregninger!F39*(Datagrundlag!P33+Datagrundlag!P35), IF(AND(Beregninger!I39="",Oplysninger!D13="Nej",Oplysninger!D15="Nej"),-Beregninger!F39,-Beregninger!I39)))))-Beregninger!F30-Beregninger!F47-Beregninger!F51-Beregninger!F53-Beregninger!F54-(Datagrundlag!N168*Oplysninger!D28/1000))/Beregninger!F9) -> 
B30: =IF(Beregninger!E10="",Beregninger!D10,Beregninger!E10) -> Slætgræs 4 slæt på sandjord med vanding med gylle | E30: =IF(Beregninger!F10=0,"",(-Beregninger!F31-Beregninger!F40-Beregninger!F48-Beregninger!$F$51-Beregninger!$F$53-Beregninger!$F$54-(Datagrundlag!N169*Oplysninger!D$28/1000))/Beregninger!F10) -> 1.321584158 | F30: =IF(Beregninger!F10=0,"",(IF(AND(Beregninger!I40="",Oplysninger!D12="Ja"),Beregninger!F40, IF(AND(Beregninger!I40="",Oplysninger!D12="Nej",Oplysninger!D13="ja",Oplysninger!D15="Ja"),-Beregninger!F40*(Datagrundlag!P33+Datagrundlag!P35*Oplysninger!D14/Datagrundlag!M17), IF(AND(Beregninger!I40="",Oplysninger!D12="Nej",Oplysninger!D13="Ja",Oplysninger!D15="Nej"),-Beregninger!F40*(Datagrundlag!P33+Datagrundlag!P35*(Oplysninger!D14/Datagrundlag!M17)+Datagrundlag!P34), IF(AND(Beregninger!I40="",Oplysninger!D12="Nej",Oplysninger!D13="Nej",Oplysninger!D15="Ja"),-Beregninger!F40*(Datagrundlag!P33+Datagrundlag!P35), IF(AND(Beregninger!I40="",Oplysninger!D13="Nej",Oplysninger!D15="Nej"),-Beregninger!F40,-Beregninger!I40)))))-Beregninger!F31-Beregninger!F48-Beregninger!F51-Beregninger!F53-Beregninger!F54-(Datagrundlag!N169*Oplysninger!D28/1000))/Beregninger!F10) -> 1.152348515
B33: Prod.omk. i alt uden korektion | C33: Prod.omk. i alt med korektion | D33: Maskinomk. pr. afgrøde | E33: Maskinomk. i alt
B34: =E25*Beregninger!F5*Oplysninger!D19 -> 2314.175258 | C34: =F25*Beregninger!F5*Oplysninger!D19 -> 1985.630258 | D34: =IF(Beregninger!F5=0,"",F25-(-Beregninger!F26-Beregninger!F43-Beregninger!F51-Beregninger!F53-Beregninger!F54-(Datagrundlag!N164*Oplysninger!D28/1000))/Beregninger!F5) -> 99.78033333 | E34: =IF(Beregninger!F5=0,"",D34*Oplysninger!D19*Beregninger!F5) -> 1496.705
B35: =E26*Beregninger!F6*Oplysninger!D20 -> 5525.443299 | C35: =F26*Beregninger!F6*Oplysninger!D20 -> 4763.233299 | D35: =IF(Beregninger!F6=0,"",F26-(-Beregninger!F27-Beregninger!F44-Beregninger!F51-Beregninger!F53-Beregninger!F54-(Datagrundlag!N165*Oplysninger!D28/1000))/Beregninger!F6) -> 82.67357143 | E35: =IF(Beregninger!F6=0,"",D35*Oplysninger!D20*Beregninger!F6) -> 3472.29
B36: =E27*Beregninger!F7*Oplysninger!D21 -> 1294.226804 | C36: =F27*Beregninger!F7*Oplysninger!D21 -> 1158.218804 | D36: =IF(Beregninger!F7=0,"",F27-(-Beregninger!F28-Beregninger!F45-Beregninger!F51-Beregninger!F53-Beregninger!F54-(Datagrundlag!N166*Oplysninger!D28/1000))/Beregninger!F7) -> 154.898 | E36: =IF(Beregninger!F7=0,"",D36*Oplysninger!D21*Beregninger!F7) -> 619.592
B37: =E28*Beregninger!F8*Oplysninger!D22 -> 1856.96134 | C37: =F28*Beregninger!F8*Oplysninger!D22 -> 1672.74034 | D37: =IF(Beregninger!F8=0,"",F28-(-Beregninger!F29-Beregninger!F46-Beregninger!F51-Beregninger!F53-Beregninger!F54-(Datagrundlag!N167*Oplysninger!D28/1000))/Beregninger!F8) -> 0.474140678 | E37: =IF(Beregninger!F8=0,"",D37*Oplysninger!D22*Beregninger!F8) -> 839.229
B38: =E29*Beregninger!F9*Oplysninger!D23 ->  | C38: =F29*Beregninger!F9*Oplysninger!D23 ->  | D38: =IF(Beregninger!F9=0,"",F29-(-Beregninger!F30-Beregninger!F47-Beregninger!F51-Beregninger!F53-Beregninger!F54-(Datagrundlag!N168*Oplysninger!D28/1000))/Beregninger!F9) ->  | E38: =IF(Beregninger!F9=0,"",D38*Oplysninger!D23*Beregninger!F9) -> 
B39: =E30*Beregninger!F10*Oplysninger!D24 -> 0 | C39: =F30*Beregninger!F10*Oplysninger!D24 -> 0 | D39: =IF(Beregninger!F10=0,"",F30-(-Beregninger!F31-Beregninger!F48-Beregninger!F51-Beregninger!F53-Beregninger!F54-(Datagrundlag!N169*Oplysninger!D28/1000))/Beregninger!F10) -> 0.7709623762 | E39: =IF(Beregninger!F10=0,"",D39*Oplysninger!D24*Beregninger!F10) -> 0
B40: =SUM(B34:B39) ->  | C40: =SUM(C34:C39) ->  | E40: =SUM(E34:E39) -> 6427.816
B41: =Beregninger!F32+Beregninger!F41+Beregninger!F49 -> -9778.306701 | C41: =Beregninger!F32+Beregninger!F42+Beregninger!F49 -> -8367.322701

Sheet Transport
B1: Beregning af tid og omkostninger til transport til nye areal
B3: Antal transporter til og fra forpagtet areal | C3: =IF(Oplysninger!$C19="Ingen eller andet",Beregninger!D11,Oplysninger!$C19) -> Vårbyg | E3: =IF(Oplysninger!$C20="Ingen eller andet",Beregninger!D12,Oplysninger!$C20) -> Vinterhvede | G3: =IF(Oplysninger!$C21="Ingen eller andet",Beregninger!D13,Oplysninger!$C21) -> Vinterraps | I3: =IF(Oplysninger!$C22="Ingen eller andet",Beregninger!D14,Oplysninger!$C22) -> Majs til helsæd | K3: =IF(Oplysninger!$C23="Ingen eller andet",Beregninger!D15,Oplysninger!$C23) -> Fabriksroer | M3: =IF(Oplysninger!$C24="Ingen eller andet",Beregninger!D16,Oplysninger!$C24) -> Slætgræs 4 slæt
C4: =_xlfn.CONCAT("Antal ha: ",TEXT(Oplysninger!$D9*Oplysninger!$D19,"#.##0,0")) -> Antal ha: 24,3 | E4: =_xlfn.CONCAT("Antal ha: ",TEXT(Oplysninger!$D9*Oplysninger!$D20,"#.##0,0")) -> Antal ha: 48,5 | G4: =_xlfn.CONCAT("Antal ha: ",TEXT(Oplysninger!$D9*Oplysninger!$D21,"#.##0,0")) -> Antal ha: 9,7 | I4: =_xlfn.CONCAT("Antal ha: ",TEXT(Oplysninger!$D9*Oplysninger!$D22,"#.##0,0")) -> Antal ha: 14,6 | K4: =_xlfn.CONCAT("Antal ha: ",TEXT(Oplysninger!$D9*Oplysninger!$D23,"#.##0,0")) -> Antal ha: 0,0 | M4: =_xlfn.CONCAT("Antal ha: ",TEXT(Oplysninger!$D9*Oplysninger!$D24,"#.##0,0")) -> Antal ha: 0,0 | R4: Budgetkalkuler (opdateres når behov opstår)
C5: Egen vurdering (alle ha) | D5: Budget-kalkule (alle ha) | E5: Egen vurdering (alle ha) | F5: Budget-kalkule (alle ha) | G5: Egen vurdering (alle ha) | H5: Budget-kalkule (alle ha) | I5: Egen vurdering (alle ha) | J5: Budget-kalkule (alle ha) | K5: Egen vurdering (alle ha) | L5: Budget-kalkule (alle ha) | M5: Egen vurdering (alle ha) | N5: Budget-kalkule (alle ha) | R5: Vårbyg | S5: Vinterrug | T5: Havre | U5: Vinterhvede | V5: Vinterraps | W5: Vinterbyg | X5: Majs til helsæd | Y5: Fabriksroer | Z5: Stivelseskartofler | AA5: Læggekartofler | AB5: Spisekartofler | AC5: Proceskartofler | AD5: Alm. rajgræs | AE5: Slætgræs 4 slæt | AF5: Ingen eller andet
B6: Plov og jordpakker (1) | D6: =IF(C6="",ROUNDUP(HLOOKUP(Oplysninger!$C$19,Transport!$R$5:$AF$26,2,)*Oplysninger!$D$9*Oplysninger!$D$19/$I31,0),0) -> 2 | F6: =IF(E6="",ROUNDUP(HLOOKUP(Oplysninger!$C$20,Transport!$R$5:$AF$26,2,)*Oplysninger!$D$9*Oplysninger!$D$20/$I31,0),0) -> 3 | H6: =IF(G6="",ROUNDUP(HLOOKUP(Oplysninger!$C$21,Transport!$R$5:$AF$26,2,)*Oplysninger!$D$9*Oplysninger!$D$21/$I31,0),0) -> 1 | J6: =IF(I6="",ROUNDUP(HLOOKUP(Oplysninger!$C$22,Transport!$R$5:$AF$26,2,)*Oplysninger!$D$9*Oplysninger!$D$22/$I31,0),0) -> 1 | L6: =IF(K6="",ROUNDUP(HLOOKUP(Oplysninger!$C$23,Transport!$R$5:$AF$26,2,)*Oplysninger!$D$9*Oplysninger!$D$23/$I31,0),0) -> 0 | N6: =IF(M6="",ROUNDUP(HLOOKUP(Oplysninger!$C$24,Transport!$R$5:$AF$26,2,)*Oplysninger!$D$9*Oplysninger!$D$24/$I31,0),0) -> 0 | P6: Plov og jordpakker | R6: 1 | S6: 1 | T6: 1 | U6: 1 | V6: 1 | W6: 1 | X6: 1 | Y6: 1 | Z6: 1 | AA6: 1 | AB6: 1 | AC6: 1
B7: Stensamling | D7: =IF(C7="",HLOOKUP(Oplysninger!$C$19,Transport!$R$5:$AF$26,3,),0) -> 0 | F7: =IF(E7="",HLOOKUP(Oplysninger!$C$20,Transport!$R$5:$AF$26,3,),0) -> 0 | H7: =IF(G7="",HLOOKUP(Oplysninger!$C$21,Transport!$R$5:$AF$26,3,),0) -> 0 | J7: =IF(I7="",HLOOKUP(Oplysninger!$C$22,Transport!$R$5:$AF$26,3,),0) -> 0 | L7: =IF(K7="",HLOOKUP(Oplysninger!$C$23,Transport!$R$5:$AF$26,3,),0) -> 0 | N7: =IF(M7="",HLOOKUP(Oplysninger!$C$24,Transport!$R$5:$AF$26,3,),0) -> 0 | P7: Stensamling
B8: Tromle (2) | D8: =IF(C8="",ROUNDUP(HLOOKUP(Oplysninger!$C$19,Transport!$R$5:$AF$26,4,)*Oplysninger!$D$9*Oplysninger!$D$19/$I32,0),0) -> 0 | F8: =IF(E8="",ROUNDUP(HLOOKUP(Oplysninger!$C$20,Transport!$R$5:$AF$26,4,)*Oplysninger!$D$9*Oplysninger!$D$20/$I32,0),0) -> 0 | H8: =IF(G8="",ROUNDUP(HLOOKUP(Oplysninger!$C$21,Transport!$R$5:$AF$26,4,)*Oplysninger!$D$9*Oplysninger!$D$21/$I32,0),0) -> 0 | J8: =IF(I8="",ROUNDUP(HLOOKUP(Oplysninger!$C$22,Transport!$R$5:$AF$26,4,)*Oplysninger!$D$9*Oplysninger!$D$22/$I32,0),0) -> 1 | L8: =IF(K8="",ROUNDUP(HLOOKUP(Oplysninger!$C$23,Transport!$R$5:$AF$26,4,)*Oplysninger!$D$9*Oplysninger!$D$23/$I32,0),0) -> 0 | N8: =IF(M8="",ROUNDUP(HLOOKUP(Oplysninger!$C$24,Transport!$R$5:$AF$26,4,)*Oplysninger!$D$9*Oplysninger!$D$24/$I32,0),0) -> 0 | P8: Tromle | X8: =X7+1 -> 1 | AC8: =AC7+1 -> 1
B9: Kombihavning og såning (3) | D9: =IF(C9="",ROUNDUP(HLOOKUP(Oplysninger!$C$19,Transport!$R$5:$AF$26,5,)*Oplysninger!$D$9*Oplysninger!$D$19/$I33,0),0) -> 1 | F9: =IF(E9="",ROUNDUP(HLOOKUP(Oplysninger!$C$20,Transport!$R$5:$AF$26,5,)*Oplysninger!$D$9*Oplysninger!$D$20/$I33,0),0) -> 1 | H9: =IF(G9="",ROUNDUP(HLOOKUP(Oplysninger!$C$21,Transport!$R$5:$AF$26,5,)*Oplysninger!$D$9*Oplysninger!$D$21/$I33,0),0) -> 1 | J9: =IF(I9="",ROUNDUP(HLOOKUP(Oplysninger!$C$22,Transport!$R$5:$AF$26,5,)*Oplysninger!$D$9*Oplysninger!$D$22/$I33,0),0) -> 0 | L9: =IF(K9="",ROUNDUP(HLOOKUP(Oplysninger!$C$23,Transport!$R$5:$AF$26,5,)*Oplysninger!$D$9*Oplysninger!$D$23/$I33,0),0) -> 0 | N9: =IF(M9="",ROUNDUP(HLOOKUP(Oplysninger!$C$24,Transport!$R$5:$AF$26,5,)*Oplysninger!$D$9*Oplysninger!$D$24/$I33,0),0) -> 0 | P9: Kombihavning og såning | R9: 1 | S9: 1 | T9: 1 | U9: 1 | V9: 1 | W9: 1 | Y9: 1 | Z9: 1 | AA9: =AA8+1 -> 1 | AB9: =AB8+1 -> 1 | AC9: 1 | AD9: 1
B10: Udsæd (4) | D10: =IF(C10="",ROUNDUP(200*Oplysninger!$D$9*Oplysninger!$D19/$I34,0),0) -> 1 | F10: =IF(E10="",ROUNDUP(200*Oplysninger!$D$9*Oplysninger!$D20/$I34,0),0) -> 1 | H10: =IF(G10="",ROUNDUP(200*Oplysninger!$D$9*Oplysninger!$D21/$I34,0),0) -> 1 | I10: 0 | J10: =IF(I10="",ROUNDUP(200*Oplysninger!$D$9*Oplysninger!$D22/$I34,0),0) -> 0 | L10: =IF(K10="",ROUNDUP(200*Oplysninger!$D$9*Oplysninger!$D23/$I34,0),0) -> 0 | N10: =IF(M10="",ROUNDUP(200*Oplysninger!$D$9*Oplysninger!$D24/$I34,0),0) -> 0 | P10: Udsæd*
B11: Gødningsspreder (5) | D11: =IF(C11="",IF(Oplysninger!$D$11="Ja",HLOOKUP(Oplysninger!$C$19,Transport!$R$5:$AF$26,8,FALSE),HLOOKUP(Oplysninger!$C$19,Transport!$R$5:$AF$26,7,FALSE)),0) -> 1 | F11: =IF(E11="",IF(Oplysninger!$D$11="Ja",HLOOKUP(Oplysninger!$C$20,Transport!$R$5:$AF$26,8,FALSE),HLOOKUP(Oplysninger!$C$20,Transport!$R$5:$AF$26,7,FALSE)),0) -> 1 | H11: =IF(G11="",IF(Oplysninger!$D$11="Ja",HLOOKUP(Oplysninger!$C$21,Transport!$R$5:$AF$26,8,FALSE),HLOOKUP(Oplysninger!$C$21,Transport!$R$5:$AF$26,7,FALSE)),0) -> 1 | J11: =IF(I11="",IF(Oplysninger!$D$11="Ja",HLOOKUP(Oplysninger!$C$22,Transport!$R$5:$AF$26,8,FALSE),HLOOKUP(Oplysninger!$C$22,Transport!$R$5:$AF$26,7,FALSE)),0) -> 0 | L11: =IF(K11="",IF(Oplysninger!$D$11="Ja",HLOOKUP(Oplysninger!$C$23,Transport!$R$5:$AF$26,8,FALSE),HLOOKUP(Oplysninger!$C$23,Transport!$R$5:$AF$26,7,FALSE)),0) -> 0 | N11: =IF(M11="",IF(Oplysninger!$D$11="Ja",HLOOKUP(Oplysninger!$C$24,Transport!$R$5:$AF$26,8,FALSE),HLOOKUP(Oplysninger!$C$24,Transport!$R$5:$AF$26,7,FALSE)),0) -> 2 | P11: Gødningsspreder (u/gylle) | R11: 1 | S11: 2 | T11: 1 | U11: 2 | V11: 2 | W11: 1 | X11: 1 | Y11: 1 | Z11: 1 | AA11: 1 | AB11: 1 | AC11: 1 | AD11: 1 | AE11: 3
B12: Gødning (6) | D12: =IF(C12="",(ROUNDUP(250*Oplysninger!$D$9*Oplysninger!$D19/$I36,0)*D11),0) -> 1 | F12: =IF(E12="",(ROUNDUP(250*Oplysninger!$D$9*Oplysninger!$D20/$I36,0)*F11),0) -> 1 | H12: =IF(G12="",(ROUNDUP(250*Oplysninger!$D$9*Oplysninger!$D21/$I36,0)*H11),0) -> 1 | J12: =IF(I12="",(ROUNDUP(250*Oplysninger!$D$9*Oplysninger!$D22/$I36,0)*J11),0) -> 0 | L12: =IF(K12="",(ROUNDUP(250*Oplysninger!$D$9*Oplysninger!$D23/$I36,0)*L11),0) -> 0 | N12: =IF(M12="",(ROUNDUP(250*Oplysninger!$D$9*Oplysninger!$D24/$I36,0)*N11),0) -> 0 | P12: Gødningsspreder (m/gylle) | R12: 1 | S12: 1 | U12: 1 | V12: 1 | W12: 1 | AD12: 1 | AE12: 2
B13: Gylle (7) | D13: =IF(C13="",IF(AND(HLOOKUP(Oplysninger!$C$19,Transport!$R$5:$AF$31,27,FALSE)="Ja",Oplysninger!$D$11="Ja"),ROUNDUP(Oplysninger!$D$9*Oplysninger!$D$19*30/$I37,1)*HLOOKUP(Oplysninger!$C$19,Transport!$R$5:$AF$31,10,FALSE),0),0) -> 29.1 | F13: =IF(E13="",IF(AND(HLOOKUP(Oplysninger!$C$20,Transport!$R$5:$AF$31,27,FALSE)="Ja",Oplysninger!$D$11="Ja"),ROUNDUP(Oplysninger!$D$9*Oplysninger!$D$20*30/$I37,1)*HLOOKUP(Oplysninger!$C$20,Transport!$R$5:$AF$31,10,FALSE),0),0) -> 58.2 | H13: =IF(G13="",IF(AND(HLOOKUP(Oplysninger!$C$21,Transport!$R$5:$AF$31,27,FALSE)="Ja",Oplysninger!$D$11="Ja"),ROUNDUP(Oplysninger!$D$9*Oplysninger!$D$21*30/$I37,1)*HLOOKUP(Oplysninger!$C$21,Transport!$R$5:$AF$31,10,FALSE),0),0) -> 11.7 | J13: =IF(I13="",IF(AND(HLOOKUP(Oplysninger!$C$22,Transport!$R$5:$AF$31,27,FALSE)="Ja",Oplysninger!$D$11="Ja"),ROUNDUP(Oplysninger!$D$9*Oplysninger!$D$22*30/$I37,1)*HLOOKUP(Oplysninger!$C$22,Transport!$R$5:$AF$31,10,FALSE),0),0) -> 17.5 | L13: =IF(K13="",IF(AND(HLOOKUP(Oplysninger!$C$23,Transport!$R$5:$AF$31,27,FALSE)="Ja",Oplysninger!$D$11="Ja"),ROUNDUP(Oplysninger!$D$9*Oplysninger!$D$23*30/$I37,1)*HLOOKUP(Oplysninger!$C$23,Transport!$R$5:$AF$31,10,FALSE),0),0) -> 0 | N13: =IF(M13="",IF(AND(HLOOKUP(Oplysninger!$C$24,Transport!$R$5:$AF$31,27,FALSE)="Ja",Oplysninger!$D$11="Ja"),ROUNDUP(Oplysninger!$D$9*Oplysninger!$D$24*30/$I37,1)*HLOOKUP(Oplysninger!$C$24,Transport!$R$5:$AF$31,10,FALSE),0),0) -> 0 | P13: Gødning**
B14: Sprøjte (8) | D14: =IF(C14="",ROUNDUP(IF(Oplysninger!$D$9*Oplysninger!$D$19<=$I38,HLOOKUP(Oplysninger!$C$19,Transport!$R$5:$AF$26,11,),HLOOKUP(Oplysninger!$C$19,Transport!$R$5:$AF$26,11,)*2),0),0) -> 3 | F14: =IF(E14="",ROUNDUP(IF(Oplysninger!$D$9*Oplysninger!$D$20<=$I38,HLOOKUP(Oplysninger!$C$20,Transport!$R$5:$AF$26,11,),HLOOKUP(Oplysninger!$C$20,Transport!$R$5:$AF$26,11,)*2),0),0) -> 5 | H14: =IF(G14="",ROUNDUP(IF(Oplysninger!$D$9*Oplysninger!$D$21<=$I38,HLOOKUP(Oplysninger!$C$21,Transport!$R$5:$AF$26,11,),HLOOKUP(Oplysninger!$C$21,Transport!$R$5:$AF$26,11,)*2),0),0) -> 6 | J14: =IF(I14="",ROUNDUP(IF(Oplysninger!$D$9*Oplysninger!$D$22<=$I38,HLOOKUP(Oplysninger!$C$22,Transport!$R$5:$AF$26,11,),HLOOKUP(Oplysninger!$C$22,Transport!$R$5:$AF$26,11,)*2),0),0) -> 2 | L14: =IF(K14="",ROUNDUP(IF(Oplysninger!$D$9*Oplysninger!$D$23<=$I38,HLOOKUP(Oplysninger!$C$23,Transport!$R$5:$AF$26,11,),HLOOKUP(Oplysninger!$C$23,Transport!$R$5:$AF$26,11,)*2),0),0) -> 6 | N14: =IF(M14="",ROUNDUP(IF(Oplysninger!$D$9*Oplysninger!$D$24<=$I38,HLOOKUP(Oplysninger!$C$24,Transport!$R$5:$AF$26,11,),HLOOKUP(Oplysninger!$C$24,Transport!$R$5:$AF$26,11,)*2),0),0) -> 0 | P14: Gylle*** | R14: 1 | S14: 1 | T14: 1 | U14: 1 | V14: 1 | W14: 1 | X14: 1 | Y14: 1 | Z14: 1 | AA14: 1 | AB14: 1 | AC14: 1 | AD14: 1 | AE14: 2
B15: Supplerende vand til planteværn (9) | D15: =IF(C15="",(ROUNDUP(150*Oplysninger!$D$9*Oplysninger!$D19/$I39,0)*D14),0) -> 3 | F15: =IF(E15="",(ROUNDUP(150*Oplysninger!$D$9*Oplysninger!$D20/$I39,0)*F14),0) -> 10 | H15: =IF(G15="",(ROUNDUP(150*Oplysninger!$D$9*Oplysninger!$D21/$I39,0)*H14),0) -> 6 | J15: =IF(I15="",(ROUNDUP(150*Oplysninger!$D$9*Oplysninger!$D22/$I39,0)*J14),0) -> 2 | L15: =IF(K15="",(ROUNDUP(150*Oplysninger!$D$9*Oplysninger!$D23/$I39,0)*L14),0) -> 0 | N15: =IF(M15="",(ROUNDUP(150*Oplysninger!$D$9*Oplysninger!$D24/$I39,0)*N14),0) -> 0 | P15: Sprøjte | R15: 3 | S15: 4 | T15: 2 | U15: 5 | V15: 6 | W15: 4 | X15: 2 | Y15: 6 | Z15: 15 | AA15: 12 | AB15: 10 | AC15: 5 | AD15: 4
B16: Høstmaskine (10) | D16: =IF(C16="",ROUNDUP(IF(Oplysninger!$D$9*Oplysninger!$D$19<=$I40,HLOOKUP(Oplysninger!$C$19,Transport!$R$5:$AF$26,13,),HLOOKUP(Oplysninger!$C$19,Transport!$R$5:$AF$26,13,)*2),0),0) -> 1 | F16: =IF(E16="",ROUNDUP(IF(Oplysninger!$D$9*Oplysninger!$D$20<=$I40,HLOOKUP(Oplysninger!$C$20,Transport!$R$5:$AF$26,13,),HLOOKUP(Oplysninger!$C$20,Transport!$R$5:$AF$26,13,)*2),0),0) -> 1 | H16: =IF(G16="",ROUNDUP(IF(Oplysninger!$D$9*Oplysninger!$D$21<=$I40,HLOOKUP(Oplysninger!$C$21,Transport!$R$5:$AF$26,13,),HLOOKUP(Oplysninger!$C$21,Transport!$R$5:$AF$26,13,)*2),0),0) -> 1 | J16: =IF(I16="",ROUNDUP(IF(Oplysninger!$D$9*Oplysninger!$D$22<=$I40,HLOOKUP(Oplysninger!$C$22,Transport!$R$5:$AF$26,13,),HLOOKUP(Oplysninger!$C$22,Transport!$R$5:$AF$26,13,)*2),0),0) -> 1 | L16: =IF(K16="",ROUNDUP(IF(Oplysninger!$D$9*Oplysninger!$D$23<=$I40,HLOOKUP(Oplysninger!$C$23,Transport!$R$5:$AF$26,13,),HLOOKUP(Oplysninger!$C$23,Transport!$R$5:$AF$26,13,)*2),0),0) -> 1 | N16: =IF(M16="",ROUNDUP(IF(Oplysninger!$D$9*Oplysninger!$D$24<=$I40,HLOOKUP(Oplysninger!$C$24,Transport!$R$5:$AF$26,13,),HLOOKUP(Oplysninger!$C$24,Transport!$R$5:$AF$26,13,)*2),0),0) -> 4 | P16: Supplerende vand til planteværn****
B17: Hjemkørsel afgrøde (11) | D17: =IF(C17="",ROUNDUP(HLOOKUP(Oplysninger!$C$19,Transport!$R$5:$AF$30,25,)*Oplysninger!$D$9*Oplysninger!$D19/$I41,0),0) -> 10 | F17: =IF(E17="",ROUNDUP(HLOOKUP(Oplysninger!$C$20,Transport!$R$5:$AF$30,25,)*Oplysninger!$D$9*Oplysninger!$D20/$I41,0),0) -> 26 | H17: =IF(G17="",ROUNDUP(HLOOKUP(Oplysninger!$C$21,Transport!$R$5:$AF$30,25,)*Oplysninger!$D$9*Oplysninger!$D21/$I41,0),0) -> 3 | J17: =IF(I17="",ROUNDUP(HLOOKUP(Oplysninger!$C$22,Transport!$R$5:$AF$30,25,)*Oplysninger!$D$9*Oplysninger!$D22/$I41,0),0) -> 29 | L17: =IF(K17="",ROUNDUP(HLOOKUP(Oplysninger!$C$23,Transport!$R$5:$AF$30,25,)*Oplysninger!$D$9*Oplysninger!$D23/$I41,0),0) -> 0 | N17: =IF(M17="",ROUNDUP(HLOOKUP(Oplysninger!$C$24,Transport!$R$5:$AF$30,25,)*Oplysninger!$D$9*Oplysninger!$D24/$I41,0),0) -> 0 | P17: Høstmaskine | R17: 1 | S17: =S16+1 -> 1 | T17: 1 | U17: 1 | V17: 1 | W17: 1 | X17: 1 | Y17: 1 | Z17: 1 | AA17: 1 | AB17: 1 | AC17: 1 | AD17: 1 | AE17: 4
B18: Halmpresser (12) | D18: =IF(C18="",ROUNDUP(HLOOKUP(Oplysninger!$C$19,Transport!$R$5:$AF$26,15,)*Oplysninger!$D$9*Oplysninger!$D$19/$I42,0),0) -> 1 | F18: =IF(E18="",ROUNDUP(HLOOKUP(Oplysninger!$C$20,Transport!$R$5:$AF$26,15,)*Oplysninger!$D$9*Oplysninger!$D$20/$I42,0),0) -> 1 | H18: =IF(G18="",ROUNDUP(HLOOKUP(Oplysninger!$C$21,Transport!$R$5:$AF$26,15,)*Oplysninger!$D$9*Oplysninger!$D$21/$I42,0),0) -> 0 | J18: =IF(I18="",ROUNDUP(HLOOKUP(Oplysninger!$C$22,Transport!$R$5:$AF$26,15,)*Oplysninger!$D$9*Oplysninger!$D$22/$I42,0),0) -> 0 | L18: =IF(K18="",ROUNDUP(HLOOKUP(Oplysninger!$C$23,Transport!$R$5:$AF$26,15,)*Oplysninger!$D$9*Oplysninger!$D$23/$I42,0),0) -> 0 | N18: =IF(M18="",ROUNDUP(HLOOKUP(Oplysninger!$C$24,Transport!$R$5:$AF$26,15,)*Oplysninger!$D$9*Oplysninger!$D$24/$I42,0),0) -> 0 | P18: Hjemkørsel afgrøde*****
B19: Hjemkørsel halm (13) | D19: =IF(C19="",ROUNDUP(HLOOKUP(Oplysninger!$C$19,Transport!$R$5:$AF$30,26,)*Oplysninger!$D$9*Oplysninger!$D19/$I43,0),0) -> 7 | F19: =IF(E19="",ROUNDUP(HLOOKUP(Oplysninger!$C$20,Transport!$R$5:$AF$30,26,)*Oplysninger!$D$9*Oplysninger!$D20/$I43,0),0) -> 17 | H19: =IF(G19="",ROUNDUP(HLOOKUP(Oplysninger!$C$21,Transport!$R$5:$AF$30,26,)*Oplysninger!$D$9*Oplysninger!$D21/$I43,0),0) -> 0 | J19: =IF(I19="",ROUNDUP(HLOOKUP(Oplysninger!$C$22,Transport!$R$5:$AF$30,26,)*Oplysninger!$D$9*Oplysninger!$D22/$I43,0),0) -> 0 | L19: =IF(K19="",ROUNDUP(HLOOKUP(Oplysninger!$C$23,Transport!$R$5:$AF$30,26,)*Oplysninger!$D$9*Oplysninger!$D23/$I43,0),0) -> 0 | N19: =IF(M19="",ROUNDUP(HLOOKUP(Oplysninger!$C$24,Transport!$R$5:$AF$30,26,)*Oplysninger!$D$9*Oplysninger!$D24/$I43,0),0) -> 0 | P19: Halmpresser | R19: 1 | S19: =S18+1 -> 1 | T19: =T18+1 -> 1 | U19: =U18+1 -> 1 | W19: =W18+1 -> 1 | AD19: =AD18+1 -> 1
B20: Stubharve med såmaskine efterafgrøde | D20: =IF(C20="",HLOOKUP(Oplysninger!$C$19,Transport!$R$5:$AF$26,17,),0) -> 0 | F20: =IF(E20="",HLOOKUP(Oplysninger!$C$20,Transport!$R$5:$AF$26,17,),0) -> 0 | H20: =IF(G20="",HLOOKUP(Oplysninger!$C$21,Transport!$R$5:$AF$26,17,),0) -> 0 | J20: =IF(I20="",HLOOKUP(Oplysninger!$C$22,Transport!$R$5:$AF$26,17,),0) -> 0 | L20: =IF(K20="",HLOOKUP(Oplysninger!$C$23,Transport!$R$5:$AF$26,17,),0) -> 0 | N20: =IF(M20="",HLOOKUP(Oplysninger!$C$24,Transport!$R$5:$AF$26,17,),0) -> 0 | P20: Hjemkørsel halm******
B21: Såbedsharvning/efterharvning | D21: =IF(C21="",HLOOKUP(Oplysninger!$C$19,Transport!$R$5:$AF$26,18,),0) -> 0 | F21: =IF(E21="",HLOOKUP(Oplysninger!$C$20,Transport!$R$5:$AF$26,18,),0) -> 0 | H21: =IF(G21="",HLOOKUP(Oplysninger!$C$21,Transport!$R$5:$AF$26,18,),0) -> 0 | J21: =IF(I21="",HLOOKUP(Oplysninger!$C$22,Transport!$R$5:$AF$26,18,),0) -> 1 | L21: =IF(K21="",HLOOKUP(Oplysninger!$C$23,Transport!$R$5:$AF$26,18,),0) -> 2 | N21: =IF(M21="",HLOOKUP(Oplysninger!$C$24,Transport!$R$5:$AF$26,18,),0) -> 0 | P21: Stubharve med såmaskine efterafgrøde
B22: Skårlægning | D22: =IF(C22="",HLOOKUP(Oplysninger!$C$19,Transport!$R$5:$AF$26,19,),0) -> 0 | F22: =IF(E22="",HLOOKUP(Oplysninger!$C$20,Transport!$R$5:$AF$26,19,),0) -> 0 | H22: =IF(G22="",HLOOKUP(Oplysninger!$C$21,Transport!$R$5:$AF$26,19,),0) -> 0 | J22: =IF(I22="",HLOOKUP(Oplysninger!$C$22,Transport!$R$5:$AF$26,19,),0) -> 0 | L22: =IF(K22="",HLOOKUP(Oplysninger!$C$23,Transport!$R$5:$AF$26,19,),0) -> 0 | N22: =IF(M22="",HLOOKUP(Oplysninger!$C$24,Transport!$R$5:$AF$26,19,),0) -> 4 | P22: Såbedsharvning/efterharvning | X22: 1 | Y22: 2 | Z22: 1 | AA22: 1 | AB22: 1 | AC22: 3
B23: Sammenrivning | D23: =IF(C23="",HLOOKUP(Oplysninger!$C$19,Transport!$R$5:$AF$26,20,),0) -> 0 | F23: =IF(E23="",HLOOKUP(Oplysninger!$C$20,Transport!$R$5:$AF$26,20,),0) -> 0 | H23: =IF(G23="",HLOOKUP(Oplysninger!$C$21,Transport!$R$5:$AF$26,20,),0) -> 0 | J23: =IF(I23="",HLOOKUP(Oplysninger!$C$22,Transport!$R$5:$AF$26,20,),0) -> 0 | L23: =IF(K23="",HLOOKUP(Oplysninger!$C$23,Transport!$R$5:$AF$26,20,),0) -> 0 | N23: =IF(M23="",HLOOKUP(Oplysninger!$C$24,Transport!$R$5:$AF$26,20,),0) -> 4 | P23: Skårlægning | AE23: 4
B24: Radrensning/hypning | D24: =IF(C24="",HLOOKUP(Oplysninger!$C$19,Transport!$R$5:$AF$26,21,),0) -> 0 | F24: =IF(E24="",HLOOKUP(Oplysninger!$C$20,Transport!$R$5:$AF$26,21,),0) -> 0 | H24: =IF(G24="",HLOOKUP(Oplysninger!$C$21,Transport!$R$5:$AF$26,21,),0) -> 0 | J24: =IF(I24="",HLOOKUP(Oplysninger!$C$22,Transport!$R$5:$AF$26,21,),0) -> 0 | L24: =IF(K24="",HLOOKUP(Oplysninger!$C$23,Transport!$R$5:$AF$26,21,),0) -> 1 | N24: =IF(M24="",HLOOKUP(Oplysninger!$C$24,Transport!$R$5:$AF$26,21,),0) -> 0 | P24: Sammenrivning | AE24: 4
B25: Stenstrenglægning | D25: =IF(C25="",HLOOKUP(Oplysninger!$C$19,Transport!$R$5:$AF$26,22,),0) -> 0 | F25: =IF(E25="",HLOOKUP(Oplysninger!$C$20,Transport!$R$5:$AF$26,22,),0) -> 0 | H25: =IF(G25="",HLOOKUP(Oplysninger!$C$21,Transport!$R$5:$AF$26,22,),0) -> 0 | J25: =IF(I25="",HLOOKUP(Oplysninger!$C$22,Transport!$R$5:$AF$26,22,),0) -> 0 | L25: =IF(K25="",HLOOKUP(Oplysninger!$C$23,Transport!$R$5:$AF$26,22,),0) -> 0 | N25: =IF(M25="",HLOOKUP(Oplysninger!$C$24,Transport!$R$5:$AF$26,22,),0) -> 0 | P25: Radrensning/hypning | Y25: 1 | AA25: 2 | AB25: 1 | AC25: 1
B26: I alt antal kørsler uden returkørsel | D26: =SUM(C6:D25) -> 60.1 | F26: =SUM(E6:F25) -> 125.2 | H26: =SUM(G6:H25) -> 32.7 | J26: =SUM(I6:J25) -> 54.5 | L26: =SUM(K6:L25) -> 10 | N26: =SUM(M6:N25) -> 14 | P26: Stenstrenglægning | Z26: 1 | AA26: 1 | AB26: 1
B27: I alt antal kørsler pr. ha (gns) | D27: =IFERROR(D26/(Oplysninger!$D$9*Oplysninger!$D$19),0) -> 2.478350515 | F27: =IFERROR(F26/(Oplysninger!$D$9*Oplysninger!$D$20),0) -> 2.581443299 | H27: =IFERROR(H26/(Oplysninger!$D$9*Oplysninger!$D$21),0) -> 3.371134021 | J27: =IFERROR(J26/(Oplysninger!$D$9*Oplysninger!$D$22),0) -> 3.745704467 | L27: =IFERROR(L26/(Oplysninger!$D$9*Oplysninger!$D$23),0) -> 0 | N27: =IFERROR(N26/(Oplysninger!$D$9*Oplysninger!$D$24),0) -> 0
B28: Omkostning pr. ha
P29: Afgrøde (kg. pr. ha) | R29: =IF(Transport!$D13="Nej",VLOOKUP(Oplysninger!$D$10,Transport!$P$44:$AF$46,3,FALSE),VLOOKUP(Oplysninger!$D$10,Transport!$P$50:$AF$52,3,FALSE)) -> 6000 | S29: =IF(Transport!D13="Nej",VLOOKUP(Oplysninger!$D$10,Transport!$P$44:$AF$46,4,FALSE),VLOOKUP(Oplysninger!$D$10,Transport!$P$50:$AF$52,4,FALSE)) -> 6600 | T29: =IF(Transport!D13="Nej",VLOOKUP(Oplysninger!$D$10,Transport!$P$44:$AF$46,5,FALSE),VLOOKUP(Oplysninger!$D$10,Transport!$P$50:$AF$52,5,FALSE)) -> 5900 | U29: =IF(Transport!D13="Nej",VLOOKUP(Oplysninger!$D$10,Transport!$P$44:$AF$46,6,FALSE),VLOOKUP(Oplysninger!$D$10,Transport!$P$50:$AF$52,6,FALSE)) -> 8400 | V29: =IF(Transport!D13="Nej",VLOOKUP(Oplysninger!$D$10,Transport!$P$44:$AF$46,7,FALSE),VLOOKUP(Oplysninger!$D$10,Transport!$P$50:$AF$52,7,FALSE)) -> 4000 | W29: =IF(Transport!D13="Nej",VLOOKUP(Oplysninger!$D$10,Transport!$P$44:$AF$46,8,FALSE),VLOOKUP(Oplysninger!$D$10,Transport!$P$50:$AF$52,8,FALSE)) -> 6600 | X29: =IF(Transport!D13="Nej",VLOOKUP(Oplysninger!$D$10,Transport!$P$44:$AF$46,9,FALSE),VLOOKUP(Oplysninger!$D$10,Transport!$P$50:$AF$52,9,FALSE))/X33*X34/22*16 -> 30823.0303 | Y29: =IF(Transport!D13="Nej",VLOOKUP(Oplysninger!$D$10,Transport!$P$44:$AF$46,11,FALSE),VLOOKUP(Oplysninger!$D$10,Transport!$P$50:$AF$52,11,FALSE))*100 -> 0 | Z29: =IF(Transport!D13="Nej",VLOOKUP(Oplysninger!$D$10,Transport!$P$44:$AF$46,12,FALSE),VLOOKUP(Oplysninger!$D$10,Transport!$P$50:$AF$52,12,FALSE))*100 -> 59500 | AA29: =IF(Transport!D13="Nej",VLOOKUP(Oplysninger!$D$10,Transport!$P$44:$AF$46,13,FALSE),VLOOKUP(Oplysninger!$D$10,Transport!$P$50:$AF$52,13,FALSE))*100 -> 32500 | AB29: =IF(Transport!D13="Nej",VLOOKUP(Oplysninger!$D$10,Transport!$P$44:$AF$46,14,FALSE),VLOOKUP(Oplysninger!$D$10,Transport!$P$50:$AF$52,14,FALSE))*100 -> 37900 | AC29: =IF(Transport!D13="Nej",VLOOKUP(Oplysninger!$D$10,Transport!$P$44:$AF$46,15,FALSE),VLOOKUP(Oplysninger!$D$10,Transport!$P$50:$AF$52,15,FALSE))*100 -> 0 | AD29: =IF(Transport!D13="Nej",VLOOKUP(Oplysninger!$D$10,Transport!$P$44:$AF$46,16,FALSE),VLOOKUP(Oplysninger!$D$10,Transport!$P$50:$AF$52,16,FALSE)) -> 1500 | AE29: =IF(Transport!D13="Nej",VLOOKUP(Oplysninger!$D$10,Transport!$P$44:$AF$46,10,FALSE),VLOOKUP(Oplysninger!$D$10,Transport!$P$50:$AF$52,10,FALSE))/AE33*AE34/22*16 -> 24135.06494
I30: Valg af kapacitet | P30: Halm (kg. pr. ha) | R30: =IF(Transport!$D13="Nej",VLOOKUP(Oplysninger!$D$10,Transport!$P$47:$AF$49,3,FALSE),VLOOKUP(Oplysninger!$D$10,Transport!$P$53:$AF$55,3,FALSE)) -> 3100 | S30: =IF(Transport!$D13="Nej",VLOOKUP(Oplysninger!$D$10,Transport!$P$47:$AF$49,4,FALSE),VLOOKUP(Oplysninger!$D$10,Transport!$P$53:$AF$55,4,FALSE)) -> 4300 | T30: =IF(Transport!$D13="Nej",VLOOKUP(Oplysninger!$D$10,Transport!$P$47:$AF$49,5,FALSE),VLOOKUP(Oplysninger!$D$10,Transport!$P$53:$AF$55,5,FALSE)) -> 3200 | U30: =IF(Transport!$D13="Nej",VLOOKUP(Oplysninger!$D$10,Transport!$P$47:$AF$49,6,FALSE),VLOOKUP(Oplysninger!$D$10,Transport!$P$53:$AF$55,6,FALSE)) -> 4000 | V30: =IF(Transport!$D13="Nej",VLOOKUP(Oplysninger!$D$10,Transport!$P$47:$AF$49,7,FALSE),VLOOKUP(Oplysninger!$D$10,Transport!$P$53:$AF$55,7,FALSE)) -> 0 | W30: =IF(Transport!$D13="Nej",VLOOKUP(Oplysninger!$D$10,Transport!$P$47:$AF$49,8,FALSE),VLOOKUP(Oplysninger!$D$10,Transport!$P$53:$AF$55,8,FALSE)) -> 3000 | X30: =IF(Transport!$D13="Nej",VLOOKUP(Oplysninger!$D$10,Transport!$P$47:$AF$49,9,FALSE),VLOOKUP(Oplysninger!$D$10,Transport!$P$53:$AF$55,9,FALSE)) -> 0 | Y30: =IF(Transport!$D13="Nej",VLOOKUP(Oplysninger!$D$10,Transport!$P$47:$AF$49,11,FALSE),VLOOKUP(Oplysninger!$D$10,Transport!$P$53:$AF$55,11,FALSE))*100 -> 0 | Z30: =IF(Transport!$D13="Nej",VLOOKUP(Oplysninger!$D$10,Transport!$P$47:$AF$49,12,FALSE),VLOOKUP(Oplysninger!$D$10,Transport!$P$53:$AF$55,12,FALSE))*100 -> 0 | AA30: =IF(Transport!$D13="Nej",VLOOKUP(Oplysninger!$D$10,Transport!$P$47:$AF$49,13,FALSE),VLOOKUP(Oplysninger!$D$10,Transport!$P$53:$AF$55,13,FALSE))*100 -> 0 | AB30: =IF(Transport!$D13="Nej",VLOOKUP(Oplysninger!$D$10,Transport!$P$47:$AF$49,14,FALSE),VLOOKUP(Oplysninger!$D$10,Transport!$P$53:$AF$55,14,FALSE))*100 -> 0 | AC30: =IF(Transport!$D13="Nej",VLOOKUP(Oplysninger!$D$10,Transport!$P$47:$AF$49,15,FALSE),VLOOKUP(Oplysninger!$D$10,Transport!$P$53:$AF$55,15,FALSE))*100 -> 0 | AD30: =IF(Transport!$D13="Nej",VLOOKUP(Oplysninger!$D$10,Transport!$P$47:$AF$49,16,FALSE),VLOOKUP(Oplysninger!$D$10,Transport!$P$53:$AF$55,16,FALSE)) -> 5300 | AE30: =IF(Transport!$D13="Nej",VLOOKUP(Oplysninger!$D$10,Transport!$P$47:$AF$49,10,FALSE),VLOOKUP(Oplysninger!$D$10,Transport!$P$53:$AF$55,10,FALSE)) -> 0
B31: ="1. Pløjning pr. dag estimeret til maksimalt "&I31&" ha" -> 1. Pløjning pr. dag estimeret til maksimalt 20 ha | I31: 20 | M31: Gå tilbage til fane med beregning | P31: Gylle "ja" eller "nej" | R31: Ja | S31: Ja | T31: Ja | U31: Ja | V31: Ja | W31: Ja | X31: Ja | Y31: Nej | Z31: Nej | AA31: Nej | AB31: Nej | AC31: Nej | AD31: Ja | AE31: Ja
B32: 2. Tromling pr. dag estimeret til maksimalt 100 ha | I32: 100
B33: ="3. Kombihavning og såning pr. dag estimeret til maksimalt "&I33&" ha" -> 3. Kombihavning og såning pr. dag estimeret til maksimalt 100 ha | I33: 100 | U33: Majs helsæd (FEN) | X33: 12000 | AE33: 9800
B34: ="4. 200 kg. udsæd pr. ha transporteret på "&I34& " kg vogn" -> 4. 200 kg. udsæd pr. ha transporteret på 16000 kg vogn | I34: 16000 | U34: Majs helsæd (kg. grønmasse) | X34: 43100 | AE34: 32200
B35: 5. Gødningsspredning pr. dag estimeret til maksimalt 250 ha | U35: Kilde. Grovfoderseminar 2016 (HSL) | AE35: Kilde. Grovfoderseminar 2016 (HSL)
B36: ="6. 250 kg gødning pr. ha transporteret på en "&I36&" kg vogn" -> 6. 250 kg gødning pr. ha transporteret på en 16000 kg vogn | I36: 16000
B37: ="7. 30 ton gylle pr. ha udlagt fra en "&I37&" ton vogn" -> 7. 30 ton gylle pr. ha udlagt fra en 25 ton vogn | I37: 25
B38: ="8. Sprøjtning pr. dag estimeret til maksimalt "&I38&" ha" -> 8. Sprøjtning pr. dag estimeret til maksimalt 150 ha | I38: 150
B39: ="9. 150 liter supplerende vand til planteværn transporteret i en "&I39&" liter vogn" -> 9. 150 liter supplerende vand til planteværn transporteret i en 4000 liter vogn | I39: 4000
B40: ="10. Høst pr. dag estimeret til maksimalt "&I40&" ha" -> 10. Høst pr. dag estimeret til maksimalt 100 ha | I40: 100
B41: ="11. Afgrøde kørt hjem i en "&I41& " kg vogn (korn og andre afgrøder), eller en 22000 kg vogn (grovfoder)" -> 11. Afgrøde kørt hjem i en 16000 kg vogn (korn og andre afgrøder), eller en 22000 kg vogn (grovfoder) | I41: 16000
B42: ="12. Halmpresning pr. dag estimeret til maksimalt "&I42&" ha" -> 12. Halmpresning pr. dag estimeret til maksimalt 100 ha | I42: 100
B43: ="13. Halm kørt hjem på en "&I43&" kg vogn" -> 13. Halm kørt hjem på en 12000 kg vogn | I43: 12000 | P43: Tabel med afgrødeudbytter og halmudbytter (opdateres automatisk fra datagrundlaget)
P44: lerjord | Q44: afgrøde | R44: =Datagrundlag!$N70*100 -> 6700 | S44: =Datagrundlag!$N71*100 -> 7900 | T44: =Datagrundlag!$N72*100 -> 6000 | U44: =Datagrundlag!$N73*100 -> 10000 | V44: =Datagrundlag!$N74*100 -> 4500 | W44: =Datagrundlag!$N75*100 -> 8200 | X44: =Datagrundlag!$N76 -> 11700 | Y44: =Datagrundlag!$N77 -> 8850 | Z44: =Datagrundlag!$N78*100 -> 0 | AA44: =Datagrundlag!$N79*100 -> 0 | AB44: =Datagrundlag!$N80*100 -> 0 | AC44: =Datagrundlag!$N81*100 -> 0 | AD44: =Datagrundlag!$N82*100 -> 0 | AE44: =Datagrundlag!$N83*100 -> 0
P45: sandjord uden vanding | Q45: afgrøde | R45: =Datagrundlag!$N84*100 -> 4700 | S45: =Datagrundlag!$N85*100 -> 5300 | T45: =Datagrundlag!$N86*100 -> 4600 | U45: =Datagrundlag!$N87*100 -> 6300 | V45: =Datagrundlag!$N88*100 -> 3200 | W45: =Datagrundlag!$N89*100 -> 5800 | X45: =Datagrundlag!$N90 -> 10750 | Y45: =Datagrundlag!$N91 -> 8300 | Z45: =Datagrundlag!$N92*100 -> 0 | AA45: =Datagrundlag!$N93*100 -> 0 | AB45: =Datagrundlag!$N94*100 -> 0 | AC45: =Datagrundlag!$N95*100 -> 0 | AD45: =Datagrundlag!$N96*100 -> 0 | AE45: =Datagrundlag!$N97*100 -> 0
P46: sandjord med vanding | Q46: afgrøde | R46: =Datagrundlag!$N98*100 -> 6000 | S46: =Datagrundlag!$N99*100 -> 6600 | T46: =Datagrundlag!$N100*100 -> 5900 | U46: =Datagrundlag!$N101*100 -> 8400 | V46: =Datagrundlag!$N102*100 -> 4000 | W46: =Datagrundlag!$N103*100 -> 6600 | X46: =Datagrundlag!$N104 -> 11800 | Y46: =Datagrundlag!$N105 -> 10100 | Z46: =Datagrundlag!$N106*100 -> 0 | AA46: =Datagrundlag!$N107*100 -> 0 | AB46: =Datagrundlag!$N108*100 -> 0 | AC46: =Datagrundlag!$N109*100 -> 0 | AD46: =Datagrundlag!$N110*100 -> 0 | AE46: =Datagrundlag!$N111*100 -> 0
P47: lerjord | Q47: halm | R47: =Datagrundlag!$O70 -> 3500 | S47: =Datagrundlag!$O71 -> 5400 | T47: =Datagrundlag!$O72 -> 3300 | U47: =Datagrundlag!$O73 -> 4800 | V47: =Datagrundlag!$O74 -> 0 | W47: =Datagrundlag!$O75 -> 3900 | X47: =Datagrundlag!$O76 -> 0 | Y47: =Datagrundlag!$O77 -> 0 | Z47: =Datagrundlag!$O78 -> 0 | AA47: =Datagrundlag!$O79 -> 0 | AB47: =Datagrundlag!$O80 -> 0 | AC47: =Datagrundlag!$O81 -> 0 | AD47: =Datagrundlag!$O82 -> 0 | AE47: =Datagrundlag!$O83 -> 0
P48: sandjord uden vanding | Q48: halm | R48: =Datagrundlag!$O84 -> 2400 | S48: =Datagrundlag!$O85 -> 3400 | T48: =Datagrundlag!$O86 -> 2500 | U48: =Datagrundlag!$O87 -> 2900 | V48: =Datagrundlag!$O88 -> 0 | W48: =Datagrundlag!$O89 -> 2600 | X48: =Datagrundlag!$O90 -> 0 | Y48: =Datagrundlag!$O91 -> 0 | Z48: =Datagrundlag!$O92 -> 0 | AA48: =Datagrundlag!$O93 -> 0 | AB48: =Datagrundlag!$O94 -> 0 | AC48: =Datagrundlag!$O95 -> 0 | AD48: =Datagrundlag!$O96 -> 0 | AE48: =Datagrundlag!$O97 -> 0
P49: sandjord med vanding | Q49: halm | R49: =Datagrundlag!$O98 -> 3100 | S49: =Datagrundlag!$O99 -> 4300 | T49: =Datagrundlag!$O100 -> 3200 | U49: =Datagrundlag!$O101 -> 4000 | V49: =Datagrundlag!$O102 -> 0 | W49: =Datagrundlag!$O103 -> 3000 | X49: =Datagrundlag!$O104 -> 0 | Y49: =Datagrundlag!$O105 -> 0 | Z49: =Datagrundlag!$O106 -> 0 | AA49: =Datagrundlag!$O107 -> 0 | AB49: =Datagrundlag!$O108 -> 0 | AC49: =Datagrundlag!$O109 -> 0 | AD49: =Datagrundlag!$O110 -> 0 | AE49: =Datagrundlag!$O111 -> 0
P50: lerjord | Q50: afgrøde m gylle | R50: =Datagrundlag!$N112*100 -> 6700 | S50: =Datagrundlag!$N113*100 -> 7900 | T50: =Datagrundlag!$N114*100 -> 6000 | U50: =Datagrundlag!$N115*100 -> 10000 | V50: =Datagrundlag!$N116*100 -> 4500 | W50: =Datagrundlag!$N117*100 -> 8200 | X50: =Datagrundlag!$N118 -> 11700 | Y50: =Datagrundlag!$N119 -> 8850 | Z50: =Datagrundlag!$N120 -> 676 | AA50: =Datagrundlag!$N121 -> 595 | AB50: =Datagrundlag!$N122 -> 325 | AC50: =Datagrundlag!$N123 -> 379 | AD50: =Datagrundlag!$N124 -> 0 | AE50: =Datagrundlag!$N125*100 -> 1600
P51: sandjord uden vanding | Q51: afgrøde m gylle | R51: =Datagrundlag!$N126*100 -> 4700 | S51: =Datagrundlag!$N127*100 -> 5300 | T51: =Datagrundlag!$N128*100 -> 4600 | U51: =Datagrundlag!$N129*100 -> 6300 | V51: =Datagrundlag!$N130*100 -> 3200 | W51: =Datagrundlag!$N131*100 -> 5800 | X51: =Datagrundlag!$N132 -> 10750 | Y51: =Datagrundlag!$N133 -> 8300 | Z51: =Datagrundlag!$N134 -> 0 | AA51: =Datagrundlag!$N135 -> 0 | AB51: =Datagrundlag!$N136 -> 0 | AC51: =Datagrundlag!$N137 -> 0 | AD51: =Datagrundlag!$N138 -> 0 | AE51: =Datagrundlag!$N139*100 -> 1100
P52: sandjord med vanding | Q52: afgrøde m gylle | R52: =Datagrundlag!$N140*100 -> 6000 | S52: =Datagrundlag!$N141*100 -> 6600 | T52: =Datagrundlag!$N142*100 -> 5900 | U52: =Datagrundlag!$N143*100 -> 8400 | V52: =Datagrundlag!$N144*100 -> 4000 | W52: =Datagrundlag!$N145*100 -> 6600 | X52: =Datagrundlag!$N146 -> 11800 | Y52: =Datagrundlag!$N147 -> 10100 | Z52: =Datagrundlag!$N148 -> 0 | AA52: =Datagrundlag!$N149 -> 595 | AB52: =Datagrundlag!$N150 -> 325 | AC52: =Datagrundlag!$N151 -> 379 | AD52: =Datagrundlag!$N152 -> 0 | AE52: =Datagrundlag!$N153*100 -> 1500
P53: lerjord | Q53: halm m gylle | R53: =Datagrundlag!$O112 -> 3500 | S53: =Datagrundlag!$O113 -> 5400 | T53: =Datagrundlag!$O114 -> 3300 | U53: =Datagrundlag!$O115 -> 4800 | V53: =Datagrundlag!$O116 -> 0 | W53: =Datagrundlag!$O117 -> 3900 | X53: =Datagrundlag!$O118 -> 0 | Y53: =Datagrundlag!$O119 -> 0 | Z53: =Datagrundlag!$O120 -> 0 | AA53: =Datagrundlag!$O121 -> 0 | AB53: =Datagrundlag!$O122 -> 0 | AC53: =Datagrundlag!$O123 -> 0 | AD53: =Datagrundlag!$O124 -> 0 | AE53: =Datagrundlag!$O125 -> 5300
P54: sandjord uden vanding | Q54: halm m gylle | R54: =Datagrundlag!$O126 -> 2400 | S54: =Datagrundlag!$O127 -> 3400 | T54: =Datagrundlag!$O128 -> 2500 | U54: =Datagrundlag!$O129 -> 2900 | V54: =Datagrundlag!$O130 -> 0 | W54: =Datagrundlag!$O131 -> 2600 | X54: =Datagrundlag!$O132 -> 0 | Y54: =Datagrundlag!$O133 -> 0 | Z54: =Datagrundlag!$O134 -> 0 | AA54: =Datagrundlag!$O135 -> 0 | AB54: =Datagrundlag!$O136 -> 0 | AC54: =Datagrundlag!$O137 -> 0 | AD54: =Datagrundlag!$O138 -> 0 | AE54: =Datagrundlag!$O139 -> 3800
P55: sandjord med vanding | Q55: halm m gylle | R55: =Datagrundlag!$O140 -> 3100 | S55: =Datagrundlag!$O141 -> 4300 | T55: =Datagrundlag!$O142 -> 3200 | U55: =Datagrundlag!$O143 -> 4000 | V55: =Datagrundlag!$O144 -> 0 | W55: =Datagrundlag!$O145 -> 3000 | X55: =Datagrundlag!$O146 -> 0 | Y55: =Datagrundlag!$O147 -> 0 | Z55: =Datagrundlag!$O148 -> 0 | AA55: =Datagrundlag!$O149 -> 0 | AB55: =Datagrundlag!$O150 -> 0 | AC55: =Datagrundlag!$O151 -> 0 | AD55: =Datagrundlag!$O152 -> 0 | AE55: =Datagrundlag!$O153 -> 5300

Sheet Input regnskab
A1: Id | B1: VariabelNavn | C1: Beskrivelse | D1: Type | E1: ProdGren | F1: EnhedsKode | G1: Vaerdi
A2: 1 | B2: 1 | C2: Dato for dannelse | D2: Ø90ØkonomiData | E2: 0 | F2: 0 | G2: 190320
A3: 2 | B3: 2 | C3: Kørselstidspunkt | D3: Ø90ØkonomiData | E3: 0 | F3: 0 | G3: 1035
A4: 3 | B4: 3 | C4: Bestillingsnummer | D4: Ø90ØkonomiData | E4: 0 | F4: 0 | G4: 510
A5: 11 | B5: 11 | C5: Uden ekstra indberetning (J=1,N=-1), (Ingen supl. opl.) | D5: Ø90ØkonomiData | E5: 0 | F5: 0 | G5: 1
A6: 12 | B6: 12 | C6: Produktionsgrundlag (J=1,N=-1), (kun supl. opl. til prod.gr.) | D6: Ø90ØkonomiData | E6: 0 | F6: 0 | G6: 1
A7: 13 | B7: 13 | C7: Med ekstra indberetning (J=1,N=-1), (sup. opl. ”alle” analyser) | D7: Ø90ØkonomiData | E7: 0 | F7: 0 | G7: 0
A8: 14 | B8: 14 | C8: P-grens opgørelse (J=1,N=-1), (samme konto / sup.opl. kan forekomme på mere end 1 prod. gren) | D8: Ø90ØkonomiData | E8: 0 | F8: 0 | G8: 0
A9: 100 | B9: 100 | C9: Bruttoudbytte Korn | D9: Ø90ØkonomiData | E9: 0 | F9: 0 | G9: 4108997
A10: 105 | B10: 105 | C10: Bruttoudbytte Frøafgrøder | D10: Ø90ØkonomiData | E10: 0 | F10: 0 | G10: 722874
A11: 115 | B11: 115 | C11: Bruttoudbytte Kartofler | D11: Ø90ØkonomiData | E11: 0 | F11: 0 | G11: 10582076
A12: 203 | B12: 203 | C12: Bruttoudbytte Skov | D12: Ø90ØkonomiData | E12: 0 | F12: 0 | G12: 18240
A13: 205 | B13: 205 | C13: Bruttoudbytte Maskinstation | D13: Ø90ØkonomiData | E13: 0 | F13: 0 | G13: 266848
A14: 210 | B14: 210 | C14: Bruttoudbytte Andre landbrugsindtægter - del 1 | D14: Ø90ØkonomiData | E14: 0 | F14: 0 | G14: 233039
A15: 230 | B15: 230 | C15: Omkostninger Udsæd | D15: Ø90ØkonomiData | E15: 0 | F15: 0 | G15: -1298757
A16: 235 | B16: 235 | C16: Omkostninger Gødning | D16: Ø90ØkonomiData | E16: 0 | F16: 0 | G16: -1808706
A17: 240 | B17: 240 | C17: Omkostninger Planteværn | D17: Ø90ØkonomiData | E17: 0 | F17: 0 | G17: -1428422
A18: 245 | B18: 245 | C18: Omkostninger diverse vedrørende markbrug | D18: Ø90ØkonomiData | E18: 0 | F18: 0 | G18: -873976
A19: 278 | B19: 278 | C19: Omkostninger Skov | D19: Ø90ØkonomiData | E19: 0 | F19: 0 | G19: -16995
A20: 300 | B20: 300 | C20: Omkostninger Energi excl. brændstof | D20: Ø90ØkonomiData | E20: 0 | F20: 0 | G20: -355321
A21: 305 | B21: 305 | C21: Omkostninger Brændstof | D21: Ø90ØkonomiData | E21: 0 | F21: 0 | G21: -522506
A22: 310 | B22: 310 | C22: Omkostninger Høst af korn og frøafgrøder | D22: Ø90ØkonomiData | E22: 0 | F22: 0 | G22: -151854
A23: 315 | B23: 315 | C23: Omkostninger Optagning | D23: Ø90ØkonomiData | E23: 0 | F23: 0 | G23: -55000
A24: 325 | B24: 325 | C24: Omkostninger Udbringning af husdyrgødning | D24: Ø90ØkonomiData | E24: 0 | F24: 0 | G24: -35521
A25: 330 | B25: 330 | C25: Omkostninger Maskinstation diverse | D25: Ø90ØkonomiData | E25: 0 | F25: 0 | G25: -104034
A26: 335 | B26: 335 | C26: Vedligehold fast ejendom | D26: Ø90ØkonomiData | E26: 0 | F26: 0 | G26: -62455
A27: 340 | B27: 340 | C27: Vedligehold Grundforbedring | D27: Ø90ØkonomiData | E27: 0 | F27: 0 | G27: -16685
A28: 345 | B28: 345 | C28: Vedligehold Markredskaber | D28: Ø90ØkonomiData | E28: 0 | F28: 0 | G28: -644528
A29: 357 | B29: 357 | C29: Omkostninger Investeringer over driften | D29: Ø90ØkonomiData | E29: 0 | F29: 0 | G29: -13859
A30: 360 | B30: 360 | C30: Omkostninger Lønomkostninger | D30: Ø90ØkonomiData | E30: 0 | F30: 0 | G30: -981898
A31: 370 | B31: 370 | C31: Omkostninger Ejendomsskat | D31: Ø90ØkonomiData | E31: 0 | F31: 0 | G31: -31415
A32: 375 | B32: 375 | C32: Omkostninger Forsikringer | D32: Ø90ØkonomiData | E32: 0 | F32: 0 | G32: -151478
A33: 380 | B33: 380 | C33: Omkostninger Diverse | D33: Ø90ØkonomiData | E33: 0 | F33: 0 | G33: -176429
A34: 410 | B34: 410 | C34: Afskrivning Driftsbygninger | D34: Ø90ØkonomiData | E34: 0 | F34: 0 | G34: -301957
A35: 420 | B35: 420 | C35: Afskrivninger Grundforbedringer | D35: Ø90ØkonomiData | E35: 0 | F35: 0 | G35: -14872
A36: 430 | B36: 430 | C36: Afskrivninger Markredskaber | D36: Ø90ØkonomiData | E36: 0 | F36: 0 | G36: -1592068
A37: 460 | B37: 460 | C37: Afskrivninger Blandede driftsmidler mv. | D37: Ø90ØkonomiData | E37: 0 | F37: 0 | G37: -12322
A38: 630 | B38: 630 | C38: Tab/gevinst Markredskaber | D38: Ø90ØkonomiData | E38: 0 | F38: 0 | G38: 429844
A39: 700 | B39: 700 | C39: Anden indtjening | D39: Ø90ØkonomiData | E39: 0 | F39: 0 | G39: 425825
A40: 760 | B40: 760 | C40: Afkoblet EU-støtte mv. | D40: Ø90ØkonomiData | E40: 0 | F40: 0 | G40: 2000000
A41: 815 | B41: 815 | C41: Finansiering Forpagtningsudgift | D41: Ø90ØkonomiData | E41: 0 | F41: 0 | G41: -2126312
A42: 820 | B42: 820 | C42: Finansiering Renteindtægter | D42: Ø90ØkonomiData | E42: 0 | F42: 0 | G42: 1940
A43: 844 | B43: 844 | C43: Finansiering Realiseret tab finansaktiver (1) | D43: Ø90ØkonomiData | E43: 0 | F43: 0 | G43: -318252
A44: 850 | B44: 850 | C44: Finansiering Renteudgifter mv. | D44: Ø90ØkonomiData | E44: 0 | F44: 0 | G44: -239363
A45: 851 | B45: 851 | C45: Finansiering Bidrag | D45: Ø90ØkonomiData | E45: 0 | F45: 0 | G45: -484292
A46: 860 | B46: 860 | C46: Finansiering Prioritetsomkostninger | D46: Ø90ØkonomiData | E46: 0 | F46: 0 | G46: -5230
A47: 875 | B47: 875 | C47: Finansiering Realiseret tab gæld - ilikvid | D47: Ø90ØkonomiData | E47: 0 | F47: 0 | G47: -79
A48: 890 | B48: 890 | C48: Urealiseret regulering finansaktiver | D48: Ø90ØkonomiData | E48: 0 | F48: 0 | G48: 166280
A49: 895 | B49: 895 | C49: Urealiseret regulering gæld | D49: Ø90ØkonomiData | E49: 0 | F49: 0 | G49: -2212
A50: 900 | B50: 900 | C50: Private indtægter – del 1 | D50: Ø90ØkonomiData | E50: 0 | F50: 0 | G50: 371893
A51: 902 | B51: 902 | C51: Private indtægter – del 2 | D51: Ø90ØkonomiData | E51: 0 | F51: 0 | G51: 17286
A52: 907 | B52: 907 | C52: Private omkostninger del 2 | D52: Ø90ØkonomiData | E52: 0 | F52: 0 | G52: -20009
A53: 910 | B53: 910 | C53: Skat af årets resultat | D53: Ø90ØkonomiData | E53: 0 | F53: 0 | G53: -2664905
A54: 1001 | B54: 1001 | C54: Landbrugsaktiver Jord, ultimo | D54: Ø90ØkonomiData | E54: 0 | F54: 0 | G54: 35201981
A55: 1002 | B55: 1002 | C55: Landbrugsaktiver Grundforbedring, ultimo | D55: Ø90ØkonomiData | E55: 0 | F55: 0 | G55: 201386
A56: 1003 | B56: 1003 | C56: Landbrugsaktiver Driftsbygninger, ultimo | D56: Ø90ØkonomiData | E56: 0 | F56: 0 | G56: 3972581
A57: 1004 | B57: 1004 | C57: Landbrugsaktiver Beboelse landbrug, ultimo | D57: Ø90ØkonomiData | E57: 0 | F57: 0 | G57: 2080666
A58: 1018 | B58: 1018 | C58: Landbrugsaktiver Inventar markbrug, ultimo | D58: Ø90ØkonomiData | E58: 0 | F58: 0 | G58: 9855584
A59: 1040 | B59: 1040 | C59: Landbrugsaktiver Beholdninger egen avl, ultimo | D59: Ø90ØkonomiData | E59: 0 | F59: 0 | G59: 4818340
A60: 1044 | B60: 1044 | C60: Landbrugsaktiver Jordbeholdninger, ultimo | D60: Ø90ØkonomiData | E60: 0 | F60: 0 | G60: 4300
A61: 1048 | B61: 1048 | C61: Landbrugsaktiver Andre beholdninger, ultimo | D61: Ø90ØkonomiData | E61: 0 | F61: 0 | G61: 1619855
A62: 1054 | B62: 1054 | C62: Private aktiver, ultimo | D62: Ø90ØkonomiData | E62: 0 | F62: 0 | G62: 246428
A63: 1100 | B63: 1100 | C63: Finansaktiver Tilgodehavende, ultimo | D63: Ø90ØkonomiData | E63: 0 | F63: 0 | G63: 2258691
A64: 1111 | B64: 1111 | C64: Finansaktiver Erhvervsmæssige finansielle kontrakter (neg), ultimo | D64: Ø90ØkonomiData | E64: 0 | F64: 0 | G64: -1276375
A65: 1174 | B65: 1174 | C65: Finansaktiver Andelskapital, ultimo | D65: Ø90ØkonomiData | E65: 0 | F65: 0 | G65: 11773930
A66: 1178 | B66: 1178 | C66: Finansaktiver Indlån, ultimo | D66: Ø90ØkonomiData | E66: 0 | F66: 0 | G66: 682193
A67: 1205 | B67: 1205 | C67: Gæld Variabelt forrentet Dkr (Realkreditinstitutter), ultimo | D67: Ø90ØkonomiData | E67: 0 | F67: 0 | G67: -25586897
A68: 1215 | B68: 1215 | C68: Gæld Variabelt forrentet fremmed valuta (Realkreditinstitutter), ultimo | D68: Ø90ØkonomiData | E68: 0 | F68: 0 | G68: -5955141
A69: 1242 | B69: 1242 | C69: Gæld Maskingæld, ultimo | D69: Ø90ØkonomiData | E69: 0 | F69: 0 | G69: -47027
A70: 1245 | B70: 1245 | C70: Gæld Leasingforpligtigelser, ultimo | D70: Ø90ØkonomiData | E70: 0 | F70: 0 | G70: -3505245
A71: 1253 | B71: 1253 | C71: Gæld Anden gæld - del 1 (Moms og afgifter), ultimo | D71: Ø90ØkonomiData | E71: 0 | F71: 0 | G71: -553204
A72: 1255 | B72: 1255 | C72: Gæld Anden gæld i øvrigt - del 2 (Leverandører af vare og tjenesteydelser), ultimo | D72: Ø90ØkonomiData | E72: 0 | F72: 0 | G72: -3892539
A73: 1260 | B73: 1260 | C73: Gæld Kassekredit, ultimo | D73: Ø90ØkonomiData | E73: 0 | F73: 0 | G73: -5171185
A74: 1270 | B74: 1270 | C74: Hensættelser (udskudt skat), ultimo | D74: Ø90ØkonomiData | E74: 0 | F74: 0 | G74: -9951000
A75: 1356 | B75: 1356 | C75: Privat udtræk, Privat kontant mv. (drop hvis I/S eller selskab) | D75: Ø90ØkonomiData | E75: 0 | F75: 0 | G75: -317435
A76: 1357 | B76: 1357 | C76: Privat udtræk, Bolig og transport mv. (drop hvis I/S eller selskab) | D76: Ø90ØkonomiData | E76: 0 | F76: 0 | G76: -84971
A77: 1359 | B77: 1359 | C77: Privat udtræk, Formueindtægter / udgifter (drop hvis I/S eller selskab) | D77: Ø90ØkonomiData | E77: 0 | F77: 0 | G77: -44632
A78: 1360 | B78: 1360 | C78: Pensionsindbetalinger (drop hvis I/S og selskab) (del af den samlede post "pensionsindbetaling") | D78: Ø90ØkonomiData | E78: 0 | F78: 0 | G78: -68634
A79: 1395 | B79: 1395 | C79: Egenkapital primo | D79: Ø90ØkonomiData | E79: 0 | F79: 0 | G79: 14459566
A80: 1396 | B80: 1396 | C80: Egenkapital ultimo | D80: Ø90ØkonomiData | E80: 0 | F80: 0 | G80: 16777322
A81: 1405 | B81: 1405 | C81: Afskrivninger privat tlbf. | D81: Ø90ØkonomiData | E81: 0 | F81: 0 | G81: 36964
A82: 1415 | B82: 1415 | C82: Betalt skat | D82: Ø90ØkonomiData | E82: 0 | F82: 0 | G82: -1174905
A83: 1416 | B83: 1416 | C83: Privat | D83: Ø90ØkonomiData | E83: 0 | F83: 0 | G83: -402406
A84: 1417 | B84: 1417 | C84: Formueindtægter/-udgifter, privat | D84: Ø90ØkonomiData | E84: 0 | F84: 0 | G84: -44632
A85: 1420 | B85: 1420 | C85: Pensionsindbetaling - fradrag | D85: Ø90ØkonomiData | E85: 0 | F85: 0 | G85: -68634
A86: 1435 | B86: 1435 | C86: Ændring Beholdninger (realforsk.) | D86: Ø90ØkonomiData | E86: 0 | F86: 0 | G86: 1688672
A87: 1540 | B87: 1540 | C87: Anlægsinvesteringer Inventar markbrug | D87: Ø90ØkonomiData | E87: 0 | F87: 0 | G87: -2828949
A88: 1601 | B88: 1601 | C88: Likviditetsanvendelse/fremskaffelse Tilgodehavende formindsket | D88: Ø90ØkonomiData | E88: 0 | F88: 0 | G88: 88116
A89: 1615 | B89: 1615 | C89: Likviditetsanvendelse/fremskaffelse Værdipapirer - 1 - eksl. Lev. ret (Køb) | D89: Ø90ØkonomiData | E89: 0 | F89: 0 | G89: -250000
A90: 1620 | B90: 1620 | C90: Likviditetsanvendelse/fremskaffelse Likvider, indlån og KK pos (indskud) | D90: Ø90ØkonomiData | E90: 0 | F90: 0 | G90: -250833
A91: 1625 | B91: 1625 | C91: Likviditetsanvendelse/fremskaffelse Realkreditinstitutter (låneoptagelse) | D91: Ø90ØkonomiData | E91: 0 | F91: 0 | G91: 45306
A92: 1626 | B92: 1626 | C92: Likviditetsanvendelse/fremskaffelse Realkreditinstitutter (afdrag) | D92: Ø90ØkonomiData | E92: 0 | F92: 0 | G92: -1193905
A93: 1630 | B93: 1630 | C93: Likviditetsanvendelse/fremskaffelse Pengeinstitutter (låneoptagelse) | D93: Ø90ØkonomiData | E93: 0 | F93: 0 | G93: -79
A94: 1631 | B94: 1631 | C94: Likviditetsanvendelse/fremskaffelse Pengeinstitutter (afdrag) | D94: Ø90ØkonomiData | E94: 0 | F94: 0 | G94: -449059
A95: 1643 | B95: 1643 | C95: Likviditetsanvendelse/fremskaffelse Anden langfristet gæld (reduceret) | D95: Ø90ØkonomiData | E95: 0 | F95: 0 | G95: -654788
A96: 1645 | B96: 1645 | C96: Likviditetsanvendelse/fremskaffelse Leasingforpligtigelser (forøget) | D96: Ø90ØkonomiData | E96: 0 | F96: 0 | G96: 1786048
A97: 1651 | B97: 1651 | C97: Likviditetsanvendelse/fremskaffelse Anden gæld (reduceret) | D97: Ø90ØkonomiData | E97: 0 | F97: 0 | G97: -988605
A98: 1656 | B98: 1656 | C98: Likviditetsanvendelse/fremskaffelse Kassekredit (reduceret) | D98: Ø90ØkonomiData | E98: 0 | F98: 0 | G98: -2164033
A99: 3120 | B99: 3120 | C99: Vårbyg, ha | D99: Ø90ØkonomiData | E99: 0 | F99: 0 | G99: 424
A100: 3150 | B100: 3150 | C100: Rug, ha | D100: Ø90ØkonomiData | E100: 0 | F100: 0 | G100: 45.55
A101: 3210 | B101: 3210 | C101: Græsfrø (og andre græsfrøafgrøder), ha | D101: Ø90ØkonomiData | E101: 0 | F101: 0 | G101: 41
A102: 3454 | B102: 3454 | C102: Læggekartofler, ha | D102: Ø90ØkonomiData | E102: 0 | F102: 0 | G102: 25.72
A103: 3460 | B103: 3460 | C103: Stivelseskartofler, ha | D103: Ø90ØkonomiData | E103: 0 | F103: 0 | G103: 245.2
A104: 3880 | B104: 3880 | C104: Udyrkede arealer, egne, ha | D104: Ø90ØkonomiData | E104: 0 | F104: 0 | G104: 33.08
A105: 3901 | B105: 3901 | C105: Landbrugsarealer dyrkbart, ha | D105: Ø90ØkonomiData | E105: 0 | F105: 0 | G105: 269.55
A106: 3911 | B106: 3911 | C106: Landbrugsareal dyrkbart, ha (forpagtet) (inkl. andel af 310880,882,885) | D106: Ø90ØkonomiData | E106: 0 | F106: 0 | G106: 545
A107: 3938 | B107: 3938 | C107: JB 1 og 3 grovsand, ha | D107: Ø90ØkonomiData | E107: 0 | F107: 0 | G107: 814.55
A108: 3946 | B108: 3946 | C108: Areal, der kan vandes, ha | D108: Ø90ØkonomiData | E108: 0 | F108: 0 | G108: 814.55
A109: 4120 | B109: 4120 | C109: Vårbyg nettoavl, hkg | D109: Ø90ØkonomiData | E109: 0 | F109: 0 | G109: 28000
A110: 4150 | B110: 4150 | C110: Rug nettoavl, hkg | D110: Ø90ØkonomiData | E110: 0 | F110: 0 | G110: 3600
A111: 4210 | B111: 4210 | C111: Græsfrø (andre græsfrøafgrøder), nettoavl, hkg | D111: Ø90ØkonomiData | E111: 0 | F111: 0 | G111: 1030
A112: 4454 | B112: 4454 | C112: Læggekartofler, nettoavl, hkg | D112: Ø90ØkonomiData | E112: 0 | F112: 0 | G112: 10700
A113: 4460 | B113: 4460 | C113: Stivelseskartofler, nettoavl, hkg | D113: Ø90ØkonomiData | E113: 0 | F113: 0 | G113: 131000
A114: 6300 | B114: 6300 | C114: Konsolideringsanalyse Personfradrag | D114: Ø90ØkonomiData | E114: 0 | F114: 0 | G114: -46200
A115: 6301 | B115: 6301 | C115: Konsolideringsanalyse Beskæftigelsesfradrag | D115: Ø90ØkonomiData | E115: 0 | F115: 0 | G115: -18600
A116: 6303 | B116: 6303 | C116: Konsolideringsanalyse Skatteprocent (2 dec.) | D116: Ø90ØkonomiData | E116: 0 | F116: 0 | G116: 42.7
A117: 6312 | B117: 6312 | C117: Konsolideringsanalyse Resultat efter finansiering | D117: Ø90ØkonomiData | E117: 0 | F117: 0 | G117: 4965095
A118: 6318 | B118: 6318 | C118: Konsolideringsanalyse Private indtægter/omkostninger | D118: Ø90ØkonomiData | E118: 0 | F118: 0 | G118: 369170
A119: 6321 | B119: 6321 | C119: Konsolideringsanalyse Fradragsberettiget pensionsindbetaling | D119: Ø90ØkonomiData | E119: 0 | F119: 0 | G119: -68634
A120: 6324 | B120: 6324 | C120: Konsolideringsanalyse Personfradrag i alt | D120: Ø90ØkonomiData | E120: 0 | F120: 0 | G120: -129600
A121: 6327 | B121: 6327 | C121: Konsolideringsanalyse Beregningsgrundlag for beregnet skat | D121: Ø90ØkonomiData | E121: 0 | F121: 0 | G121: 5248345
A122: 6333 | B122: 6333 | C122: Konsolideringsanalyse Beregnet skat | D122: Ø90ØkonomiData | E122: 0 | F122: 0 | G122: -2185704
A123: 6336 | B123: 6336 | C123: Konsolideringsanalyse Beregnet skat excl. fremført underskud | D123: Ø90ØkonomiData | E123: 0 | F123: 0 | G123: -2185704
A124: 6339 | B124: 6339 | C124: Konsolideringsanalyse Privat udtræk | D124: Ø90ØkonomiData | E124: 0 | F124: 0 | G124: -447038
A125: 6342 | B125: 6342 | C125: Konsolideringsanalyse Pensionsindbetaling | D125: Ø90ØkonomiData | E125: 0 | F125: 0 | G125: -68634
A126: 6345 | B126: 6345 | C126: Konsolideringsanalyse Konsolidering | D126: Ø90ØkonomiData | E126: 0 | F126: 0 | G126: 2632889
A127: 6348 | B127: 6348 | C127: Konsolideringsanalyse Konsolidering excl. fremført underskud | D127: Ø90ØkonomiData | E127: 0 | F127: 0 | G127: 2632889
A128: 6354 | B128: 6354 | C128: Konsolideringsanalyse Ændring i resultat for nulkonsolidering | D128: Ø90ØkonomiData | E128: 0 | F128: 0 | G128: -4594919
A129: 6357 | B129: 6357 | C129: Konsolideringsanalyse Nulpunktsdækningsbidrag | D129: Ø90ØkonomiData | E129: 0 | F129: 0 | G129: 5910296
A130: 6375 | B130: 6375 | C130: Konsolideringsanalyse Nulpunktsrente (2 dec.) | D130: Ø90ØkonomiData | E130: 0 | F130: 0 | G130: 14.19
A131: 6400 | B131: 6400 | C131: Etableringsår | D131: Ø90ØkonomiData | E131: 0 | F131: 0 | G131: 2004
A132: 6404 | B132: 6404 | C132: Ejerform: (0,1) En ejer, (2) I/S, (3) I/S Prod. Selskab, (4) anpart-eller aktieselskab, (5) særlige forhold (bl.a. forpagter) | D132: Ø90ØkonomiData | E132: 0 | F132: 0 | G132: 1
A133: 6412 | B133: 6412 | C133: Primært realkreditinstitut (4 cifre) | D133: Ø90ØkonomiData | E133: 0 | F133: 0 | G133: 20002
A134: 6413 | B134: 6413 | C134: Primært pengeinstitut (4 cifre) | D134: Ø90ØkonomiData | E134: 0 | F134: 0 | G134: 247
A135: 6414 | B135: 6414 | C135: Kredsnummer | D135: Ø90ØkonomiData | E135: 0 | F135: 0 | G135: 175
A136: 6416 | B136: 6416 | C136: Ejendomsnummer | D136: Ø90ØkonomiData | E136: 0 | F136: 0 | G136: 9590
A137: 6418 | B137: 6418 | C137: Kommunenummer | D137: Ø90ØkonomiData | E137: 0 | F137: 0 | G137: 530
A138: 6422 | B138: 6422 | C138: Alder driftsleder | D138: Ø90ØkonomiData | E138: 0 | F138: 0 | G138: 42
A139: 6424 | B139: 6424 | C139: Regnskabsperiode (ååååmmdd) | D139: Ø90ØkonomiData | E139: 0 | F139: 0 | G139: 20191231
A140: 6425 | B140: 6425 | C140: Cvr-nummer driftsleder | D140: Ø90ØkonomiData | E140: 0 | F140: 0 | G140: 27025676
A141: 6905 | B141: 6905 | C141: Salg af korn | D141: Ø90ØkonomiData | E141: 0 | F141: 0 | G141: 2666570
A142: 7001 | B142: 7001 | C142: Byg, kr. (til salg) | D142: Ø90ØkonomiData | E142: 0 | F142: 0 | G142: 3535093
A143: 7003 | B143: 7003 | C143: Byg, kv1 (til salg) | D143: Ø90ØkonomiData | E143: 0 | F143: 0 | G143: 2924070
A144: 7016 | B144: 7016 | C144: Byg, kr. (salg) | D144: Ø90ØkonomiData | E144: 0 | F144: 0 | G144: 3725093
A145: 7018 | B145: 7018 | C145: Byg kv1 (salg) | D145: Ø90ØkonomiData | E145: 0 | F145: 0 | G145: 2624070
A146: 7040 | B146: 7040 | C146: Halm, kr. (salg) | D146: Ø90ØkonomiData | E146: 0 | F146: 0 | G146: 441639
A147: 7053 | B147: 7053 | C147: Byg Beholdning, primo, kv 1 | D147: Ø90ØkonomiData | E147: 0 | F147: 0 | G147: 2500000
A148: 7055 | B148: 7055 | C148: Byg beholdning, ultimo, kr. | D148: Ø90ØkonomiData | E148: 0 | F148: 0 | G148: 3360000
A149: 7057 | B149: 7057 | C149: Byg beholdning, ultimo, kv 1 | D149: Ø90ØkonomiData | E149: 0 | F149: 0 | G149: 2800000
A150: 7082 | B150: 7082 | C150: Rug, ultimo | D150: Ø90ØkonomiData | E150: 0 | F150: 0 | G150: 37440
A151: 7083 | B151: 7083 | C151: Rug, ultimo, kv1 | D151: Ø90ØkonomiData | E151: 0 | F151: 0 | G151: 36000
A152: 7090 | B152: 7090 | C152: Rug, omsætning, kr. | D152: Ø90ØkonomiData | E152: 0 | F152: 0 | G152: 54325
A153: 7091 | B153: 7091 | C153: Rug, omsætning, kv1 | D153: Ø90ØkonomiData | E153: 0 | F153: 0 | G153: 40000
A154: 7160 | B154: 7160 | C154: Spisekartofler, kr (salg) | D154: Ø90ØkonomiData | E154: 0 | F154: 0 | G154: 893722
A155: 7162 | B155: 7162 | C155: Spisekartofler, kv1 (salg) | D155: Ø90ØkonomiData | E155: 0 | F155: 0 | G155: 840306
A156: 7164 | B156: 7164 | C156: Læggekartofler, kr (salg) | D156: Ø90ØkonomiData | E156: 0 | F156: 0 | G156: 499287
A157: 7166 | B157: 7166 | C157: Læggekartofler, kv1 (salg) | D157: Ø90ØkonomiData | E157: 0 | F157: 0 | G157: 411908
A158: 7168 | B158: 7168 | C158: Stivelseskartofler, kr. (salg) | D158: Ø90ØkonomiData | E158: 0 | F158: 0 | G158: 6238490
A159: 7170 | B159: 7170 | C159: Stivelsseskartofler kv1 (salg) | D159: Ø90ØkonomiData | E159: 0 | F159: 0 | G159: 15613735
A160: 7176 | B160: 7176 | C160: Kartofler (inkl. lægge) intern, kr. | D160: Ø90ØkonomiData | E160: 0 | F160: 0 | G160: 700000
A161: 7179 | B161: 7179 | C161: Kartofler efterbetaling, kr. | D161: Ø90ØkonomiData | E161: 0 | F161: 0 | G161: 3759677
A162: 7812 | B162: 7812 | C162: Div. omkostninger, planteavl | D162: Ø90ØkonomiData | E162: 0 | F162: 0 | G162: -23565
A163: 7816 | B163: 7816 | C163: Plastik (omkostning) | D163: Ø90ØkonomiData | E163: 0 | F163: 0 | G163: -16800
A164: 7838 | B164: 7838 | C164: Vedligehold vanding (omkostning) | D164: Ø90ØkonomiData | E164: 0 | F164: 0 | G164: -166176
A165: 7842 | B165: 7842 | C165: Regnskab (omkostning) | D165: Ø90ØkonomiData | E165: 0 | F165: 0 | G165: -44012
A166: 7843 | B166: 7843 | C166: Forbrugsafgift vand (omkostning) | D166: Ø90ØkonomiData | E166: 0 | F166: 0 | G166: -5948
A167: 7844 | B167: 7844 | C167: Vandafgift (grøn afgift) | D167: Ø90ØkonomiData | E167: 0 | F167: 0 | G167: 3707
A168: 7847 | B168: 7847 | C168: El (omkostning) | D168: Ø90ØkonomiData | E168: 0 | F168: 0 | G168: -877864
A169: 7848 | B169: 7848 | C169: Fast brændsel (omkostning) | D169: Ø90ØkonomiData | E169: 0 | F169: 0 | G169: -3929
A170: 7849 | B170: 7849 | C170: Elafgift | D170: Ø90ØkonomiData | E170: 0 | F170: 0 | G170: 526472
A171: 7870 | B171: 7870 | C171: Diesel, kv1 | D171: Ø90ØkonomiData | E171: 0 | F171: 0 | G171: -116552
A172: 7871 | B172: 7871 | C172: El, kv1 | D172: Ø90ØkonomiData | E172: 0 | F172: 0 | G172: -593184
A173: 7900 | B173: 7900 | C173: Bygningsleje, kr | D173: Ø90ØkonomiData | E173: 0 | F173: 0 | G173: -18400
A174: 7906 | B174: 7906 | C174: Rente realkredit dkr, variabel | D174: Ø90ØkonomiData | E174: 0 | F174: 0 | G174: 21983
A175: 7907 | B175: 7907 | C175: Bidrag realkredit dkr, variabel | D175: Ø90ØkonomiData | E175: 0 | F175: 0 | G175: -395733
A176: 7910 | B176: 7910 | C176: Rente realkredit fr.valuta, variabel | D176: Ø90ØkonomiData | E176: 0 | F176: 0 | G176: -741
A177: 7911 | B177: 7911 | C177: Bidrag realkredit fr. valuta, variabel | D177: Ø90ØkonomiData | E177: 0 | F177: 0 | G177: -88559
A178: 7916 | B178: 7916 | C178: Rente pengeinstitut dkr, (prioritetsgæld) | D178: Ø90ØkonomiData | E178: 0 | F178: 0 | G178: -2530
A179: 7922 | B179: 7922 | C179: Rente kassekredit | D179: Ø90ØkonomiData | E179: 0 | F179: 0 | G179: -148996
A180: 7962 | B180: 7962 | C180: Personlig indtjening, ægtefælle | D180: Ø90ØkonomiData | E180: 0 | F180: 0 | G180: 366716
A181: 7964 | B181: 7964 | C181: Børne og ungeydelse | D181: Ø90ØkonomiData | E181: 0 | F181: 0 | G181: 17286
A182: 7971 | B182: 7971 | C182: Realkr, afdrag, var.forr,kr. | D182: Ø90ØkonomiData | E182: 0 | F182: 0 | G182: -786943
A183: 7973 | B183: 7973 | C183: Realkr., afdrag, var.forr., frem. valuta | D183: Ø90ØkonomiData | E183: 0 | F183: 0 | G183: -406962
A184: 7975 | B184: 7975 | C184: Pengeinstitutter, afdrag, kr. | D184: Ø90ØkonomiData | E184: 0 | F184: 0 | G184: -262437
A185: 8032 | B185: 8032 | C185: Tilgodehavende, primo | D185: Ø90ØkonomiData | E185: 0 | F185: 0 | G185: 2180527
A186: 8054 | B186: 8054 | C186: Andelskapital, kr, primo | D186: Ø90ØkonomiData | E186: 0 | F186: 0 | G186: 11523930
A187: 8055 | B187: 8055 | C187: Indlån, kr, primo | D187: Ø90ØkonomiData | E187: 0 | F187: 0 | G187: 431360
A188: 8061 | B188: 8061 | C188: Variabelt forrentet Dkr, primo | D188: Ø90ØkonomiData | E188: 0 | F188: 0 | G188: -26330746
A189: 8063 | B189: 8063 | C189: Variabelt forrentet fremmed valuta, primo | D189: Ø90ØkonomiData | E189: 0 | F189: 0 | G189: -6357679
A190: 8066 | B190: 8066 | C190: Variabelt forrentede Dkr > 1 år, primo | D190: Ø90ØkonomiData | E190: 0 | F190: 0 | G190: -262437
A191: 8071 | B191: 8071 | C191: Leasingforpligtelser > 1 år, primo | D191: Ø90ØkonomiData | E191: 0 | F191: 0 | G191: -1719197
A192: 8073 | B192: 8073 | C192: Anden gæld - del 1 (Moms og afgifter), primo | D192: Ø90ØkonomiData | E192: 0 | F192: 0 | G192: -92363
A193: 8074 | B193: 8074 | C193: Anden gæld - del 2 (Øvrig gæld) > 1 år, primo | D193: Ø90ØkonomiData | E193: 0 | F193: 0 | G193: -5175705
A194: 8075 | B194: 8075 | C194: Kassekredit, primo | D194: Ø90ØkonomiData | E194: 0 | F194: 0 | G194: -7335218
A195: 8100 | B195: 8100 | C195: Hensættelser Beboelse (Offentlig vurdering), kr, ultimo | D195: Ø90ØkonomiData | E195: 0 | F195: 0 | G195: 780300
A196: 8108 | B196: 8108 | C196: Hensættelser Beboelse - del af grunde og bygninger (ikke erhvervsmæssige), kr, ultimo | D196: Ø90ØkonomiData | E196: 0 | F196: 0 | G196: 1145682
A197: 8366 | B197: 8366 | C197: Halm, kr, (beregnet til salg), ultimo | D197: Ø90ØkonomiData | E197: 0 | F197: 0 | G197: 162500
A198: 8376 | B198: 8376 | C198: Halm, kg (beregnet til salg), ultimo | D198: Ø90ØkonomiData | E198: 0 | F198: 0 | G198: 650000
A199: 8386 | B199: 8386 | C199: Halm, kr (beregnet til salg), primo | D199: Ø90ØkonomiData | E199: 0 | F199: 0 | G199: 125000
A200: 8396 | B200: 8396 | C200: Halm, kg (Beregnet til salg), primo | D200: Ø90ØkonomiData | E200: 0 | F200: 0 | G200: 500000
... 180 more rows

Sheet Datagrundlag
M1: DATAGRUNDLAG (budgetkalkuler okt. 2020 for 2021)
M2: Opdateret 21.10.2020 ovl
O3: Valgfelt (ja/nej)
M4: Jordbund | P4: Ja
A5: 1 | B5: =A5+1 -> 2 | C5: =B5+1 -> 3 | D5: 4 | E5: 5 | F5: 6 | P5: Nej
B6: refnr beløb | C6: refnr kv | D6: Værdi | E6: værdi | F6: pris | M6: lerjord
A7: =O9 -> Byg | B7: 7016 | C7: 7018 | D7: =IFERROR(VLOOKUP(B7,'Input regnskab'!$A$1:$G$10000,7,0),0) -> 3725093 | E7: =IFERROR(VLOOKUP(C7,'Input regnskab'!$A$1:$G$10000,7,0),0) -> 2624070 | F7: =IFERROR(D7/E7*100,0) -> 141.9585987 | M7: sandjord uden vanding | O7: Opdateres årligt efter budgetkalkulerne i FarmtalOnline
A8: Hvede | B8: 7020 | C8: 7022 | D8: =IFERROR(VLOOKUP(B8,'Input regnskab'!$A$1:$G$10000,7,0),0) -> 0 | E8: =IFERROR(VLOOKUP(C8,'Input regnskab'!$A$1:$G$10000,7,0),0) -> 0 | F8: =IFERROR(D8/E8*100,0) -> 0 | M8: sandjord med vanding | O8: Priser | P8: Kr. pr. hkg.
A9: Havre | B9: 7005 | C9: 7007 | D9: =IFERROR(VLOOKUP(B9,'Input regnskab'!$A$1:$G$10000,7,0),0) -> 0 | E9: =IFERROR(VLOOKUP(C9,'Input regnskab'!$A$1:$G$10000,7,0),0) -> 0 | F9: 0 | O9: Byg | P9: 109
A10: Raps | B10: 7180 | C10: 7182 | D10: =IFERROR(VLOOKUP(B10,'Input regnskab'!$A$1:$G$10000,7,0),0) -> 0 | E10: =IFERROR(VLOOKUP(C10,'Input regnskab'!$A$1:$G$10000,7,0),0) -> 0 | F10: 0 | M10: Faste specifikationer (opdateres ikke) | O10: Hvede | P10: 115
A11: Rug | B11: 7090 | C11: 7091 | D11: =IFERROR(VLOOKUP(B11,'Input regnskab'!$A$1:$G$10000,7,0),0) -> 54325 | E11: =IFERROR(VLOOKUP(C11,'Input regnskab'!$A$1:$G$10000,7,0),0) -> 40000 | F11: 135.8125 | M11: Salgspris arbejde | O11: Havre | P11: 98
A12: Slætgræs 4 slæt | D12: =IFERROR(VLOOKUP(B12,'Input regnskab'!$A$1:$G$10000,7,0),0) -> 0 | E12: =IFERROR(VLOOKUP(C12,'Input regnskab'!$A$1:$G$10000,7,0),0) -> 0 | F12: 0 | O12: Raps | P12: 280
A13: Majs til helsæd | D13: =IFERROR(VLOOKUP(B13,'Input regnskab'!$A$1:$G$10000,7,0),0) -> 0 | E13: =IFERROR(VLOOKUP(C13,'Input regnskab'!$A$1:$G$10000,7,0),0) -> 0 | F13: 0 | M13: 0 | O13: Rug | P13: 100
A14: Fabriksroer | B14: 7150 | C14: 7152 | D14: =IFERROR(VLOOKUP(B14,'Input regnskab'!$A$1:$G$10000,7,0),0) -> 0 | E14: =IFERROR(VLOOKUP(C14,'Input regnskab'!$A$1:$G$10000,7,0),0) -> 0 | F14: 0 | M14: 50 | O14: Slætgræs 4 slæt
A15: Stivelseskartofler | B15: 7168 | C15: 7170 | D15: =IFERROR(VLOOKUP(B15,'Input regnskab'!$A$1:$G$10000,7,0),0) -> 6238490 | E15: =IFERROR(VLOOKUP(C15,'Input regnskab'!$A$1:$G$10000,7,0),0) -> 15613735 | F15: 39.95514206 | M15: 100 | O15: Majs til helsæd
A16: Læggekartofler | B16: 7164 | C16: 7166 | D16: =IFERROR(VLOOKUP(B16,'Input regnskab'!$A$1:$G$10000,7,0),0) -> 499287 | E16: =IFERROR(VLOOKUP(C16,'Input regnskab'!$A$1:$G$10000,7,0),0) -> 411908 | F16: 121.2132321 | M16: 150 | O16: Fabriksroer | P16: 21
A17: Spisekartofler | B17: 7160 | C17: 7162 | D17: =IFERROR(VLOOKUP(B17,'Input regnskab'!$A$1:$G$10000,7,0),0) -> 893722 | E17: =IFERROR(VLOOKUP(C17,'Input regnskab'!$A$1:$G$10000,7,0),0) -> 840306 | F17: 106.356732 | M17: 200 | O17: Stivelseskartofler | P17: 64
A18: Proceskartofler | B18: 7172 | C18: 7174 | D18: =IFERROR(VLOOKUP(B18,'Input regnskab'!$A$1:$G$10000,7,0),0) -> 0 | E18: =IFERROR(VLOOKUP(C18,'Input regnskab'!$A$1:$G$10000,7,0),0) -> 0 | F18: 0 | M18: 250 | O18: Læggekartofler | P18: 185
A19: Alm. rajgræs | B19: 7101 | C19: 7103 | D19: =IFERROR(VLOOKUP(B19,'Input regnskab'!$A$1:$G$10000,7,0),0) -> 0 | E19: =IFERROR(VLOOKUP(C19,'Input regnskab'!$A$1:$G$10000,7,0),0) -> 0 | F19: 0 | M19: 300 | O19: Spisekartofler | P19: 118
M20: 350 | O20: Proceskartofler | P20: 64
A21: 1 | B21: =A21+1 -> 2 | C21: =B21+1 -> 3 | D21: 4 | E21: 5 | F21: 6 | G21: 7 | H21: 8 | I21: 9 | J21: 10 | K21: 11 | M21: 400 | O21: Alm. rajgræs | P21: 825
B22: refnr - ha | C22: refnr - ha | D22: værdi | E22: værdi | F22: sum | G22: refnr udbytte | O22: Ingen eller andet
A23: =M26 -> Vårbyg | B23: 3120 | D23: =IFERROR(VLOOKUP(B23,'Input regnskab'!$A$1:$G$10000,7,0),0) -> 424 | F23: =D23+E23 -> 424 | G23: 4120 | I23: =IFERROR(VLOOKUP(G23,'Input regnskab'!$A$1:$G$10000,7,0),0) -> 28000 | J23: =IFERROR(VLOOKUP(H23,'Input regnskab'!$A$1:$G$10000,7,0),0) -> 0 | K23: =IFERROR((I23+J23)/F23,0) -> 66.03773585 | M23: Faste specifikationer (opdateres ikke)
A24: Vinterrug | B24: 3150 | D24: =IFERROR(VLOOKUP(B24,'Input regnskab'!$A$1:$G$10000,7,0),0) -> 45.55 | F24: =D24+E24 -> 45.55 | G24: 4150 | I24: =IFERROR(VLOOKUP(G24,'Input regnskab'!$A$1:$G$10000,7,0),0) -> 3600 | J24: =IFERROR(VLOOKUP(H24,'Input regnskab'!$A$1:$G$10000,7,0),0) -> 0 | K24: =IFERROR((I24+J24)/F24,0) -> 79.03402854 | M24: Afgrøder | O24: Salgsafgrøder | P24: Pct.
A25: Havre | B25: 3160 | D25: =IFERROR(VLOOKUP(B25,'Input regnskab'!$A$1:$G$10000,7,0),0) -> 0 | F25: 0 | G25: 4160 | I25: =IFERROR(VLOOKUP(G25,'Input regnskab'!$A$1:$G$10000,7,0),0) -> 0 | J25: =IFERROR(VLOOKUP(H25,'Input regnskab'!$A$1:$G$10000,7,0),0) -> 0 | K25: 0 | O25: Drift ekskl. maskinstation | P25: 0.315
A26: Vinterhvede | B26: 3136 | D26: =IFERROR(VLOOKUP(B26,'Input regnskab'!$A$1:$G$10000,7,0),0) -> 0 | F26: 0 | G26: 4136 | I26: =IFERROR(VLOOKUP(G26,'Input regnskab'!$A$1:$G$10000,7,0),0) -> 0 | J26: =IFERROR(VLOOKUP(H26,'Input regnskab'!$A$1:$G$10000,7,0),0) -> 0 | K26: 0 | M26: Vårbyg | O26: Renter og afskrivninger | P26: 0.347
A27: Vinterraps | B27: 3500 | D27: =IFERROR(VLOOKUP(B27,'Input regnskab'!$A$1:$G$10000,7,0),0) -> 0 | F27: 0 | G27: 4500 | I27: =IFERROR(VLOOKUP(G27,'Input regnskab'!$A$1:$G$10000,7,0),0) -> 0 | J27: =IFERROR(VLOOKUP(H27,'Input regnskab'!$A$1:$G$10000,7,0),0) -> 0 | K27: 0 | M27: Vinterrug | O27: Løn | P27: 0.338
A28: Vinterbyg | B28: 3130 | D28: =IFERROR(VLOOKUP(B28,'Input regnskab'!$A$1:$G$10000,7,0),0) -> 0 | F28: 0 | G28: 4130 | I28: =IFERROR(VLOOKUP(G28,'Input regnskab'!$A$1:$G$10000,7,0),0) -> 0 | J28: =IFERROR(VLOOKUP(H28,'Input regnskab'!$A$1:$G$10000,7,0),0) -> 0 | K28: 0 | M28: Havre | O28: Grovfoder | P28: Pct.
A29: Majs til helsæd | B29: 3870 | D29: =IFERROR(VLOOKUP(B29,'Input regnskab'!$A$1:$G$10000,7,0),0) -> 0 | F29: 0 | G29: 4870 | I29: =IFERROR(VLOOKUP(G29,'Input regnskab'!$A$1:$G$10000,7,0),0) -> 0 | J29: =IFERROR(VLOOKUP(H29,'Input regnskab'!$A$1:$G$10000,7,0),0) -> 0 | K29: 0 | M29: Vinterhvede | O29: Drift ekskl. maskinstation | P29: 0.331
A30: Slætgræs 4 slæt | B30: 3820 | D30: =IFERROR(VLOOKUP(B30,'Input regnskab'!$A$1:$G$10000,7,0),0) -> 0 | F30: 0 | G30: 4820 | I30: =IFERROR(VLOOKUP(G30,'Input regnskab'!$A$1:$G$10000,7,0),0) -> 0 | J30: =IFERROR(VLOOKUP(H30,'Input regnskab'!$A$1:$G$10000,7,0),0) -> 0 | K30: 0 | M30: Vinterraps | O30: Renter og afskrivninger | P30: 0.288
A31: Fabriksroer | B31: 3410 | D31: =IFERROR(VLOOKUP(B31,'Input regnskab'!$A$1:$G$10000,7,0),0) -> 0 | F31: 0 | G31: 4410 | I31: =IFERROR(VLOOKUP(G31,'Input regnskab'!$A$1:$G$10000,7,0),0) -> 0 | J31: =IFERROR(VLOOKUP(H31,'Input regnskab'!$A$1:$G$10000,7,0),0) -> 0 | K31: 0 | M31: Vinterbyg | O31: Løn | P31: 0.381
A32: Stivelseskartofler | B32: 3460 | D32: =IFERROR(VLOOKUP(B32,'Input regnskab'!$A$1:$G$10000,7,0),0) -> 245.2 | F32: 245.2 | G32: 4460 | I32: =IFERROR(VLOOKUP(G32,'Input regnskab'!$A$1:$G$10000,7,0),0) -> 131000 | J32: =IFERROR(VLOOKUP(H32,'Input regnskab'!$A$1:$G$10000,7,0),0) -> 0 | K32: 534.2577488 | M32: Majs til helsæd | O32: Afrundet gennemsnit | P32: Pct.
A33: Læggekartofler | B33: 3454 | D33: =IFERROR(VLOOKUP(B33,'Input regnskab'!$A$1:$G$10000,7,0),0) -> 25.72 | F33: 25.72 | G33: 4454 | I33: =IFERROR(VLOOKUP(G33,'Input regnskab'!$A$1:$G$10000,7,0),0) -> 10700 | J33: =IFERROR(VLOOKUP(H33,'Input regnskab'!$A$1:$G$10000,7,0),0) -> 0 | K33: 416.0186625 | M33: Slætgræs 4 slæt | O33: Drift ekskl. maskinstation | P33: =ROUND((P25+P29)/2,2) -> 0.32
A34: Spisekartofler | B34: 3450 | C34: 3452 | D34: =IFERROR(VLOOKUP(B34,'Input regnskab'!$A$1:$G$10000,7,0),0) -> 0 | E34: =IFERROR(VLOOKUP(C34,'Input regnskab'!$A$1:$G$10000,7,0),0) -> 0 | F34: 0 | G34: 4450 | H34: 4452 | I34: =IFERROR(VLOOKUP(G34,'Input regnskab'!$A$1:$G$10000,7,0),0) -> 0 | J34: =IFERROR(VLOOKUP(H34,'Input regnskab'!$A$1:$G$10000,7,0),0) -> 0 | K34: 0 | M34: Fabriksroer | O34: Renter og afskrivninger | P34: =ROUND((P26+P30)/2,2) -> 0.32
A35: Proceskartofler | B35: 3456 | D35: =IFERROR(VLOOKUP(B35,'Input regnskab'!$A$1:$G$10000,7,0),0) -> 0 | F35: 0 | G35: 4456 | I35: =IFERROR(VLOOKUP(G35,'Input regnskab'!$A$1:$G$10000,7,0),0) -> 0 | J35: =IFERROR(VLOOKUP(H35,'Input regnskab'!$A$1:$G$10000,7,0),0) -> 0 | K35: 0 | M35: Stivelseskartofler | O35: Løn | P35: 0.36
A36: Alm. rajgræs | B36: 3220 | D36: =IFERROR(VLOOKUP(B36,'Input regnskab'!$A$1:$G$10000,7,0),0) -> 0 | F36: 0 | G36: 4220 | I36: =IFERROR(VLOOKUP(G36,'Input regnskab'!$A$1:$G$10000,7,0),0) -> 0 | J36: =IFERROR(VLOOKUP(H36,'Input regnskab'!$A$1:$G$10000,7,0),0) -> 0 | K36: 0 | M36: Læggekartofler | P36: =SUM(P33:P35) -> 1
D37: =IFERROR(VLOOKUP(B37,'Input regnskab'!$A$1:$G$10000,7,0),0) -> 0 | F37: =D37+E37 -> 0 | I37: =IFERROR(VLOOKUP(G37,'Input regnskab'!$A$1:$G$10000,7,0),0) -> 0 | J37: =IFERROR(VLOOKUP(H37,'Input regnskab'!$A$1:$G$10000,7,0),0) -> 0 | K37: 0 | M37: Spisekartofler
M38: Proceskartofler
M39: Alm. rajgræs
M40: Ingen eller andet
M42: Faste specifikationer (opdateres ikke)
M43: Driftsform | O43: Dummy1
M45: Husdyrproduktion
M46: Planteavl
M47: Alle
M49: Faste specifikationer (opdateres ikke)
M50: Jordbonitet | O50: Dummy2
M52: JB1&3 | N52: 1
M53: JB2&4 | N53: 2
M54: JB5&6 | N54: 3
M55: JB7&8 | N55: 4
M56: Alle | N56: Alle
M58: Faste specifikationer (opdateres ikke)
M59: Landsdel
M61: Lolland-Falster | N61: Lolland-Falster
M62: Nordjylland | N62: Nordjylland
M63: Sjælland Bornholm | N63: Sjælland Bornholm
M64: Vestjylland | N64: Vestjylland
M65: Østjylland-Fyn | N65: Østjylland-Fyn
M66: Alle | N66: Alle
M68: Opdateres årligt efter budgetkalkulerne i FarmtalOnline
M69: Afgrøde-og halmudbytter | N69: Afgrøder (hkg./FEN) | O69: Halm (kg.)
M70: =M26&" på"&" "&M$6&" med gylle" -> Vårbyg på lerjord med gylle | N70: 67 | O70: 3500
M71: Vinterrug på lerjord med gylle | N71: 79 | O71: 5400
M72: Havre på lerjord med gylle | N72: 60 | O72: 3300
M73: Vinterhvede på lerjord med gylle | N73: 100 | O73: 4800
M74: Vinterraps på lerjord med gylle | N74: 45 | O74: 0
M75: Vinterbyg på lerjord med gylle | N75: 82 | O75: 3900
M76: Majs til helsæd på lerjord med gylle | N76: 11700 | O76: 0
M77: Slætgræs 4 slæt på lerjord med gylle | N77: 8850 | O77: 0
M78: Fabriksroer på lerjord med gylle | O78: 0
M79: Stivelseskartofler på lerjord med gylle | O79: 0
M80: Læggekartofler på lerjord med gylle | O80: 0
M81: Spisekartofler på lerjord med gylle | O81: 0
M82: Proceskartofler på lerjord med gylle | O82: 0
M83: Alm. rajgræs på lerjord med gylle
M84: =M26&" på"&" "&M$7&" med gylle" -> Vårbyg på sandjord uden vanding med gylle | N84: 47 | O84: 2400
M85: Vinterrug på sandjord uden vanding med gylle | N85: 53 | O85: 3400
M86: Havre på sandjord uden vanding med gylle | N86: 46 | O86: 2500
M87: Vinterhvede på sandjord uden vanding med gylle | N87: 63 | O87: 2900
M88: Vinterraps på sandjord uden vanding med gylle | N88: 32 | O88: 0
M89: Vinterbyg på sandjord uden vanding med gylle | N89: 58 | O89: 2600
M90: Majs til helsæd på sandjord uden vanding med gylle | N90: 10750 | O90: 0
M91: Slætgræs 4 slæt på sandjord uden vanding med gylle | N91: 8300 | O91: 0
M92: Fabriksroer på sandjord uden vanding med gylle | O92: 0
M93: Stivelseskartofler på sandjord uden vanding med gylle | O93: 0
M94: Læggekartofler på sandjord uden vanding med gylle | O94: 0
M95: Spisekartofler på sandjord uden vanding med gylle | O95: 0
M96: Proceskartofler på sandjord uden vanding med gylle | O96: 0
M97: Alm. rajgræs på sandjord uden vanding med gylle
M98: =M26&" på"&" "&M$8&" med gylle" -> Vårbyg på sandjord med vanding med gylle | N98: 60 | O98: 3100
M99: Vinterrug på sandjord med vanding med gylle | N99: 66 | O99: 4300
M100: Havre på sandjord med vanding med gylle | N100: 59 | O100: 3200
M101: Vinterhvede på sandjord med vanding med gylle | N101: 84 | O101: 4000
M102: Vinterraps på sandjord med vanding med gylle | N102: 40 | O102: 0
M103: Vinterbyg på sandjord med vanding med gylle | N103: 66 | O103: 3000
M104: Majs til helsæd på sandjord med vanding med gylle | N104: 11800 | O104: 0
M105: Slætgræs 4 slæt på sandjord med vanding med gylle | N105: 10100 | O105: 0
M106: Fabriksroer på sandjord med vanding med gylle | N106: 0 | O106: 0
M107: Stivelseskartofler på sandjord med vanding med gylle | N107: 0 | O107: 0
M108: Læggekartofler på sandjord med vanding med gylle | N108: 0 | O108: 0
M109: Spisekartofler på sandjord med vanding med gylle | N109: 0 | O109: 0
M110: Proceskartofler på sandjord med vanding med gylle | N110: 0 | O110: 0
M111: Alm. rajgræs på sandjord med vanding med gylle | N111: 0 | O111: 0
M112: =M26&" på"&" "&M$6&" uden gylle" -> Vårbyg på lerjord uden gylle | N112: 67 | O112: 3500
M113: Vinterrug på lerjord uden gylle | N113: 79 | O113: 5400
M114: Havre på lerjord uden gylle | N114: 60 | O114: 3300
M115: Vinterhvede på lerjord uden gylle | N115: 100 | O115: 4800
M116: Vinterraps på lerjord uden gylle | N116: 45 | O116: 0
M117: Vinterbyg på lerjord uden gylle | N117: 82 | O117: 3900
M118: Majs til helsæd på lerjord uden gylle | N118: 11700 | O118: 0
M119: Slætgræs 4 slæt på lerjord uden gylle | N119: 8850 | O119: 0
M120: Fabriksroer på lerjord uden gylle | N120: 676 | O120: 0
M121: Stivelseskartofler på lerjord uden gylle | N121: 595 | O121: 0
M122: Læggekartofler på lerjord uden gylle | N122: 325 | O122: 0
M123: Spisekartofler på lerjord uden gylle | N123: 379 | O123: 0
M124: Proceskartofler på lerjord uden gylle | O124: 0
M125: Alm. rajgræs på lerjord uden gylle | N125: 16 | O125: 5300
M126: =M26&" på"&" "&M$7&" uden gylle" -> Vårbyg på sandjord uden vanding uden gylle | N126: 47 | O126: 2400
M127: Vinterrug på sandjord uden vanding uden gylle | N127: 53 | O127: 3400
M128: Havre på sandjord uden vanding uden gylle | N128: 46 | O128: 2500
M129: Vinterhvede på sandjord uden vanding uden gylle | N129: 63 | O129: 2900
M130: Vinterraps på sandjord uden vanding uden gylle | N130: 32 | O130: 0
M131: Vinterbyg på sandjord uden vanding uden gylle | N131: 58 | O131: 2600
M132: Majs til helsæd på sandjord uden vanding uden gylle | N132: 10750 | O132: 0
M133: Slætgræs 4 slæt på sandjord uden vanding uden gylle | N133: 8300 | O133: 0
M134: Fabriksroer på sandjord uden vanding uden gylle | O134: 0
M135: Stivelseskartofler på sandjord uden vanding uden gylle | O135: 0
M136: Læggekartofler på sandjord uden vanding uden gylle | O136: 0
M137: Spisekartofler på sandjord uden vanding uden gylle | O137: 0
M138: Proceskartofler på sandjord uden vanding uden gylle | O138: 0
M139: Alm. rajgræs på sandjord uden vanding uden gylle | N139: 11 | O139: 3800
M140: =M26&" på"&" "&M$8&" uden gylle" -> Vårbyg på sandjord med vanding uden gylle | N140: 60 | O140: 3100
M141: Vinterrug på sandjord med vanding uden gylle | N141: 66 | O141: 4300
M142: Havre på sandjord med vanding uden gylle | N142: 59 | O142: 3200
M143: Vinterhvede på sandjord med vanding uden gylle | N143: 84 | O143: 4000
M144: Vinterraps på sandjord med vanding uden gylle | N144: 40 | O144: 0
M145: Vinterbyg på sandjord med vanding uden gylle | N145: 66 | O145: 3000
M146: Majs til helsæd på sandjord med vanding uden gylle | N146: 11800 | O146: 0
M147: Slætgræs 4 slæt på sandjord med vanding uden gylle | N147: 10100 | O147: 0
M148: Fabriksroer på sandjord med vanding uden gylle | O148: 0
M149: Stivelseskartofler på sandjord med vanding uden gylle | N149: 595 | O149: 0
M150: Læggekartofler på sandjord med vanding uden gylle | N150: 325 | O150: 0
M151: Spisekartofler på sandjord med vanding uden gylle | N151: 379 | O151: 0
M152: Proceskartofler på sandjord med vanding uden gylle | O152: 0
M153: Alm. rajgræs på sandjord med vanding uden gylle | N153: 15 | O153: 5300
M154: Ingen eller andet på lerjord uden gylle | N154: 0 | O154: 0
M155: Ingen eller andet på sandjord uden vanding uden gylle | N155: 0 | O155: 0
M156: Ingen eller andet på sandjord med vanding uden gylle | N156: 0 | O156: 0
M157: Ingen eller andet på lerjord med gylle | N157: 0 | O157: 0
M158: Ingen eller andet på sandjord uden vanding med gylle | N158: 0 | O158: 0
M159: Ingen eller andet på sandjord med vanding med gylle | N159: 0 | O159: 0
N160: 0 | O160: 0
M162: Beregning af halmproduktion uden @Risk (opdateres ikke)
M163: Omkostninger | N163: Kg. halm pr. ha | O163: Kg. halm i alt
M164: =Beregninger!D5 -> Vårbyg på sandjord med vanding med gylle | N164: =IFERROR(IF(M164="",0,VLOOKUP(M164,$M$70:$O$160,3,FALSE)),0) -> 3100 | O164: =IFERROR(N164*Oplysninger!D$9*Oplysninger!D19,0) -> 75175
M165: =Beregninger!D6 -> Vinterhvede på sandjord med vanding med gylle | N165: =IFERROR(IF(M165="",0,VLOOKUP(M165,$M$70:$O$160,3,FALSE)),0) -> 4000 | O165: =IFERROR(N165*Oplysninger!D$9*Oplysninger!D20,0) -> 194000
M166: =Beregninger!D7 -> Vinterraps på sandjord med vanding med gylle | N166: 0 | O166: =IFERROR(N166*Oplysninger!D$9*Oplysninger!D21,0) -> 0
M167: =Beregninger!D8 -> Majs til helsæd på sandjord med vanding med gylle | N167: 0 | O167: =IFERROR(N167*Oplysninger!D$9*Oplysninger!D22,0) -> 0
M168: =Beregninger!D9 -> Fabriksroer på sandjord med vanding med gylle | N168: 0 | O168: =IFERROR(N168*Oplysninger!D$9*Oplysninger!D23,0) -> 0
M169: =Beregninger!D10 -> Slætgræs 4 slæt på sandjord med vanding med gylle | N169: 0 | O169: =IFERROR(N169*Oplysninger!D$9*Oplysninger!D24,0) -> 0
M170: I alt | O170: =SUM(O164:O169) -> 269175
M172: Opdateres årligt efter budgetkalkulerne i FarmtalOnline | P172: Stykomkostninger | AL172: Maskin- og arbejdsomkostninger
M173: Omkostninger | N173: Stykomk. | O173: Maskinomk. | P173: Udsæd | Q173: Husdyrgødning | R173: Læggekartofler | S173: Læggekartofler indkøbt | T173: Læggekartofler egen avl | U173: Handelsgødning, kvælstof | V173: Handelsgødning, fosfor | W173: Handelsgødning, kalium | X173: Patentkali | Y173: Ukrudt | Z173: Sygdom | AA173: Skadedyr | AB173: Nedvisning | AC173: Bejdsning v. lægning | AD173: Sortering af kartofler | AE173: Opbevaring i kule | AF173: Vækstregulering | AG173: Analyser | AH173: Rensning | AI173: Plastik | AJ173: Fragt | AK173: Stykomk. i alt | AL173: Pløjning | AM173: Udbr. husdydrgødning | AN173: Efterharvning | AO173: Gødningsspredning | AP173: Komb. harvning og såning | AQ173: Såbedsharvning | AR173: Stenstrenglægning | AS173: Lægning m. gødn. Placering | AT173: Hypning | AU173: Lugning | AV173: Såning og gødningsplacering | AW173: Såning | AX173: Skårlægning | AY173: Tromling | AZ173: Sammenrivning | BA173: Sprøjtning | BB173: Radrensning | BC173: Optagning af roer inkl. aftopning | BD173: Optagning | BE173: Mejetærskning | BF173: Snitning, hjemkørsel og indlægning | BG173: Hjemkørsel afgrøde | BH173: Tøring afgrøde | BI173: Halmpresning | BJ173: Hjemkørsel halm | BK173: Vanding, fast omkostning | BL173: Vanding, flytning | BM173: Vanding pr millimeter | BN173: Øvrige opgaver | BO173: Maskin- og arb.omk. I alt | BP173: (Check af indtastning)
M174: =M26&" med gylle"&" på lerjord" -> Vårbyg med gylle på lerjord | N174: 757 | O174: 5765 | P174: 392 | Y174: 110 | Z174: 165 | AA174: 50 | AF174: 40 | AK174: =SUM(P174:AJ174) -> 757 | AL174: 725 | AM174: 814 | AP174: 400 | BA174: 540 | BE174: 914 | BG174: 430 | BH174: 603 | BI174: 595 | BJ174: 244 | BN174: 500 | BO174: =SUM(AL174:BN174) -> 5765 | BP174: =IF(AND(OR(AK174=N174-1,AK174=N174,AK174=N174+1),OR(BO174=O174-1,BO174=O174,BO174=O174+1)),"SAND",FALSE) -> SAND
M175: Vinterrug med gylle på lerjord | N175: 1339 | O175: 6498 | P175: 420 | U175: 209 | Y175: 410 | Z175: 135 | AA175: 10 | AF175: 155 | AK175: 1339 | AL175: 725 | AM175: 600 | AO175: 150 | AP175: 400 | BA175: 720 | BE175: 992 | BG175: 467 | BH175: 711 | BI175: 918 | BJ175: 315 | BN175: 500 | BO175: 6498 | BP175: SAND
M176: Havre med gylle på lerjord | N176: 753 | O176: 5198 | P176: 488 | Y176: 120 | Z176: 100 | AA176: 30 | AF176: 15 | AK176: 753 | AL176: 725 | AM176: 616 | AP176: 400 | BA176: 360 | BE176: 857 | BG176: 403 | BH176: 540 | BI176: 561 | BJ176: 236 | BN176: 500 | BO176: 5198 | BP176: SAND
M177: Vinterhvede med gylle på lerjord | N177: 1860 | O177: 6961 | P177: 450 | U177: 413 | Y177: 438 | Z177: 410 | AA177: 90 | AF177: 60 | AK177: 1861 | AL177: 725 | AM177: 600 | AO177: 150 | AP177: 400 | BA177: 900 | BE177: 1140 | BG177: 537 | BH177: 900 | BI177: 816 | BJ177: 293 | BN177: 500 | BO177: 6961 | BP177: SAND
K178: JB 5-6 | M178: Vinterraps med gylle på lerjord | N178: 2663 | O178: 5844 | P178: 425 | U178: 418 | Y178: 750 | Z178: 215 | AA178: 375 | AF178: 40 | AG178: 125 | AH178: 315 | AK178: 2663 | AL178: 725 | AM178: 700 | AO178: 150 | AP178: 400 | BA178: 1080 | BE178: 1036 | BG178: 488 | BH178: 765 | BN178: 500 | BO178: 5844 | BP178: SAND
M179: Vinterbyg med gylle på lerjord | N179: 1423 | O179: 6245 | P179: 448 | U179: 380 | Y179: 270 | Z179: 185 | AF179: 140 | AK179: 1423 | AL179: 725 | AM179: 600 | AO179: 150 | AP179: 400 | BA179: 720 | BE179: 1013 | BG179: 477 | BH179: 738 | BI179: 663 | BJ179: 259 | BN179: 500 | BO179: 6245 | BP179: SAND
M180: Majs til helsæd med gylle på lerjord | N180: 2730 | O180: 5016 | P180: 1560 | U180: 165 | V180: 135 | Y180: 425 | Z180: 75 | AI180: 370 | AK180: 2730 | AL180: 725 | AM180: 770 | AQ180: 175 | AV180: 525 | AY180: 165 | BA180: 360 | BF180: 1796 | BN180: 500 | BO180: 5016 | BP180: SAND
M181: Slætgræs 4 slæt med gylle på lerjord | N181: 1138 | O181: 7070 | P181: 324 | U181: 407 | AI181: 407 | AK181: 1138 | AM181: 1500 | AO181: 150 | AW181: 132 | AX181: 1000 | AZ181: 680 | BF181: 3108 | BN181: 500 | BO181: 7070 | BP181: SAND
M182: Fabriksroer med gylle på lerjord | N182: 0 | O182: 0
M183: Stivelseskartofler med gylle på lerjord | N183: 0 | O183: 0
M184: Læggekartofler med gylle på lerjord | N184: 0 | O184: 0
M185: Spisekartofler med gylle på lerjord | N185: 0 | O185: 0
M186: Proceskartofler med gylle på lerjord | N186: 0 | O186: 0
M187: Alm. rajgræs med gylle på lerjord
M188: =M26&" med gylle"&" på sandjord uden vanding" -> Vårbyg med gylle på sandjord uden vanding | N188: 757 | O188: 4974 | P188: 392 | Y188: 110 | Z188: 165 | AA188: 50 | AF188: 40 | AK188: =SUM(P188:AJ188) -> 757 | AL188: 653 | AM188: 733 | AP188: 380 | BA188: 540 | BE188: 772 | BG188: 363 | BH188: 423 | BI188: 408 | BJ188: 203 | BN188: 500 | BO188: =SUM(AL188:BN188) -> 4975 | BP188: =IF(AND(OR(AK188=N188-1,AK188=N188,AK188=N188+1),OR(BO188=O188-1,BO188=O188,BO188=O188+1)),"SAND",FALSE) -> SAND
M189: Vinterrug med gylle på sandjord uden vanding | N189: 1257 | O189: 5437 | P189: 420 | U189: 127 | Y189: 410 | Z189: 135 | AA189: 10 | AF189: 155 | AK189: 1257 | AL189: 653 | AM189: 570 | AO189: 143 | AP189: 380 | BA189: 720 | BE189: 800 | BG189: 377 | BH189: 477 | BI189: 578 | BJ189: 240 | BN189: 500 | BO189: 5438 | BP189: SAND
M190: Havre med gylle på sandjord uden vanding | N190: 753 | O190: 4647 | P190: 488 | Y190: 120 | Z190: 100 | AA190: 30 | AF190: 15 | AK190: 753 | AL190: 653 | AM190: 594 | AP190: 380 | BA190: 360 | BE190: 758 | BG190: 357 | BH190: 414 | BI190: 425 | BJ190: 206 | BN190: 500 | BO190: 4647 | BP190: SAND
M191: Vinterhvede med gylle på sandjord uden vanding | N191: 1679 | O191: 5707 | P191: 450 | U191: 231 | Y191: 438 | Z191: 410 | AA191: 90 | AF191: 60 | AK191: 1679 | AL191: 653 | AM191: 570 | AO191: 143 | AP191: 380 | BA191: 900 | BE191: 871 | BG191: 410 | BH191: 567 | BI191: 493 | BJ191: 221 | BN191: 500 | BO191: 5708 | BP191: SAND
K192: JB 1-3 | M192: Vinterraps med gylle på sandjord uden vanding | N192: 2462 | O192: 5214 | P192: 425 | U192: 308 | Y192: 750 | Z192: 215 | AA192: 375 | AF192: 40 | AG192: 125 | AH192: 224 | AK192: 2462 | AL192: 653 | AM192: 665 | AO192: 143 | AP192: 380 | BA192: 1080 | BE192: 850 | BG192: 400 | BH192: 544 | BN192: 500 | BO192: 5215 | BP192: SAND
M193: Vinterbyg med gylle på sandjord uden vanding | N193: 1357 | O193: 5379 | P193: 448 | U193: 314 | Y193: 270 | Z193: 185 | AF193: 140 | AK193: 1357 | AL193: 653 | AM193: 570 | AO193: 143 | AP193: 380 | BA193: 720 | BE193: 843 | BG193: 397 | BH193: 522 | BI193: 442 | BJ193: 210 | BN193: 500 | BO193: 5380 | BP193: SAND
M194: Majs til helsæd med gylle på sandjord uden vanding | N194: 2697 | O194: 4815 | P194: 1560 | U194: 165 | V194: 135 | Y194: 425 | Z194: 75 | AI194: 337 | AK194: 2697 | AL194: 653 | AM194: 752 | AQ194: 166 | AV194: 499 | AY194: 165 | BA194: 360 | BF194: 1720 | BN194: 500 | BO194: 4815 | BP194: SAND
M195: Slætgræs 4 slæt med gylle på sandjord uden vanding | N195: 1079 | O195: 6758 | P195: 324 | U195: 374 | AI195: 381 | AK195: 1079 | AM195: 1350 | AO195: 143 | AW195: 125 | AX195: 1000 | AZ195: 680 | BF195: 2960 | BN195: 500 | BO195: 6758 | BP195: SAND
M196: Fabriksroer med gylle på sandjord uden vanding | N196: 0 | O196: 0
M197: Stivelseskartofler med gylle på sandjord uden vanding | N197: 0 | O197: 0
M198: Læggekartofler med gylle på sandjord uden vanding | N198: 0 | O198: 0
M199: Spisekartofler med gylle på sandjord uden vanding | N199: 0 | O199: 0
M200: Proceskartofler med gylle på sandjord uden vanding | N200: 0 | O200: 0
M201: Alm. rajgræs med gylle på sandjord uden vanding
M202: =M26&" med gylle"&" på sandjord med vanding" -> Vårbyg med gylle på sandjord med vanding | N202: 757 | O202: 7301 | P202: 392 | Y202: 110 | Z202: 165 | AA202: 50 | AF202: 40 | AK202: =SUM(P202:AJ202) -> 757 | AL202: 653 | AM202: 812 | AP202: 380 | BA202: 540 | BE202: 864 | BG202: 407 | BH202: 540 | BI202: 527 | BJ202: 229 | BK202: 1225 | BL202: 250 | BM202: 375 | BN202: 500 | BO202: =SUM(AL202:BN202) -> 7302 | BP202: =IF(AND(OR(AK202=N202-1,AK202=N202,AK202=N202+1),OR(BO202=O202-1,BO202=O202,BO202=O202+1)),"SAND",FALSE) -> SAND
M203: Vinterrug med gylle på sandjord med vanding | N203: 1334 | O203: 8002 | P203: 420 | U203: 204 | Y203: 410 | Z203: 135 | AA203: 10 | AF203: 155 | AK203: 1334 | AL203: 653 | AM203: 570 | AO203: 143 | AP203: 380 | BA203: 720 | BE203: 893 | BG203: 420 | BH203: 594 | BI203: 731 | BJ203: 274 | BK203: 1225 | BL203: 375 | BM203: 525 | BN203: 500 | BO203: 8003 | BP203: SAND
M204: Havre med gylle på sandjord med vanding | N204: 753 | O204: 6994 | P204: 488 | Y204: 120 | Z204: 100 | AA204: 30 | AF204: 15 | AK204: 753 | AL204: 653 | AM204: 693 | AP204: 380 | BA204: 360 | BE204: 850 | BG204: 400 | BH204: 531 | BI204: 544 | BJ204: 233 | BK204: 1225 | BL204: 250 | BM204: 375 | BN204: 500 | BO204: 6994 | BP204: SAND
M205: Vinterhvede med gylle på sandjord med vanding | N205: 1827 | O205: 8469 | P205: 450 | U205: 380 | Y205: 438 | Z205: 410 | AA205: 90 | AF205: 60 | AK205: 1828 | AL205: 653 | AM205: 570 | AO205: 143 | AP205: 380 | BA205: 900 | BE205: 1020 | BG205: 480 | BH205: 756 | BI205: 680 | BJ205: 263 | BK205: 1225 | BL205: 375 | BM205: 525 | BN205: 500 | BO205: 8470 | BP205: SAND
M206: Vinterraps med gylle på sandjord med vanding | N206: 2584 | O206: 7556 | P206: 425 | U206: 374 | Y206: 750 | Z206: 215 | AA206: 375 | AF206: 40 | AG206: 125 | AH206: 280 | AK206: 2584 | AL206: 653 | AM206: 665 | AO206: 143 | AP206: 380 | BA206: 1080 | BE206: 956 | BG206: 450 | BH206: 680 | BK206: 1225 | BL206: 375 | BM206: 450 | BN206: 500 | BO206: 7557 | BP206: SAND
K207: JB 1-4 m. vanding | M207: Vinterbyg med gylle på sandjord med vanding | N207: 1406 | O207: 7742 | P207: 448 | U207: 363 | Y207: 270 | Z207: 185 | AF207: 140 | AK207: 1406 | AL207: 653 | AM207: 570 | AO207: 143 | AP207: 380 | BA207: 720 | BE207: 900 | BG207: 423 | BH207: 594 | BI207: 510 | BJ207: 225 | BK207: 1225 | BL207: 375 | BM207: 525 | BN207: 500 | BO207: 7743 | BP207: SAND
M208: Majs til helsæd med gylle på sandjord med vanding | N208: 2732 | O208: 6823 | P208: 1560 | U208: 165 | V208: 135 | Y208: 425 | Z208: 75 | AI208: 372 | AK208: 2732 | AL208: 653 | AM208: 851 | AQ208: 166 | AV208: 499 | AY208: 165 | BA208: 360 | BF208: 1804 | BK208: 1225 | BL208: 250 | BM208: 350 | BN208: 500 | BO208: 6823 | BP208: SAND
M209: Slætgræs 4 slæt med gylle på sandjord med vanding | N209: 1252 | O209: 9496 | P209: 324 | U209: 462 | AI209: 466 | AK209: 1252 | AM209: 1350 | AO209: 143 | AW209: 125 | AX209: 1000 | AZ209: 680 | BF209: 3348 | BK209: 1225 | BL209: 375 | BM209: 750 | BN209: 500 | BO209: =SUM(AL209:BN209) -> 9496 | BP209: =IF(AND(OR(AK209=N209-1,AK209=N209,AK209=N209+1),OR(BO209=O209-1,BO209=O209,BO209=O209+1)),"SAND",FALSE) -> SAND
... 48 more rows

Sheet Finansiering
B2: Investering i: | C2: Kombisæt | I2: Oplysninger der kan lægges til allerede oplyste omkostninger for den/de afgrøder
I3: der benytter ny tilkøbte maskine.
B6: Oplysninger om finansiering | I6: Oplysninger om afskrivninger
N7: Gå tilbage til fane med beregning
B8: Lånedata | E8: =IF(AND(C12>0,C13>0,C15>0,C16>0),"Låneoplysninger:",0) -> Låneoplysninger: | I8: Afskivningsdata
B9: Lånetype: | C9: =IF(OR(C11="A",C11="S")," ","(skal tastes)") ->  | E9: =IF(AND(C12>0,C13>0,C15>0,C16>0),"Antal terminer"," ") -> Antal terminer | G9: =IF(AND(C12>0,C13>0,C15>0,C16>0),C15*C16,0) -> 10 | I9: Investering | J9: 600000
B10: A=annuitetslån | E10: =IF(AND(C12>0,C15>0,C16>0,C13>0),"Rente% pr. term."," ") -> Rente% pr. term. | G10: =IF(OR(C13=0,C13=" ",C16=0,C16=" "),0,C13/C16) -> 3 | I10: Brugstid, år | J10: 10
B11: S=serielån | C11: s | E11: =IF(AND(C12>0,C11="S",C13>0,C15>0,C16>0),"Afdrag pr. termin",IF(AND(C12>0,C11="A",C13>F11,C15>0,C16>0),"Ydelse pr. termin"," ")) -> Afdrag pr. termin | G11: =IF(AND(C12>0,C11="A",C13>0,C15>0,C16>0),PMT(G10/100,G9,C12)*-1,IF(AND(C12>0,C11="S",C13>0,C15>0,C16>0),C12/G9," ")) -> 60000 | I11: Værditab % | J11: 18 | K11: =J11/100 -> 0.18
B12: Hovedstol | C12: 600000 | E12: =IF(AND(C14>0,C11="A",C12>0,C13>0,C15>0,C16>0),"Incl. bidrag",IF(AND(C14>0,C11="S",C12>0,C13>0,C15>0,C16>0),"Bidrag pr. term."," ")) ->  | G12: =IF(AND(C14>0,C13>0,C15>0,C16>0,C11="A"),G11+E24,IF(AND(C14>0,C13>0,C15>0,C16>0,C11="S"),(C12*C14/100)/C16," ")) ->  | I12: Rente, % | J12: 0.03
B13: Rente% p.a. | C13: 3 | E13: =IF(AND(C11="a",C12>0,C13>0,C15>0,C16>0),"Årlig ydelse",IF(AND(C11="s",C12>0,C13>0,C15>0,C16>0),"Årligt afdrag"," ")) -> Årligt afdrag | G13: =IF(AND(C12>0,C13>0,C15>0,C16>0,C11="A"),G11*C16,IF(AND(C12>0,C13>0,C15>0,C16>0,C11="S"),G11*C16,0)) -> 60000 | I13: Anvendelse Time p.a | J13: 1000
B14: Bidrag % | C14: 0 | E14: =IF(AND(C12>0,C14>0,C11="S",C13>0,C15>0,C16>0),"Årligt bidrag",IF(AND(C12>0,C14>0,C11="A",C13>0,C15>0,C16>0),"Incl. bidrag"," ")) ->  | G14: =IF(AND(C14>0,C11="A",C12>0,C13>0,C15>0,C16>0),G12*C16,IF(AND(C14>0,C11="S"),G12*C16,0)) -> 0 | I14: Antal ha pr. time | J14: 2
B15: Løbetid, år | C15: 10 | E15: =IF(AND(C12>0,C13>0,C15>0,C16>0,C11="S"),"Rente hele perioden",IF(AND(C11="A",C12>0,C13>0,C15>0,C16>0),"Rente hele perioden"," ")) -> Rente hele perioden | G15: =IF(AND(C11="A",C12>0,C13>0,C15>0,C16>0),C162,IF(AND(C11="S",C12>0,C13>0,C15>0,C16>0),C162,0)) -> 99000 | I15: Antal ha pr. år | J15: =J13/J14 -> 500
B16: Terminer p.a. | C16: 1 | E16: =IF(AND(C11="S",C12>0,C14>0,C13>0,C15>0,C16>0),"Bidrag hele perioden",IF(AND(C11="a",C12>0,C14>0,C13>0,C15>0,C16>0),"Bigrag hele perioden"," ")) ->  | G16: =IF(AND(C11="A",C12>0,C14>0),E162,IF(AND(C11="S",C12>0,C14>0),E162,0)) -> 0 | I16: Vedligehold, kr. p.a | J16: 100000
B17: Antal term. i år 1 | C17: 1 | E17: =IF(G15+G16>0,"Fradr. hele perioden"," ") -> Fradr. hele perioden | G17: =IF(SUM(G15:G16)=0,0,SUM(G15:G16)) -> 99000 | I17: Brændstof, kr. p.a | J17: 0
B18: =IF(OR(C11="a",C11="S")," ","Lånetype skal være ''A'' eller ''S''.") ->  | I18: Lønomkostning, kr/time | J18: 200
B19: =IF(OR(C16=1,C16=2,C16=4,C16=12)," ","Terminer p.a. skal være 1, 2, 4 eller 12.") -> 
B20: =IF(C17>C16,"For mange terminer i år 1 i forhold til antal terminer pr. år"," ") ->  | I20: Omkosting pr. time p.a | J20: =(J23+N25+J16+J17+(J13*J18))/J13 -> 363.1445071
B21: =IF($C$11="S","Ydelsesoversigt serielån",IF($C$11="A","Ydelsesoversigt annuitetslån","Låneberegning")) -> Ydelsesoversigt serielån | I21: Omkostning kr. pr. ha | J21: =J20/J14 -> 181.5722536 | K21: kan overføres til "Beregning" og lægges oven i nuværende omkostning
C22: =IF(C16=1,"Årlig",IF(C16=2,"Halvårlig",IF(C16=4,"Kvartårlig",IF(C16=12,"Månedlig"," ")))) -> Årlig
B23: =IF(AND(C12>0,C13>0,C15>0,C16>0),"Terminsnr."," ") -> Terminsnr. | C23: =IF(AND(C12>0,C13>0,C15>0,C16>0),"Rente","") -> Rente | D23: =IF(AND(C13>0,C15>0,C16>0,C12>0),"Afdrag"," ") -> Afdrag | E23: =IF(AND(C14>0,C12>0,C13>0,C15>0,C16>0),"Bidrag"," ") ->  | F23: =IF(AND(C12>0,C13>0,C15>0,C16>0),"Ydelse"," ") -> Ydelse | G23: =IF(AND(C12>0,C13>0,C15>0,C16>0),"Restgæld"," ") -> Restgæld | I23: Afskrivning pr. år | J23: =(J9-(J9*(1-K11)^J10))/J10 -> 51753.11812 | K23: kr.
B24: =IF(AND(C12>0,C13>0,C15>0,C16>0),1,0) -> 1 | C24: =C12*$C$13/100 -> 18000 | D24: =IF(AND($C$12>0,$C$11="A",$C$13>0,$C$15>0,$C$16>0),$G$11-C24,IF(AND($C$12>0,$C$11="S",$C$13>0,$C$15>0,$C$16>0),$C$12/$G$9,0)) -> 60000 | E24: =C12*B162/100 -> 0 | F24: =IF(AND(C12>0,C11="A",$C$13>0,$C$15>0,$C$16>0),G11+E24,IF(AND(C12>0,C11="S",$C$13>0,$C$15>0,$C$16>0),C24+D24+E24," ")) -> 78000 | G24: =IF(AND(C12>0,C13>0,C15>0,C16>0),C12-D24,IF((C12-D24)<=0,0,0)) -> 540000 | I24: Beregnet Scrapværdi | J24: =IF(N24=0,J9-(J9-J9*(1-K11)^J10),N24) -> 82468.8188 | K24: kr. | L24: Egen vurdering | N24: 0
B25: =IF(G24<=0," ",B24+1) -> 2 | C25: =G24*$C$13/100 -> 16200 | D25: =IF(AND(G24>0,$C$11="A"),$G$11-C25,IF(AND(G24>0,$C$11="S"),$G$11,0)) -> 60000 | E25: =IF(G24<=0,0,$C$12*($C$14/$C$16)/100) -> 0 | F25: =IF(AND(G24>0,$C$11="A"),F24,IF(AND(G24>0,$C$11="S"),C25+D25+E25," ")) -> 76200 | G25: =IF(G24-D25<=1,0,G24-D25) -> 480000 | I25: Årlig renteomkostning når der tages højde for en scrapværdi | N25: =(J9-J24)*(J12/(1-(1+J12)^-J10))+(J24*J12)-J23 -> 11391.389
B26: =IF(G25<=0,"",B25+1) -> 3 | C26: =G25*$C$13/100 -> 14400 | D26: 60000 | E26: 0 | F26: 74400 | G26: 420000
B27: 4 | C27: 12600 | D27: 60000 | E27: 0 | F27: 72600 | G27: 360000
B28: 5 | C28: 10800 | D28: 60000 | E28: 0 | F28: 70800 | G28: 300000
B29: 6 | C29: 9000 | D29: 60000 | E29: 0 | F29: 69000 | G29: 240000
B30: 7 | C30: 7200 | D30: 60000 | E30: 0 | F30: 67200 | G30: 180000
B31: 8 | C31: 5400 | D31: 60000 | E31: 0 | F31: 65400 | G31: 120000
B32: 9 | C32: 3600 | D32: 60000 | E32: 0 | F32: 63600 | G32: 60000
B33: 10 | C33: 1800 | D33: 60000 | E33: 0 | F33: 61800 | G33: 0
C34: 0 | D34: 0 | E34: 0 | G34: 0
C35: 0 | D35: 0 | E35: 0 | G35: =IF(ROUND((G34-D35),)<=0,0,G34-D35) -> 0
C36: 0 | D36: 0 | E36: 0 | G36: 0
C37: 0 | D37: 0 | E37: 0 | G37: 0
C38: 0 | D38: 0 | E38: 0 | G38: 0
C39: 0 | D39: 0 | E39: 0 | G39: 0
C40: 0 | D40: 0 | E40: 0 | G40: 0
C41: 0 | D41: 0 | E41: 0 | G41: 0
C42: 0 | D42: 0 | E42: 0 | G42: 0
C43: 0 | D43: 0 | E43: 0 | G43: 0
C44: =G43*$G$10/100 -> 0 | D44: 0 | E44: 0 | G44: 0
C45: 0 | D45: 0 | E45: 0 | G45: 0
C46: 0 | D46: 0 | E46: 0 | G46: 0
C47: 0 | D47: 0 | E47: 0 | G47: 0
C48: 0 | D48: 0 | E48: 0 | G48: 0
C49: 0 | D49: 0 | E49: 0 | G49: 0
C50: 0 | D50: 0 | E50: 0 | G50: 0
C51: 0 | D51: 0 | E51: 0 | G51: 0
C52: 0 | D52: 0 | E52: 0 | G52: 0
C53: 0 | D53: 0 | E53: 0 | G53: 0
C54: 0 | D54: 0 | E54: 0 | G54: 0
C55: 0 | D55: 0 | E55: 0 | G55: 0
C56: 0 | D56: 0 | E56: 0 | G56: 0
C57: 0 | D57: 0 | E57: 0 | G57: 0
C58: 0 | D58: 0 | E58: 0 | G58: 0
C59: 0 | D59: 0 | E59: 0 | G59: 0
C60: 0 | D60: 0 | E60: 0 | G60: 0
C61: 0 | D61: 0 | E61: 0 | G61: 0
C62: 0 | D62: 0 | E62: 0 | G62: 0
C63: 0 | D63: 0 | E63: 0 | G63: 0
C64: 0 | D64: 0 | E64: 0 | G64: 0
C65: 0 | D65: 0 | E65: 0 | G65: 0
C66: 0 | D66: 0 | E66: 0 | G66: 0
C67: 0 | D67: 0 | E67: 0 | G67: 0
C68: 0 | D68: 0 | E68: 0 | G68: 0
C69: 0 | D69: 0 | E69: 0 | G69: 0
C70: 0 | D70: 0 | E70: 0 | G70: 0
C71: 0 | D71: 0 | E71: 0 | G71: 0
C72: 0 | D72: 0 | E72: 0 | G72: 0
C73: 0 | D73: 0 | E73: 0 | G73: 0
C74: 0 | D74: 0 | E74: 0 | G74: 0
C75: 0 | D75: 0 | E75: 0 | G75: 0
C76: 0 | D76: 0 | E76: 0 | G76: 0
C77: 0 | D77: 0 | E77: 0 | G77: 0
C78: 0 | D78: 0 | E78: 0 | G78: 0
C79: 0 | D79: 0 | E79: 0 | G79: 0
C80: 0 | D80: 0 | E80: 0 | G80: 0
C81: 0 | D81: 0 | E81: 0 | G81: 0
C82: 0 | D82: 0 | E82: 0 | G82: 0
C83: 0 | D83: 0 | E83: 0 | G83: 0
C84: 0 | D84: 0 | E84: 0 | G84: 0
C85: 0 | D85: 0 | E85: 0 | G85: 0
C86: 0 | D86: 0 | E86: 0 | G86: 0
C87: 0 | D87: 0 | E87: 0 | G87: 0
C88: 0 | D88: 0 | E88: 0 | G88: 0
C89: 0 | D89: =IF(AND(G88>0,$C$11="A"),$G$11-C89,IF(AND(G88>0,$C$11="S"),$G$11,0)) -> 0 | E89: =IF(G88<=0,0,$C$12*($C$14/$C$16)/100) -> 0 | F89: =IF(AND(G88>0,$C$11="A"),F88,IF(AND(G88>0,$C$11="S"),C89+D89+E89," ")) ->  | G89: 0
B90: =IF(G89<=0,"",B89+1) ->  | C90: 0 | D90: 0 | E90: 0 | G90: 0
C91: 0 | D91: 0 | E91: 0 | G91: 0
C92: 0 | D92: 0 | E92: 0 | G92: 0
C93: 0 | D93: 0 | E93: 0 | G93: 0
C94: 0 | D94: 0 | E94: 0 | G94: 0
C95: 0 | D95: 0 | E95: 0 | G95: 0
C96: 0 | D96: 0 | E96: 0 | G96: 0
C97: 0 | D97: 0 | E97: 0 | G97: 0
C98: 0 | D98: 0 | E98: 0 | G98: 0
C99: 0 | D99: 0 | E99: 0 | G99: =IF(ROUND((G98-D99),)<=0,0,G98-D99) -> 0
C100: 0 | D100: 0 | E100: 0 | G100: 0
C101: 0 | D101: 0 | E101: 0 | G101: 0
C102: 0 | D102: 0 | E102: 0 | G102: 0
C103: 0 | D103: 0 | E103: 0 | G103: 0
C104: 0 | D104: 0 | E104: 0 | G104: 0
C105: 0 | D105: 0 | E105: 0 | G105: 0
C106: 0 | D106: 0 | E106: 0 | G106: 0
C107: 0 | D107: 0 | E107: 0 | G107: 0
C108: =G107*$G$10/100 -> 0 | D108: 0 | E108: 0 | G108: 0
C109: 0 | D109: 0 | E109: 0 | G109: 0
C110: 0 | D110: 0 | E110: 0 | G110: 0
C111: 0 | D111: 0 | E111: 0 | G111: 0
C112: 0 | D112: 0 | E112: 0 | G112: 0
C113: 0 | D113: 0 | E113: 0 | G113: 0
C114: 0 | D114: 0 | E114: 0 | G114: 0
C115: 0 | D115: 0 | E115: 0 | G115: 0
C116: 0 | D116: 0 | E116: 0 | G116: 0
C117: 0 | D117: 0 | E117: 0 | G117: 0
C118: 0 | D118: 0 | E118: 0 | G118: 0
C119: 0 | D119: 0 | E119: 0 | G119: 0
C120: 0 | D120: 0 | E120: 0 | G120: 0
C121: 0 | D121: 0 | E121: 0 | G121: 0
C122: 0 | D122: 0 | E122: 0 | G122: 0
C123: 0 | D123: 0 | E123: 0 | G123: 0
C124: 0 | D124: 0 | E124: 0 | G124: 0
C125: 0 | D125: 0 | E125: 0 | G125: 0
C126: 0 | D126: 0 | E126: 0 | G126: 0
C127: 0 | D127: 0 | E127: 0 | G127: 0
C128: 0 | D128: 0 | E128: 0 | G128: 0
C129: 0 | D129: 0 | E129: 0 | G129: 0
C130: 0 | D130: 0 | E130: 0 | G130: 0
C131: 0 | D131: 0 | E131: 0 | G131: 0
C132: 0 | D132: 0 | E132: 0 | G132: 0
C133: 0 | D133: 0 | E133: 0 | G133: 0
C134: 0 | D134: 0 | E134: 0 | G134: 0
C135: 0 | D135: 0 | E135: 0 | G135: 0
C136: 0 | D136: 0 | E136: 0 | G136: 0
C137: 0 | D137: 0 | E137: 0 | G137: 0
C138: 0 | D138: 0 | E138: 0 | G138: 0
C139: 0 | D139: 0 | E139: 0 | G139: 0
C140: 0 | D140: 0 | E140: 0 | G140: 0
C141: 0 | D141: 0 | E141: 0 | G141: 0
C142: 0 | D142: 0 | E142: 0 | G142: 0
C143: 0 | D143: 0 | E143: 0 | G143: 0
B162: =IF(AND(C14>0,C16>0),ROUND(C14/C16,4),0) -> 0 | C162: =SUM(C24:C143) -> 99000 | E162: =SUM(E24:E143) -> 0

Sheet Fraktilgrupper (hidden)
A1: Landsdel | B1: type | C1: FTO_jb | D1: FTO_jbx | E1: x.Antal | F1: x.MQ00_20 | G1: x.MQ00_20x | H1: x.MQ20_40 | I1: x.MQ20_40x | J1: x.MQ40_60 | K1: x.MQ40_60x | L1: x.MQ60_80 | M1: x.MQ60_80x | N1: x.MQ80_100 | O1: x.MQ80_100x | P1: Dummy 1 | Q1: Dummy2
A2: Lolland-Falster | B2: Husdyrproduktion | C2: 2 | D2: =_xlfn.IFS(Tabel1[[#This Row],[FTO_jb]]="1","JB1&3",Tabel1[[#This Row],[FTO_jb]]="2","JB2&4",Tabel1[[#This Row],[FTO_jb]]="3","JB5&6",Tabel1[[#This Row],[FTO_jb]]="4","JB7&8",Tabel1[[#This Row],[FTO_jb]]="Alle",Tabel1[[#This Row],[FTO_jb]]) -> JB2&4 | E2: 2 | F2: NaN | G2: =IF(Tabel1[[#This Row],[x.MQ00_20]]="NaN","",VALUE(Tabel1[[#This Row],[x.MQ00_20]])) ->  | H2: NaN | I2: =IF(Tabel1[[#This Row],[x.MQ20_40]]="NaN","",VALUE(Tabel1[[#This Row],[x.MQ20_40]])) ->  | J2: NaN | K2: =IF(Tabel1[[#This Row],[x.MQ40_60]]="NaN","",VALUE(Tabel1[[#This Row],[x.MQ40_60]])) ->  | L2: NaN | M2: =IF(Tabel1[[#This Row],[x.MQ60_80]]="NaN","",VALUE(Tabel1[[#This Row],[x.MQ60_80]])) ->  | N2: NaN | O2: =IF(Tabel1[[#This Row],[x.MQ80_100]]="NaN","",VALUE(Tabel1[[#This Row],[x.MQ80_100]])) -> 
A3: Lolland-Falster | B3: Husdyrproduktion | C3: 3 | D3: =_xlfn.IFS(Tabel1[[#This Row],[FTO_jb]]="1","JB1&3",Tabel1[[#This Row],[FTO_jb]]="2","JB2&4",Tabel1[[#This Row],[FTO_jb]]="3","JB5&6",Tabel1[[#This Row],[FTO_jb]]="4","JB7&8",Tabel1[[#This Row],[FTO_jb]]="Alle",Tabel1[[#This Row],[FTO_jb]]) -> JB5&6 | E3: 23 | F3: NaN | G3: =IF(Tabel1[[#This Row],[x.MQ00_20]]="NaN","",VALUE(Tabel1[[#This Row],[x.MQ00_20]])) ->  | H3: NaN | I3: =IF(Tabel1[[#This Row],[x.MQ20_40]]="NaN","",VALUE(Tabel1[[#This Row],[x.MQ20_40]])) ->  | J3: NaN | K3: =IF(Tabel1[[#This Row],[x.MQ40_60]]="NaN","",VALUE(Tabel1[[#This Row],[x.MQ40_60]])) ->  | L3: NaN | M3: =IF(Tabel1[[#This Row],[x.MQ60_80]]="NaN","",VALUE(Tabel1[[#This Row],[x.MQ60_80]])) ->  | N3: NaN | O3: =IF(Tabel1[[#This Row],[x.MQ80_100]]="NaN","",VALUE(Tabel1[[#This Row],[x.MQ80_100]])) -> 
A4: Lolland-Falster | B4: Husdyrproduktion | C4: 4 | D4: =_xlfn.IFS(Tabel1[[#This Row],[FTO_jb]]="1","JB1&3",Tabel1[[#This Row],[FTO_jb]]="2","JB2&4",Tabel1[[#This Row],[FTO_jb]]="3","JB5&6",Tabel1[[#This Row],[FTO_jb]]="4","JB7&8",Tabel1[[#This Row],[FTO_jb]]="Alle",Tabel1[[#This Row],[FTO_jb]]) -> JB7&8 | E4: 12 | F4: NaN | G4: =IF(Tabel1[[#This Row],[x.MQ00_20]]="NaN","",VALUE(Tabel1[[#This Row],[x.MQ00_20]])) ->  | H4: NaN | I4: =IF(Tabel1[[#This Row],[x.MQ20_40]]="NaN","",VALUE(Tabel1[[#This Row],[x.MQ20_40]])) ->  | J4: NaN | K4: =IF(Tabel1[[#This Row],[x.MQ40_60]]="NaN","",VALUE(Tabel1[[#This Row],[x.MQ40_60]])) ->  | L4: NaN | M4: =IF(Tabel1[[#This Row],[x.MQ60_80]]="NaN","",VALUE(Tabel1[[#This Row],[x.MQ60_80]])) ->  | N4: NaN | O4: =IF(Tabel1[[#This Row],[x.MQ80_100]]="NaN","",VALUE(Tabel1[[#This Row],[x.MQ80_100]])) -> 
A5: Lolland-Falster | B5: Planteavl | C5: 1 | D5: =_xlfn.IFS(Tabel1[[#This Row],[FTO_jb]]="1","JB1&3",Tabel1[[#This Row],[FTO_jb]]="2","JB2&4",Tabel1[[#This Row],[FTO_jb]]="3","JB5&6",Tabel1[[#This Row],[FTO_jb]]="4","JB7&8",Tabel1[[#This Row],[FTO_jb]]="Alle",Tabel1[[#This Row],[FTO_jb]]) -> JB1&3 | E5: 1 | F5: NaN | G5: =IF(Tabel1[[#This Row],[x.MQ00_20]]="NaN","",VALUE(Tabel1[[#This Row],[x.MQ00_20]])) ->  | H5: NaN | I5: =IF(Tabel1[[#This Row],[x.MQ20_40]]="NaN","",VALUE(Tabel1[[#This Row],[x.MQ20_40]])) ->  | J5: NaN | K5: =IF(Tabel1[[#This Row],[x.MQ40_60]]="NaN","",VALUE(Tabel1[[#This Row],[x.MQ40_60]])) ->  | L5: NaN | M5: =IF(Tabel1[[#This Row],[x.MQ60_80]]="NaN","",VALUE(Tabel1[[#This Row],[x.MQ60_80]])) ->  | N5: NaN | O5: =IF(Tabel1[[#This Row],[x.MQ80_100]]="NaN","",VALUE(Tabel1[[#This Row],[x.MQ80_100]])) -> 
A6: Lolland-Falster | B6: Planteavl | C6: 2 | D6: =_xlfn.IFS(Tabel1[[#This Row],[FTO_jb]]="1","JB1&3",Tabel1[[#This Row],[FTO_jb]]="2","JB2&4",Tabel1[[#This Row],[FTO_jb]]="3","JB5&6",Tabel1[[#This Row],[FTO_jb]]="4","JB7&8",Tabel1[[#This Row],[FTO_jb]]="Alle",Tabel1[[#This Row],[FTO_jb]]) -> JB2&4 | E6: 6 | F6: NaN | G6: =IF(Tabel1[[#This Row],[x.MQ00_20]]="NaN","",VALUE(Tabel1[[#This Row],[x.MQ00_20]])) ->  | H6: NaN | I6: =IF(Tabel1[[#This Row],[x.MQ20_40]]="NaN","",VALUE(Tabel1[[#This Row],[x.MQ20_40]])) ->  | J6: NaN | K6: =IF(Tabel1[[#This Row],[x.MQ40_60]]="NaN","",VALUE(Tabel1[[#This Row],[x.MQ40_60]])) ->  | L6: NaN | M6: =IF(Tabel1[[#This Row],[x.MQ60_80]]="NaN","",VALUE(Tabel1[[#This Row],[x.MQ60_80]])) ->  | N6: NaN | O6: =IF(Tabel1[[#This Row],[x.MQ80_100]]="NaN","",VALUE(Tabel1[[#This Row],[x.MQ80_100]])) -> 
A7: Lolland-Falster | B7: Planteavl | C7: 3 | D7: =_xlfn.IFS(Tabel1[[#This Row],[FTO_jb]]="1","JB1&3",Tabel1[[#This Row],[FTO_jb]]="2","JB2&4",Tabel1[[#This Row],[FTO_jb]]="3","JB5&6",Tabel1[[#This Row],[FTO_jb]]="4","JB7&8",Tabel1[[#This Row],[FTO_jb]]="Alle",Tabel1[[#This Row],[FTO_jb]]) -> JB5&6 | E7: 39 | F7: NaN | G7: =IF(Tabel1[[#This Row],[x.MQ00_20]]="NaN","",VALUE(Tabel1[[#This Row],[x.MQ00_20]])) ->  | H7: NaN | I7: =IF(Tabel1[[#This Row],[x.MQ20_40]]="NaN","",VALUE(Tabel1[[#This Row],[x.MQ20_40]])) ->  | J7: NaN | K7: =IF(Tabel1[[#This Row],[x.MQ40_60]]="NaN","",VALUE(Tabel1[[#This Row],[x.MQ40_60]])) ->  | L7: NaN | M7: =IF(Tabel1[[#This Row],[x.MQ60_80]]="NaN","",VALUE(Tabel1[[#This Row],[x.MQ60_80]])) ->  | N7: NaN | O7: =IF(Tabel1[[#This Row],[x.MQ80_100]]="NaN","",VALUE(Tabel1[[#This Row],[x.MQ80_100]])) -> 
A8: Lolland-Falster | B8: Planteavl | C8: 4 | D8: =_xlfn.IFS(Tabel1[[#This Row],[FTO_jb]]="1","JB1&3",Tabel1[[#This Row],[FTO_jb]]="2","JB2&4",Tabel1[[#This Row],[FTO_jb]]="3","JB5&6",Tabel1[[#This Row],[FTO_jb]]="4","JB7&8",Tabel1[[#This Row],[FTO_jb]]="Alle",Tabel1[[#This Row],[FTO_jb]]) -> JB7&8 | E8: 36 | F8: NaN | G8: =IF(Tabel1[[#This Row],[x.MQ00_20]]="NaN","",VALUE(Tabel1[[#This Row],[x.MQ00_20]])) ->  | H8: NaN | I8: =IF(Tabel1[[#This Row],[x.MQ20_40]]="NaN","",VALUE(Tabel1[[#This Row],[x.MQ20_40]])) ->  | J8: NaN | K8: =IF(Tabel1[[#This Row],[x.MQ40_60]]="NaN","",VALUE(Tabel1[[#This Row],[x.MQ40_60]])) ->  | L8: NaN | M8: =IF(Tabel1[[#This Row],[x.MQ60_80]]="NaN","",VALUE(Tabel1[[#This Row],[x.MQ60_80]])) ->  | N8: NaN | O8: =IF(Tabel1[[#This Row],[x.MQ80_100]]="NaN","",VALUE(Tabel1[[#This Row],[x.MQ80_100]])) -> 
A9: Nordjylland | B9: Husdyrproduktion | C9: 1 | D9: =_xlfn.IFS(Tabel1[[#This Row],[FTO_jb]]="1","JB1&3",Tabel1[[#This Row],[FTO_jb]]="2","JB2&4",Tabel1[[#This Row],[FTO_jb]]="3","JB5&6",Tabel1[[#This Row],[FTO_jb]]="4","JB7&8",Tabel1[[#This Row],[FTO_jb]]="Alle",Tabel1[[#This Row],[FTO_jb]]) -> JB1&3 | E9: 74 | F9: 2114 | G9: =IF(Tabel1[[#This Row],[x.MQ00_20]]="NaN","",VALUE(Tabel1[[#This Row],[x.MQ00_20]])) -> 2114 | H9: 3367 | I9: =IF(Tabel1[[#This Row],[x.MQ20_40]]="NaN","",VALUE(Tabel1[[#This Row],[x.MQ20_40]])) -> 3367 | J9: 3877 | K9: =IF(Tabel1[[#This Row],[x.MQ40_60]]="NaN","",VALUE(Tabel1[[#This Row],[x.MQ40_60]])) -> 3877 | L9: 4515 | M9: =IF(Tabel1[[#This Row],[x.MQ60_80]]="NaN","",VALUE(Tabel1[[#This Row],[x.MQ60_80]])) -> 4515 | N9: 5764 | O9: =IF(Tabel1[[#This Row],[x.MQ80_100]]="NaN","",VALUE(Tabel1[[#This Row],[x.MQ80_100]])) -> 5764
A10: Nordjylland | B10: Husdyrproduktion | C10: 2 | D10: =_xlfn.IFS(Tabel1[[#This Row],[FTO_jb]]="1","JB1&3",Tabel1[[#This Row],[FTO_jb]]="2","JB2&4",Tabel1[[#This Row],[FTO_jb]]="3","JB5&6",Tabel1[[#This Row],[FTO_jb]]="4","JB7&8",Tabel1[[#This Row],[FTO_jb]]="Alle",Tabel1[[#This Row],[FTO_jb]]) -> JB2&4 | E10: 391 | F10: 2038 | G10: =IF(Tabel1[[#This Row],[x.MQ00_20]]="NaN","",VALUE(Tabel1[[#This Row],[x.MQ00_20]])) -> 2038 | H10: 3322 | I10: =IF(Tabel1[[#This Row],[x.MQ20_40]]="NaN","",VALUE(Tabel1[[#This Row],[x.MQ20_40]])) -> 3322 | J10: 3902 | K10: =IF(Tabel1[[#This Row],[x.MQ40_60]]="NaN","",VALUE(Tabel1[[#This Row],[x.MQ40_60]])) -> 3902 | L10: 4524 | M10: =IF(Tabel1[[#This Row],[x.MQ60_80]]="NaN","",VALUE(Tabel1[[#This Row],[x.MQ60_80]])) -> 4524 | N10: 5890 | O10: =IF(Tabel1[[#This Row],[x.MQ80_100]]="NaN","",VALUE(Tabel1[[#This Row],[x.MQ80_100]])) -> 5890
A11: Nordjylland | B11: Husdyrproduktion | C11: 3 | D11: =_xlfn.IFS(Tabel1[[#This Row],[FTO_jb]]="1","JB1&3",Tabel1[[#This Row],[FTO_jb]]="2","JB2&4",Tabel1[[#This Row],[FTO_jb]]="3","JB5&6",Tabel1[[#This Row],[FTO_jb]]="4","JB7&8",Tabel1[[#This Row],[FTO_jb]]="Alle",Tabel1[[#This Row],[FTO_jb]]) -> JB5&6 | E11: 54 | F11: 2063 | G11: =IF(Tabel1[[#This Row],[x.MQ00_20]]="NaN","",VALUE(Tabel1[[#This Row],[x.MQ00_20]])) -> 2063 | H11: 3923 | I11: =IF(Tabel1[[#This Row],[x.MQ20_40]]="NaN","",VALUE(Tabel1[[#This Row],[x.MQ20_40]])) -> 3923 | J11: 4436 | K11: =IF(Tabel1[[#This Row],[x.MQ40_60]]="NaN","",VALUE(Tabel1[[#This Row],[x.MQ40_60]])) -> 4436 | L11: 5181 | M11: =IF(Tabel1[[#This Row],[x.MQ60_80]]="NaN","",VALUE(Tabel1[[#This Row],[x.MQ60_80]])) -> 5181 | N11: 6498 | O11: =IF(Tabel1[[#This Row],[x.MQ80_100]]="NaN","",VALUE(Tabel1[[#This Row],[x.MQ80_100]])) -> 6498
A12: Nordjylland | B12: Husdyrproduktion | C12: 4 | D12: =_xlfn.IFS(Tabel1[[#This Row],[FTO_jb]]="1","JB1&3",Tabel1[[#This Row],[FTO_jb]]="2","JB2&4",Tabel1[[#This Row],[FTO_jb]]="3","JB5&6",Tabel1[[#This Row],[FTO_jb]]="4","JB7&8",Tabel1[[#This Row],[FTO_jb]]="Alle",Tabel1[[#This Row],[FTO_jb]]) -> JB7&8 | E12: 10 | F12: NaN | G12: =IF(Tabel1[[#This Row],[x.MQ00_20]]="NaN","",VALUE(Tabel1[[#This Row],[x.MQ00_20]])) ->  | H12: NaN | I12: =IF(Tabel1[[#This Row],[x.MQ20_40]]="NaN","",VALUE(Tabel1[[#This Row],[x.MQ20_40]])) ->  | J12: NaN | K12: =IF(Tabel1[[#This Row],[x.MQ40_60]]="NaN","",VALUE(Tabel1[[#This Row],[x.MQ40_60]])) ->  | L12: NaN | M12: =IF(Tabel1[[#This Row],[x.MQ60_80]]="NaN","",VALUE(Tabel1[[#This Row],[x.MQ60_80]])) ->  | N12: NaN | O12: =IF(Tabel1[[#This Row],[x.MQ80_100]]="NaN","",VALUE(Tabel1[[#This Row],[x.MQ80_100]])) -> 
A13: Nordjylland | B13: Planteavl | C13: 1 | D13: =_xlfn.IFS(Tabel1[[#This Row],[FTO_jb]]="1","JB1&3",Tabel1[[#This Row],[FTO_jb]]="2","JB2&4",Tabel1[[#This Row],[FTO_jb]]="3","JB5&6",Tabel1[[#This Row],[FTO_jb]]="4","JB7&8",Tabel1[[#This Row],[FTO_jb]]="Alle",Tabel1[[#This Row],[FTO_jb]]) -> JB1&3 | E13: 22 | F13: NaN | G13: =IF(Tabel1[[#This Row],[x.MQ00_20]]="NaN","",VALUE(Tabel1[[#This Row],[x.MQ00_20]])) ->  | H13: NaN | I13: =IF(Tabel1[[#This Row],[x.MQ20_40]]="NaN","",VALUE(Tabel1[[#This Row],[x.MQ20_40]])) ->  | J13: NaN | K13: =IF(Tabel1[[#This Row],[x.MQ40_60]]="NaN","",VALUE(Tabel1[[#This Row],[x.MQ40_60]])) ->  | L13: NaN | M13: =IF(Tabel1[[#This Row],[x.MQ60_80]]="NaN","",VALUE(Tabel1[[#This Row],[x.MQ60_80]])) ->  | N13: NaN | O13: =IF(Tabel1[[#This Row],[x.MQ80_100]]="NaN","",VALUE(Tabel1[[#This Row],[x.MQ80_100]])) -> 
A14: Nordjylland | B14: Planteavl | C14: 2 | D14: =_xlfn.IFS(Tabel1[[#This Row],[FTO_jb]]="1","JB1&3",Tabel1[[#This Row],[FTO_jb]]="2","JB2&4",Tabel1[[#This Row],[FTO_jb]]="3","JB5&6",Tabel1[[#This Row],[FTO_jb]]="4","JB7&8",Tabel1[[#This Row],[FTO_jb]]="Alle",Tabel1[[#This Row],[FTO_jb]]) -> JB2&4 | E14: 109 | F14: 1249 | G14: =IF(Tabel1[[#This Row],[x.MQ00_20]]="NaN","",VALUE(Tabel1[[#This Row],[x.MQ00_20]])) -> 1249 | H14: 2761 | I14: =IF(Tabel1[[#This Row],[x.MQ20_40]]="NaN","",VALUE(Tabel1[[#This Row],[x.MQ20_40]])) -> 2761 | J14: 3551 | K14: =IF(Tabel1[[#This Row],[x.MQ40_60]]="NaN","",VALUE(Tabel1[[#This Row],[x.MQ40_60]])) -> 3551 | L14: 4108 | M14: =IF(Tabel1[[#This Row],[x.MQ60_80]]="NaN","",VALUE(Tabel1[[#This Row],[x.MQ60_80]])) -> 4108 | N14: 5228 | O14: =IF(Tabel1[[#This Row],[x.MQ80_100]]="NaN","",VALUE(Tabel1[[#This Row],[x.MQ80_100]])) -> 5228
A15: Nordjylland | B15: Planteavl | C15: 3 | D15: =_xlfn.IFS(Tabel1[[#This Row],[FTO_jb]]="1","JB1&3",Tabel1[[#This Row],[FTO_jb]]="2","JB2&4",Tabel1[[#This Row],[FTO_jb]]="3","JB5&6",Tabel1[[#This Row],[FTO_jb]]="4","JB7&8",Tabel1[[#This Row],[FTO_jb]]="Alle",Tabel1[[#This Row],[FTO_jb]]) -> JB5&6 | E15: 20 | F15: NaN | G15: =IF(Tabel1[[#This Row],[x.MQ00_20]]="NaN","",VALUE(Tabel1[[#This Row],[x.MQ00_20]])) ->  | H15: NaN | I15: =IF(Tabel1[[#This Row],[x.MQ20_40]]="NaN","",VALUE(Tabel1[[#This Row],[x.MQ20_40]])) ->  | J15: NaN | K15: =IF(Tabel1[[#This Row],[x.MQ40_60]]="NaN","",VALUE(Tabel1[[#This Row],[x.MQ40_60]])) ->  | L15: NaN | M15: =IF(Tabel1[[#This Row],[x.MQ60_80]]="NaN","",VALUE(Tabel1[[#This Row],[x.MQ60_80]])) ->  | N15: NaN | O15: =IF(Tabel1[[#This Row],[x.MQ80_100]]="NaN","",VALUE(Tabel1[[#This Row],[x.MQ80_100]])) -> 
A16: Sjælland Bornholm | B16: Husdyrproduktion | C16: 1 | D16: =_xlfn.IFS(Tabel1[[#This Row],[FTO_jb]]="1","JB1&3",Tabel1[[#This Row],[FTO_jb]]="2","JB2&4",Tabel1[[#This Row],[FTO_jb]]="3","JB5&6",Tabel1[[#This Row],[FTO_jb]]="4","JB7&8",Tabel1[[#This Row],[FTO_jb]]="Alle",Tabel1[[#This Row],[FTO_jb]]) -> JB1&3 | E16: 2 | F16: NaN | G16: =IF(Tabel1[[#This Row],[x.MQ00_20]]="NaN","",VALUE(Tabel1[[#This Row],[x.MQ00_20]])) ->  | H16: NaN | I16: =IF(Tabel1[[#This Row],[x.MQ20_40]]="NaN","",VALUE(Tabel1[[#This Row],[x.MQ20_40]])) ->  | J16: NaN | K16: =IF(Tabel1[[#This Row],[x.MQ40_60]]="NaN","",VALUE(Tabel1[[#This Row],[x.MQ40_60]])) ->  | L16: NaN | M16: =IF(Tabel1[[#This Row],[x.MQ60_80]]="NaN","",VALUE(Tabel1[[#This Row],[x.MQ60_80]])) ->  | N16: NaN | O16: =IF(Tabel1[[#This Row],[x.MQ80_100]]="NaN","",VALUE(Tabel1[[#This Row],[x.MQ80_100]])) -> 
A17: Sjælland Bornholm | B17: Husdyrproduktion | C17: 2 | D17: =_xlfn.IFS(Tabel1[[#This Row],[FTO_jb]]="1","JB1&3",Tabel1[[#This Row],[FTO_jb]]="2","JB2&4",Tabel1[[#This Row],[FTO_jb]]="3","JB5&6",Tabel1[[#This Row],[FTO_jb]]="4","JB7&8",Tabel1[[#This Row],[FTO_jb]]="Alle",Tabel1[[#This Row],[FTO_jb]]) -> JB2&4 | E17: 15 | F17: NaN | G17: =IF(Tabel1[[#This Row],[x.MQ00_20]]="NaN","",VALUE(Tabel1[[#This Row],[x.MQ00_20]])) ->  | H17: NaN | I17: =IF(Tabel1[[#This Row],[x.MQ20_40]]="NaN","",VALUE(Tabel1[[#This Row],[x.MQ20_40]])) ->  | J17: NaN | K17: =IF(Tabel1[[#This Row],[x.MQ40_60]]="NaN","",VALUE(Tabel1[[#This Row],[x.MQ40_60]])) ->  | L17: NaN | M17: =IF(Tabel1[[#This Row],[x.MQ60_80]]="NaN","",VALUE(Tabel1[[#This Row],[x.MQ60_80]])) ->  | N17: NaN | O17: =IF(Tabel1[[#This Row],[x.MQ80_100]]="NaN","",VALUE(Tabel1[[#This Row],[x.MQ80_100]])) -> 
A18: Sjælland Bornholm | B18: Husdyrproduktion | C18: 3 | D18: =_xlfn.IFS(Tabel1[[#This Row],[FTO_jb]]="1","JB1&3",Tabel1[[#This Row],[FTO_jb]]="2","JB2&4",Tabel1[[#This Row],[FTO_jb]]="3","JB5&6",Tabel1[[#This Row],[FTO_jb]]="4","JB7&8",Tabel1[[#This Row],[FTO_jb]]="Alle",Tabel1[[#This Row],[FTO_jb]]) -> JB5&6 | E18: 112 | F18: 2456 | G18: =IF(Tabel1[[#This Row],[x.MQ00_20]]="NaN","",VALUE(Tabel1[[#This Row],[x.MQ00_20]])) -> 2456 | H18: 3500 | I18: =IF(Tabel1[[#This Row],[x.MQ20_40]]="NaN","",VALUE(Tabel1[[#This Row],[x.MQ20_40]])) -> 3500 | J18: 4016 | K18: =IF(Tabel1[[#This Row],[x.MQ40_60]]="NaN","",VALUE(Tabel1[[#This Row],[x.MQ40_60]])) -> 4016 | L18: 4631 | M18: =IF(Tabel1[[#This Row],[x.MQ60_80]]="NaN","",VALUE(Tabel1[[#This Row],[x.MQ60_80]])) -> 4631 | N18: 5621 | O18: =IF(Tabel1[[#This Row],[x.MQ80_100]]="NaN","",VALUE(Tabel1[[#This Row],[x.MQ80_100]])) -> 5621
A19: Sjælland Bornholm | B19: Husdyrproduktion | C19: 4 | D19: =_xlfn.IFS(Tabel1[[#This Row],[FTO_jb]]="1","JB1&3",Tabel1[[#This Row],[FTO_jb]]="2","JB2&4",Tabel1[[#This Row],[FTO_jb]]="3","JB5&6",Tabel1[[#This Row],[FTO_jb]]="4","JB7&8",Tabel1[[#This Row],[FTO_jb]]="Alle",Tabel1[[#This Row],[FTO_jb]]) -> JB7&8 | E19: 18 | F19: NaN | G19: =IF(Tabel1[[#This Row],[x.MQ00_20]]="NaN","",VALUE(Tabel1[[#This Row],[x.MQ00_20]])) ->  | H19: NaN | I19: =IF(Tabel1[[#This Row],[x.MQ20_40]]="NaN","",VALUE(Tabel1[[#This Row],[x.MQ20_40]])) ->  | J19: NaN | K19: =IF(Tabel1[[#This Row],[x.MQ40_60]]="NaN","",VALUE(Tabel1[[#This Row],[x.MQ40_60]])) ->  | L19: NaN | M19: =IF(Tabel1[[#This Row],[x.MQ60_80]]="NaN","",VALUE(Tabel1[[#This Row],[x.MQ60_80]])) ->  | N19: NaN | O19: =IF(Tabel1[[#This Row],[x.MQ80_100]]="NaN","",VALUE(Tabel1[[#This Row],[x.MQ80_100]])) -> 
A20: Sjælland Bornholm | B20: Planteavl | C20: 2 | D20: =_xlfn.IFS(Tabel1[[#This Row],[FTO_jb]]="1","JB1&3",Tabel1[[#This Row],[FTO_jb]]="2","JB2&4",Tabel1[[#This Row],[FTO_jb]]="3","JB5&6",Tabel1[[#This Row],[FTO_jb]]="4","JB7&8",Tabel1[[#This Row],[FTO_jb]]="Alle",Tabel1[[#This Row],[FTO_jb]]) -> JB2&4 | E20: 20 | F20: NaN | G20: =IF(Tabel1[[#This Row],[x.MQ00_20]]="NaN","",VALUE(Tabel1[[#This Row],[x.MQ00_20]])) ->  | H20: NaN | I20: =IF(Tabel1[[#This Row],[x.MQ20_40]]="NaN","",VALUE(Tabel1[[#This Row],[x.MQ20_40]])) ->  | J20: NaN | K20: =IF(Tabel1[[#This Row],[x.MQ40_60]]="NaN","",VALUE(Tabel1[[#This Row],[x.MQ40_60]])) ->  | L20: NaN | M20: =IF(Tabel1[[#This Row],[x.MQ60_80]]="NaN","",VALUE(Tabel1[[#This Row],[x.MQ60_80]])) ->  | N20: NaN | O20: =IF(Tabel1[[#This Row],[x.MQ80_100]]="NaN","",VALUE(Tabel1[[#This Row],[x.MQ80_100]])) -> 
A21: Sjælland Bornholm | B21: Planteavl | C21: 3 | D21: =_xlfn.IFS(Tabel1[[#This Row],[FTO_jb]]="1","JB1&3",Tabel1[[#This Row],[FTO_jb]]="2","JB2&4",Tabel1[[#This Row],[FTO_jb]]="3","JB5&6",Tabel1[[#This Row],[FTO_jb]]="4","JB7&8",Tabel1[[#This Row],[FTO_jb]]="Alle",Tabel1[[#This Row],[FTO_jb]]) -> JB5&6 | E21: 168 | F21: 1951 | G21: =IF(Tabel1[[#This Row],[x.MQ00_20]]="NaN","",VALUE(Tabel1[[#This Row],[x.MQ00_20]])) -> 1951 | H21: 3094 | I21: =IF(Tabel1[[#This Row],[x.MQ20_40]]="NaN","",VALUE(Tabel1[[#This Row],[x.MQ20_40]])) -> 3094 | J21: 3801 | K21: =IF(Tabel1[[#This Row],[x.MQ40_60]]="NaN","",VALUE(Tabel1[[#This Row],[x.MQ40_60]])) -> 3801 | L21: 4327 | M21: =IF(Tabel1[[#This Row],[x.MQ60_80]]="NaN","",VALUE(Tabel1[[#This Row],[x.MQ60_80]])) -> 4327 | N21: 5470 | O21: =IF(Tabel1[[#This Row],[x.MQ80_100]]="NaN","",VALUE(Tabel1[[#This Row],[x.MQ80_100]])) -> 5470
A22: Sjælland Bornholm | B22: Planteavl | C22: 4 | D22: =_xlfn.IFS(Tabel1[[#This Row],[FTO_jb]]="1","JB1&3",Tabel1[[#This Row],[FTO_jb]]="2","JB2&4",Tabel1[[#This Row],[FTO_jb]]="3","JB5&6",Tabel1[[#This Row],[FTO_jb]]="4","JB7&8",Tabel1[[#This Row],[FTO_jb]]="Alle",Tabel1[[#This Row],[FTO_jb]]) -> JB7&8 | E22: 44 | F22: NaN | G22: =IF(Tabel1[[#This Row],[x.MQ00_20]]="NaN","",VALUE(Tabel1[[#This Row],[x.MQ00_20]])) ->  | H22: NaN | I22: =IF(Tabel1[[#This Row],[x.MQ20_40]]="NaN","",VALUE(Tabel1[[#This Row],[x.MQ20_40]])) ->  | J22: NaN | K22: =IF(Tabel1[[#This Row],[x.MQ40_60]]="NaN","",VALUE(Tabel1[[#This Row],[x.MQ40_60]])) ->  | L22: NaN | M22: =IF(Tabel1[[#This Row],[x.MQ60_80]]="NaN","",VALUE(Tabel1[[#This Row],[x.MQ60_80]])) ->  | N22: NaN | O22: =IF(Tabel1[[#This Row],[x.MQ80_100]]="NaN","",VALUE(Tabel1[[#This Row],[x.MQ80_100]])) -> 
A23: Vestjylland | B23: Husdyrproduktion | C23: 1 | D23: =_xlfn.IFS(Tabel1[[#This Row],[FTO_jb]]="1","JB1&3",Tabel1[[#This Row],[FTO_jb]]="2","JB2&4",Tabel1[[#This Row],[FTO_jb]]="3","JB5&6",Tabel1[[#This Row],[FTO_jb]]="4","JB7&8",Tabel1[[#This Row],[FTO_jb]]="Alle",Tabel1[[#This Row],[FTO_jb]]) -> JB1&3 | E23: 570 | F23: 1885 | G23: =IF(Tabel1[[#This Row],[x.MQ00_20]]="NaN","",VALUE(Tabel1[[#This Row],[x.MQ00_20]])) -> 1885 | H23: 3141 | I23: =IF(Tabel1[[#This Row],[x.MQ20_40]]="NaN","",VALUE(Tabel1[[#This Row],[x.MQ20_40]])) -> 3141 | J23: 3685 | K23: =IF(Tabel1[[#This Row],[x.MQ40_60]]="NaN","",VALUE(Tabel1[[#This Row],[x.MQ40_60]])) -> 3685 | L23: 4267 | M23: =IF(Tabel1[[#This Row],[x.MQ60_80]]="NaN","",VALUE(Tabel1[[#This Row],[x.MQ60_80]])) -> 4267 | N23: 5573 | O23: =IF(Tabel1[[#This Row],[x.MQ80_100]]="NaN","",VALUE(Tabel1[[#This Row],[x.MQ80_100]])) -> 5573
A24: Vestjylland | B24: Husdyrproduktion | C24: 2 | D24: =_xlfn.IFS(Tabel1[[#This Row],[FTO_jb]]="1","JB1&3",Tabel1[[#This Row],[FTO_jb]]="2","JB2&4",Tabel1[[#This Row],[FTO_jb]]="3","JB5&6",Tabel1[[#This Row],[FTO_jb]]="4","JB7&8",Tabel1[[#This Row],[FTO_jb]]="Alle",Tabel1[[#This Row],[FTO_jb]]) -> JB2&4 | E24: 141 | F24: 2167 | G24: =IF(Tabel1[[#This Row],[x.MQ00_20]]="NaN","",VALUE(Tabel1[[#This Row],[x.MQ00_20]])) -> 2167 | H24: 3252 | I24: =IF(Tabel1[[#This Row],[x.MQ20_40]]="NaN","",VALUE(Tabel1[[#This Row],[x.MQ20_40]])) -> 3252 | J24: 3827 | K24: =IF(Tabel1[[#This Row],[x.MQ40_60]]="NaN","",VALUE(Tabel1[[#This Row],[x.MQ40_60]])) -> 3827 | L24: 4369 | M24: =IF(Tabel1[[#This Row],[x.MQ60_80]]="NaN","",VALUE(Tabel1[[#This Row],[x.MQ60_80]])) -> 4369 | N24: 5647 | O24: =IF(Tabel1[[#This Row],[x.MQ80_100]]="NaN","",VALUE(Tabel1[[#This Row],[x.MQ80_100]])) -> 5647
A25: Vestjylland | B25: Husdyrproduktion | C25: 3 | D25: =_xlfn.IFS(Tabel1[[#This Row],[FTO_jb]]="1","JB1&3",Tabel1[[#This Row],[FTO_jb]]="2","JB2&4",Tabel1[[#This Row],[FTO_jb]]="3","JB5&6",Tabel1[[#This Row],[FTO_jb]]="4","JB7&8",Tabel1[[#This Row],[FTO_jb]]="Alle",Tabel1[[#This Row],[FTO_jb]]) -> JB5&6 | E25: 62 | F25: 2744 | G25: =IF(Tabel1[[#This Row],[x.MQ00_20]]="NaN","",VALUE(Tabel1[[#This Row],[x.MQ00_20]])) -> 2744 | H25: 3932 | I25: =IF(Tabel1[[#This Row],[x.MQ20_40]]="NaN","",VALUE(Tabel1[[#This Row],[x.MQ20_40]])) -> 3932 | J25: 4461 | K25: =IF(Tabel1[[#This Row],[x.MQ40_60]]="NaN","",VALUE(Tabel1[[#This Row],[x.MQ40_60]])) -> 4461 | L25: 4851 | M25: =IF(Tabel1[[#This Row],[x.MQ60_80]]="NaN","",VALUE(Tabel1[[#This Row],[x.MQ60_80]])) -> 4851 | N25: 5802 | O25: =IF(Tabel1[[#This Row],[x.MQ80_100]]="NaN","",VALUE(Tabel1[[#This Row],[x.MQ80_100]])) -> 5802
A26: Vestjylland | B26: Husdyrproduktion | C26: 4 | D26: =_xlfn.IFS(Tabel1[[#This Row],[FTO_jb]]="1","JB1&3",Tabel1[[#This Row],[FTO_jb]]="2","JB2&4",Tabel1[[#This Row],[FTO_jb]]="3","JB5&6",Tabel1[[#This Row],[FTO_jb]]="4","JB7&8",Tabel1[[#This Row],[FTO_jb]]="Alle",Tabel1[[#This Row],[FTO_jb]]) -> JB7&8 | E26: 31 | F26: NaN | G26: =IF(Tabel1[[#This Row],[x.MQ00_20]]="NaN","",VALUE(Tabel1[[#This Row],[x.MQ00_20]])) ->  | H26: NaN | I26: =IF(Tabel1[[#This Row],[x.MQ20_40]]="NaN","",VALUE(Tabel1[[#This Row],[x.MQ20_40]])) ->  | J26: NaN | K26: =IF(Tabel1[[#This Row],[x.MQ40_60]]="NaN","",VALUE(Tabel1[[#This Row],[x.MQ40_60]])) ->  | L26: NaN | M26: =IF(Tabel1[[#This Row],[x.MQ60_80]]="NaN","",VALUE(Tabel1[[#This Row],[x.MQ60_80]])) ->  | N26: NaN | O26: =IF(Tabel1[[#This Row],[x.MQ80_100]]="NaN","",VALUE(Tabel1[[#This Row],[x.MQ80_100]])) -> 
A27: Vestjylland | B27: Planteavl | C27: 1 | D27: =_xlfn.IFS(Tabel1[[#This Row],[FTO_jb]]="1","JB1&3",Tabel1[[#This Row],[FTO_jb]]="2","JB2&4",Tabel1[[#This Row],[FTO_jb]]="3","JB5&6",Tabel1[[#This Row],[FTO_jb]]="4","JB7&8",Tabel1[[#This Row],[FTO_jb]]="Alle",Tabel1[[#This Row],[FTO_jb]]) -> JB1&3 | E27: 155 | F27: 1857 | G27: =IF(Tabel1[[#This Row],[x.MQ00_20]]="NaN","",VALUE(Tabel1[[#This Row],[x.MQ00_20]])) -> 1857 | H27: 3037 | I27: =IF(Tabel1[[#This Row],[x.MQ20_40]]="NaN","",VALUE(Tabel1[[#This Row],[x.MQ20_40]])) -> 3037 | J27: 3544 | K27: =IF(Tabel1[[#This Row],[x.MQ40_60]]="NaN","",VALUE(Tabel1[[#This Row],[x.MQ40_60]])) -> 3544 | L27: 4335 | M27: =IF(Tabel1[[#This Row],[x.MQ60_80]]="NaN","",VALUE(Tabel1[[#This Row],[x.MQ60_80]])) -> 4335 | N27: 5751 | O27: =IF(Tabel1[[#This Row],[x.MQ80_100]]="NaN","",VALUE(Tabel1[[#This Row],[x.MQ80_100]])) -> 5751
A28: Vestjylland | B28: Planteavl | C28: 2 | D28: =_xlfn.IFS(Tabel1[[#This Row],[FTO_jb]]="1","JB1&3",Tabel1[[#This Row],[FTO_jb]]="2","JB2&4",Tabel1[[#This Row],[FTO_jb]]="3","JB5&6",Tabel1[[#This Row],[FTO_jb]]="4","JB7&8",Tabel1[[#This Row],[FTO_jb]]="Alle",Tabel1[[#This Row],[FTO_jb]]) -> JB2&4 | E28: 39 | F28: NaN | G28: =IF(Tabel1[[#This Row],[x.MQ00_20]]="NaN","",VALUE(Tabel1[[#This Row],[x.MQ00_20]])) ->  | H28: NaN | I28: =IF(Tabel1[[#This Row],[x.MQ20_40]]="NaN","",VALUE(Tabel1[[#This Row],[x.MQ20_40]])) ->  | J28: NaN | K28: =IF(Tabel1[[#This Row],[x.MQ40_60]]="NaN","",VALUE(Tabel1[[#This Row],[x.MQ40_60]])) ->  | L28: NaN | M28: =IF(Tabel1[[#This Row],[x.MQ60_80]]="NaN","",VALUE(Tabel1[[#This Row],[x.MQ60_80]])) ->  | N28: NaN | O28: =IF(Tabel1[[#This Row],[x.MQ80_100]]="NaN","",VALUE(Tabel1[[#This Row],[x.MQ80_100]])) -> 
A29: Vestjylland | B29: Planteavl | C29: 3 | D29: =_xlfn.IFS(Tabel1[[#This Row],[FTO_jb]]="1","JB1&3",Tabel1[[#This Row],[FTO_jb]]="2","JB2&4",Tabel1[[#This Row],[FTO_jb]]="3","JB5&6",Tabel1[[#This Row],[FTO_jb]]="4","JB7&8",Tabel1[[#This Row],[FTO_jb]]="Alle",Tabel1[[#This Row],[FTO_jb]]) -> JB5&6 | E29: 9 | F29: NaN | G29: =IF(Tabel1[[#This Row],[x.MQ00_20]]="NaN","",VALUE(Tabel1[[#This Row],[x.MQ00_20]])) ->  | H29: NaN | I29: =IF(Tabel1[[#This Row],[x.MQ20_40]]="NaN","",VALUE(Tabel1[[#This Row],[x.MQ20_40]])) ->  | J29: NaN | K29: =IF(Tabel1[[#This Row],[x.MQ40_60]]="NaN","",VALUE(Tabel1[[#This Row],[x.MQ40_60]])) ->  | L29: NaN | M29: =IF(Tabel1[[#This Row],[x.MQ60_80]]="NaN","",VALUE(Tabel1[[#This Row],[x.MQ60_80]])) ->  | N29: NaN | O29: =IF(Tabel1[[#This Row],[x.MQ80_100]]="NaN","",VALUE(Tabel1[[#This Row],[x.MQ80_100]])) -> 
A30: Vestjylland | B30: Planteavl | C30: 4 | D30: =_xlfn.IFS(Tabel1[[#This Row],[FTO_jb]]="1","JB1&3",Tabel1[[#This Row],[FTO_jb]]="2","JB2&4",Tabel1[[#This Row],[FTO_jb]]="3","JB5&6",Tabel1[[#This Row],[FTO_jb]]="4","JB7&8",Tabel1[[#This Row],[FTO_jb]]="Alle",Tabel1[[#This Row],[FTO_jb]]) -> JB7&8 | E30: 7 | F30: NaN | G30: =IF(Tabel1[[#This Row],[x.MQ00_20]]="NaN","",VALUE(Tabel1[[#This Row],[x.MQ00_20]])) ->  | H30: NaN | I30: =IF(Tabel1[[#This Row],[x.MQ20_40]]="NaN","",VALUE(Tabel1[[#This Row],[x.MQ20_40]])) ->  | J30: NaN | K30: =IF(Tabel1[[#This Row],[x.MQ40_60]]="NaN","",VALUE(Tabel1[[#This Row],[x.MQ40_60]])) ->  | L30: NaN | M30: =IF(Tabel1[[#This Row],[x.MQ60_80]]="NaN","",VALUE(Tabel1[[#This Row],[x.MQ60_80]])) ->  | N30: NaN | O30: =IF(Tabel1[[#This Row],[x.MQ80_100]]="NaN","",VALUE(Tabel1[[#This Row],[x.MQ80_100]])) -> 
A31: Østjylland-Fyn | B31: Husdyrproduktion | C31: 1 | D31: =_xlfn.IFS(Tabel1[[#This Row],[FTO_jb]]="1","JB1&3",Tabel1[[#This Row],[FTO_jb]]="2","JB2&4",Tabel1[[#This Row],[FTO_jb]]="3","JB5&6",Tabel1[[#This Row],[FTO_jb]]="4","JB7&8",Tabel1[[#This Row],[FTO_jb]]="Alle",Tabel1[[#This Row],[FTO_jb]]) -> JB1&3 | E31: 241 | F31: 2464 | G31: =IF(Tabel1[[#This Row],[x.MQ00_20]]="NaN","",VALUE(Tabel1[[#This Row],[x.MQ00_20]])) -> 2464 | H31: 3272 | I31: =IF(Tabel1[[#This Row],[x.MQ20_40]]="NaN","",VALUE(Tabel1[[#This Row],[x.MQ20_40]])) -> 3272 | J31: 3685 | K31: =IF(Tabel1[[#This Row],[x.MQ40_60]]="NaN","",VALUE(Tabel1[[#This Row],[x.MQ40_60]])) -> 3685 | L31: 4194 | M31: =IF(Tabel1[[#This Row],[x.MQ60_80]]="NaN","",VALUE(Tabel1[[#This Row],[x.MQ60_80]])) -> 4194 | N31: 5546 | O31: =IF(Tabel1[[#This Row],[x.MQ80_100]]="NaN","",VALUE(Tabel1[[#This Row],[x.MQ80_100]])) -> 5546
A32: Østjylland-Fyn | B32: Husdyrproduktion | C32: 2 | D32: =_xlfn.IFS(Tabel1[[#This Row],[FTO_jb]]="1","JB1&3",Tabel1[[#This Row],[FTO_jb]]="2","JB2&4",Tabel1[[#This Row],[FTO_jb]]="3","JB5&6",Tabel1[[#This Row],[FTO_jb]]="4","JB7&8",Tabel1[[#This Row],[FTO_jb]]="Alle",Tabel1[[#This Row],[FTO_jb]]) -> JB2&4 | E32: 152 | F32: 2427 | G32: =IF(Tabel1[[#This Row],[x.MQ00_20]]="NaN","",VALUE(Tabel1[[#This Row],[x.MQ00_20]])) -> 2427 | H32: 3520 | I32: =IF(Tabel1[[#This Row],[x.MQ20_40]]="NaN","",VALUE(Tabel1[[#This Row],[x.MQ20_40]])) -> 3520 | J32: 4010 | K32: =IF(Tabel1[[#This Row],[x.MQ40_60]]="NaN","",VALUE(Tabel1[[#This Row],[x.MQ40_60]])) -> 4010 | L32: 4470 | M32: =IF(Tabel1[[#This Row],[x.MQ60_80]]="NaN","",VALUE(Tabel1[[#This Row],[x.MQ60_80]])) -> 4470 | N32: 5743 | O32: =IF(Tabel1[[#This Row],[x.MQ80_100]]="NaN","",VALUE(Tabel1[[#This Row],[x.MQ80_100]])) -> 5743
A33: Østjylland-Fyn | B33: Husdyrproduktion | C33: 3 | D33: =_xlfn.IFS(Tabel1[[#This Row],[FTO_jb]]="1","JB1&3",Tabel1[[#This Row],[FTO_jb]]="2","JB2&4",Tabel1[[#This Row],[FTO_jb]]="3","JB5&6",Tabel1[[#This Row],[FTO_jb]]="4","JB7&8",Tabel1[[#This Row],[FTO_jb]]="Alle",Tabel1[[#This Row],[FTO_jb]]) -> JB5&6 | E33: 306 | F33: 2808 | G33: =IF(Tabel1[[#This Row],[x.MQ00_20]]="NaN","",VALUE(Tabel1[[#This Row],[x.MQ00_20]])) -> 2808 | H33: 3833 | I33: =IF(Tabel1[[#This Row],[x.MQ20_40]]="NaN","",VALUE(Tabel1[[#This Row],[x.MQ20_40]])) -> 3833 | J33: 4365 | K33: =IF(Tabel1[[#This Row],[x.MQ40_60]]="NaN","",VALUE(Tabel1[[#This Row],[x.MQ40_60]])) -> 4365 | L33: 4894 | M33: =IF(Tabel1[[#This Row],[x.MQ60_80]]="NaN","",VALUE(Tabel1[[#This Row],[x.MQ60_80]])) -> 4894 | N33: 6115 | O33: =IF(Tabel1[[#This Row],[x.MQ80_100]]="NaN","",VALUE(Tabel1[[#This Row],[x.MQ80_100]])) -> 6115
A34: Østjylland-Fyn | B34: Husdyrproduktion | C34: 4 | D34: =_xlfn.IFS(Tabel1[[#This Row],[FTO_jb]]="1","JB1&3",Tabel1[[#This Row],[FTO_jb]]="2","JB2&4",Tabel1[[#This Row],[FTO_jb]]="3","JB5&6",Tabel1[[#This Row],[FTO_jb]]="4","JB7&8",Tabel1[[#This Row],[FTO_jb]]="Alle",Tabel1[[#This Row],[FTO_jb]]) -> JB7&8 | E34: 32 | F34: NaN | G34: =IF(Tabel1[[#This Row],[x.MQ00_20]]="NaN","",VALUE(Tabel1[[#This Row],[x.MQ00_20]])) ->  | H34: NaN | I34: =IF(Tabel1[[#This Row],[x.MQ20_40]]="NaN","",VALUE(Tabel1[[#This Row],[x.MQ20_40]])) ->  | J34: NaN | K34: =IF(Tabel1[[#This Row],[x.MQ40_60]]="NaN","",VALUE(Tabel1[[#This Row],[x.MQ40_60]])) ->  | L34: NaN | M34: =IF(Tabel1[[#This Row],[x.MQ60_80]]="NaN","",VALUE(Tabel1[[#This Row],[x.MQ60_80]])) ->  | N34: NaN | O34: =IF(Tabel1[[#This Row],[x.MQ80_100]]="NaN","",VALUE(Tabel1[[#This Row],[x.MQ80_100]])) -> 
A35: Østjylland-Fyn | B35: Planteavl | C35: 1 | D35: =_xlfn.IFS(Tabel1[[#This Row],[FTO_jb]]="1","JB1&3",Tabel1[[#This Row],[FTO_jb]]="2","JB2&4",Tabel1[[#This Row],[FTO_jb]]="3","JB5&6",Tabel1[[#This Row],[FTO_jb]]="4","JB7&8",Tabel1[[#This Row],[FTO_jb]]="Alle",Tabel1[[#This Row],[FTO_jb]]) -> JB1&3 | E35: 73 | F35: 965 | G35: =IF(Tabel1[[#This Row],[x.MQ00_20]]="NaN","",VALUE(Tabel1[[#This Row],[x.MQ00_20]])) -> 965 | H35: 2353 | I35: =IF(Tabel1[[#This Row],[x.MQ20_40]]="NaN","",VALUE(Tabel1[[#This Row],[x.MQ20_40]])) -> 2353 | J35: 3237 | K35: =IF(Tabel1[[#This Row],[x.MQ40_60]]="NaN","",VALUE(Tabel1[[#This Row],[x.MQ40_60]])) -> 3237 | L35: 3883 | M35: =IF(Tabel1[[#This Row],[x.MQ60_80]]="NaN","",VALUE(Tabel1[[#This Row],[x.MQ60_80]])) -> 3883 | N35: 5021 | O35: =IF(Tabel1[[#This Row],[x.MQ80_100]]="NaN","",VALUE(Tabel1[[#This Row],[x.MQ80_100]])) -> 5021
A36: Østjylland-Fyn | B36: Planteavl | C36: 2 | D36: =_xlfn.IFS(Tabel1[[#This Row],[FTO_jb]]="1","JB1&3",Tabel1[[#This Row],[FTO_jb]]="2","JB2&4",Tabel1[[#This Row],[FTO_jb]]="3","JB5&6",Tabel1[[#This Row],[FTO_jb]]="4","JB7&8",Tabel1[[#This Row],[FTO_jb]]="Alle",Tabel1[[#This Row],[FTO_jb]]) -> JB2&4 | E36: 57 | F36: 1887 | G36: =IF(Tabel1[[#This Row],[x.MQ00_20]]="NaN","",VALUE(Tabel1[[#This Row],[x.MQ00_20]])) -> 1887 | H36: 3192 | I36: =IF(Tabel1[[#This Row],[x.MQ20_40]]="NaN","",VALUE(Tabel1[[#This Row],[x.MQ20_40]])) -> 3192 | J36: 3738 | K36: =IF(Tabel1[[#This Row],[x.MQ40_60]]="NaN","",VALUE(Tabel1[[#This Row],[x.MQ40_60]])) -> 3738 | L36: 4262 | M36: =IF(Tabel1[[#This Row],[x.MQ60_80]]="NaN","",VALUE(Tabel1[[#This Row],[x.MQ60_80]])) -> 4262 | N36: 6123 | O36: =IF(Tabel1[[#This Row],[x.MQ80_100]]="NaN","",VALUE(Tabel1[[#This Row],[x.MQ80_100]])) -> 6123
A37: Østjylland-Fyn | B37: Planteavl | C37: 3 | D37: =_xlfn.IFS(Tabel1[[#This Row],[FTO_jb]]="1","JB1&3",Tabel1[[#This Row],[FTO_jb]]="2","JB2&4",Tabel1[[#This Row],[FTO_jb]]="3","JB5&6",Tabel1[[#This Row],[FTO_jb]]="4","JB7&8",Tabel1[[#This Row],[FTO_jb]]="Alle",Tabel1[[#This Row],[FTO_jb]]) -> JB5&6 | E37: 210 | F37: 2039 | G37: =IF(Tabel1[[#This Row],[x.MQ00_20]]="NaN","",VALUE(Tabel1[[#This Row],[x.MQ00_20]])) -> 2039 | H37: 3395 | I37: =IF(Tabel1[[#This Row],[x.MQ20_40]]="NaN","",VALUE(Tabel1[[#This Row],[x.MQ20_40]])) -> 3395 | J37: 3967 | K37: =IF(Tabel1[[#This Row],[x.MQ40_60]]="NaN","",VALUE(Tabel1[[#This Row],[x.MQ40_60]])) -> 3967 | L37: 4482 | M37: =IF(Tabel1[[#This Row],[x.MQ60_80]]="NaN","",VALUE(Tabel1[[#This Row],[x.MQ60_80]])) -> 4482 | N37: 5835 | O37: =IF(Tabel1[[#This Row],[x.MQ80_100]]="NaN","",VALUE(Tabel1[[#This Row],[x.MQ80_100]])) -> 5835
A38: Østjylland-Fyn | B38: Planteavl | C38: 4 | D38: =_xlfn.IFS(Tabel1[[#This Row],[FTO_jb]]="1","JB1&3",Tabel1[[#This Row],[FTO_jb]]="2","JB2&4",Tabel1[[#This Row],[FTO_jb]]="3","JB5&6",Tabel1[[#This Row],[FTO_jb]]="4","JB7&8",Tabel1[[#This Row],[FTO_jb]]="Alle",Tabel1[[#This Row],[FTO_jb]]) -> JB7&8 | E38: 15 | F38: NaN | G38: =IF(Tabel1[[#This Row],[x.MQ00_20]]="NaN","",VALUE(Tabel1[[#This Row],[x.MQ00_20]])) ->  | H38: NaN | I38: =IF(Tabel1[[#This Row],[x.MQ20_40]]="NaN","",VALUE(Tabel1[[#This Row],[x.MQ20_40]])) ->  | J38: NaN | K38: =IF(Tabel1[[#This Row],[x.MQ40_60]]="NaN","",VALUE(Tabel1[[#This Row],[x.MQ40_60]])) ->  | L38: NaN | M38: =IF(Tabel1[[#This Row],[x.MQ60_80]]="NaN","",VALUE(Tabel1[[#This Row],[x.MQ60_80]])) ->  | N38: NaN | O38: =IF(Tabel1[[#This Row],[x.MQ80_100]]="NaN","",VALUE(Tabel1[[#This Row],[x.MQ80_100]])) -> 
A39: Lolland-Falster | B39: Husdyrproduktion | C39: Alle | D39: =_xlfn.IFS(Tabel1[[#This Row],[FTO_jb]]="1","JB1&3",Tabel1[[#This Row],[FTO_jb]]="2","JB2&4",Tabel1[[#This Row],[FTO_jb]]="3","JB5&6",Tabel1[[#This Row],[FTO_jb]]="4","JB7&8",Tabel1[[#This Row],[FTO_jb]]="Alle",Tabel1[[#This Row],[FTO_jb]]) -> Alle | E39: 37 | F39: NaN | G39: =IF(Tabel1[[#This Row],[x.MQ00_20]]="NaN","",VALUE(Tabel1[[#This Row],[x.MQ00_20]])) ->  | H39: NaN | I39: =IF(Tabel1[[#This Row],[x.MQ20_40]]="NaN","",VALUE(Tabel1[[#This Row],[x.MQ20_40]])) ->  | J39: NaN | K39: =IF(Tabel1[[#This Row],[x.MQ40_60]]="NaN","",VALUE(Tabel1[[#This Row],[x.MQ40_60]])) ->  | L39: NaN | M39: =IF(Tabel1[[#This Row],[x.MQ60_80]]="NaN","",VALUE(Tabel1[[#This Row],[x.MQ60_80]])) ->  | N39: NaN | O39: =IF(Tabel1[[#This Row],[x.MQ80_100]]="NaN","",VALUE(Tabel1[[#This Row],[x.MQ80_100]])) -> 
A40: Lolland-Falster | B40: Planteavl | C40: Alle | D40: =_xlfn.IFS(Tabel1[[#This Row],[FTO_jb]]="1","JB1&3",Tabel1[[#This Row],[FTO_jb]]="2","JB2&4",Tabel1[[#This Row],[FTO_jb]]="3","JB5&6",Tabel1[[#This Row],[FTO_jb]]="4","JB7&8",Tabel1[[#This Row],[FTO_jb]]="Alle",Tabel1[[#This Row],[FTO_jb]]) -> Alle | E40: 82 | F40: 3194 | G40: =IF(Tabel1[[#This Row],[x.MQ00_20]]="NaN","",VALUE(Tabel1[[#This Row],[x.MQ00_20]])) -> 3194 | H40: 5108 | I40: =IF(Tabel1[[#This Row],[x.MQ20_40]]="NaN","",VALUE(Tabel1[[#This Row],[x.MQ20_40]])) -> 5108 | J40: 5901 | K40: =IF(Tabel1[[#This Row],[x.MQ40_60]]="NaN","",VALUE(Tabel1[[#This Row],[x.MQ40_60]])) -> 5901 | L40: 6491 | M40: =IF(Tabel1[[#This Row],[x.MQ60_80]]="NaN","",VALUE(Tabel1[[#This Row],[x.MQ60_80]])) -> 6491 | N40: 7655 | O40: =IF(Tabel1[[#This Row],[x.MQ80_100]]="NaN","",VALUE(Tabel1[[#This Row],[x.MQ80_100]])) -> 7655
A41: Nordjylland | B41: Husdyrproduktion | C41: Alle | D41: =_xlfn.IFS(Tabel1[[#This Row],[FTO_jb]]="1","JB1&3",Tabel1[[#This Row],[FTO_jb]]="2","JB2&4",Tabel1[[#This Row],[FTO_jb]]="3","JB5&6",Tabel1[[#This Row],[FTO_jb]]="4","JB7&8",Tabel1[[#This Row],[FTO_jb]]="Alle",Tabel1[[#This Row],[FTO_jb]]) -> Alle | E41: 529 | F41: 2018 | G41: =IF(Tabel1[[#This Row],[x.MQ00_20]]="NaN","",VALUE(Tabel1[[#This Row],[x.MQ00_20]])) -> 2018 | H41: 3369 | I41: =IF(Tabel1[[#This Row],[x.MQ20_40]]="NaN","",VALUE(Tabel1[[#This Row],[x.MQ20_40]])) -> 3369 | J41: 3958 | K41: =IF(Tabel1[[#This Row],[x.MQ40_60]]="NaN","",VALUE(Tabel1[[#This Row],[x.MQ40_60]])) -> 3958 | L41: 4604 | M41: =IF(Tabel1[[#This Row],[x.MQ60_80]]="NaN","",VALUE(Tabel1[[#This Row],[x.MQ60_80]])) -> 4604 | N41: 5963 | O41: =IF(Tabel1[[#This Row],[x.MQ80_100]]="NaN","",VALUE(Tabel1[[#This Row],[x.MQ80_100]])) -> 5963
A42: Nordjylland | B42: Planteavl | C42: Alle | D42: =_xlfn.IFS(Tabel1[[#This Row],[FTO_jb]]="1","JB1&3",Tabel1[[#This Row],[FTO_jb]]="2","JB2&4",Tabel1[[#This Row],[FTO_jb]]="3","JB5&6",Tabel1[[#This Row],[FTO_jb]]="4","JB7&8",Tabel1[[#This Row],[FTO_jb]]="Alle",Tabel1[[#This Row],[FTO_jb]]) -> Alle | E42: 151 | F42: 1255 | G42: =IF(Tabel1[[#This Row],[x.MQ00_20]]="NaN","",VALUE(Tabel1[[#This Row],[x.MQ00_20]])) -> 1255 | H42: 2930 | I42: =IF(Tabel1[[#This Row],[x.MQ20_40]]="NaN","",VALUE(Tabel1[[#This Row],[x.MQ20_40]])) -> 2930 | J42: 3706 | K42: =IF(Tabel1[[#This Row],[x.MQ40_60]]="NaN","",VALUE(Tabel1[[#This Row],[x.MQ40_60]])) -> 3706 | L42: 4246 | M42: =IF(Tabel1[[#This Row],[x.MQ60_80]]="NaN","",VALUE(Tabel1[[#This Row],[x.MQ60_80]])) -> 4246 | N42: 5121 | O42: =IF(Tabel1[[#This Row],[x.MQ80_100]]="NaN","",VALUE(Tabel1[[#This Row],[x.MQ80_100]])) -> 5121
A43: Sjælland Bornholm | B43: Husdyrproduktion | C43: Alle | D43: =_xlfn.IFS(Tabel1[[#This Row],[FTO_jb]]="1","JB1&3",Tabel1[[#This Row],[FTO_jb]]="2","JB2&4",Tabel1[[#This Row],[FTO_jb]]="3","JB5&6",Tabel1[[#This Row],[FTO_jb]]="4","JB7&8",Tabel1[[#This Row],[FTO_jb]]="Alle",Tabel1[[#This Row],[FTO_jb]]) -> Alle | E43: 147 | F43: 2432 | G43: =IF(Tabel1[[#This Row],[x.MQ00_20]]="NaN","",VALUE(Tabel1[[#This Row],[x.MQ00_20]])) -> 2432 | H43: 3502 | I43: =IF(Tabel1[[#This Row],[x.MQ20_40]]="NaN","",VALUE(Tabel1[[#This Row],[x.MQ20_40]])) -> 3502 | J43: 4010 | K43: =IF(Tabel1[[#This Row],[x.MQ40_60]]="NaN","",VALUE(Tabel1[[#This Row],[x.MQ40_60]])) -> 4010 | L43: 4555 | M43: =IF(Tabel1[[#This Row],[x.MQ60_80]]="NaN","",VALUE(Tabel1[[#This Row],[x.MQ60_80]])) -> 4555 | N43: 5519 | O43: =IF(Tabel1[[#This Row],[x.MQ80_100]]="NaN","",VALUE(Tabel1[[#This Row],[x.MQ80_100]])) -> 5519
A44: Sjælland Bornholm | B44: Planteavl | C44: Alle | D44: =_xlfn.IFS(Tabel1[[#This Row],[FTO_jb]]="1","JB1&3",Tabel1[[#This Row],[FTO_jb]]="2","JB2&4",Tabel1[[#This Row],[FTO_jb]]="3","JB5&6",Tabel1[[#This Row],[FTO_jb]]="4","JB7&8",Tabel1[[#This Row],[FTO_jb]]="Alle",Tabel1[[#This Row],[FTO_jb]]) -> Alle | E44: 232 | F44: 1798 | G44: =IF(Tabel1[[#This Row],[x.MQ00_20]]="NaN","",VALUE(Tabel1[[#This Row],[x.MQ00_20]])) -> 1798 | H44: 3030 | I44: =IF(Tabel1[[#This Row],[x.MQ20_40]]="NaN","",VALUE(Tabel1[[#This Row],[x.MQ20_40]])) -> 3030 | J44: 3736 | K44: =IF(Tabel1[[#This Row],[x.MQ40_60]]="NaN","",VALUE(Tabel1[[#This Row],[x.MQ40_60]])) -> 3736 | L44: 4270 | M44: =IF(Tabel1[[#This Row],[x.MQ60_80]]="NaN","",VALUE(Tabel1[[#This Row],[x.MQ60_80]])) -> 4270 | N44: 5430 | O44: =IF(Tabel1[[#This Row],[x.MQ80_100]]="NaN","",VALUE(Tabel1[[#This Row],[x.MQ80_100]])) -> 5430
A45: Vestjylland | B45: Husdyrproduktion | C45: Alle | D45: =_xlfn.IFS(Tabel1[[#This Row],[FTO_jb]]="1","JB1&3",Tabel1[[#This Row],[FTO_jb]]="2","JB2&4",Tabel1[[#This Row],[FTO_jb]]="3","JB5&6",Tabel1[[#This Row],[FTO_jb]]="4","JB7&8",Tabel1[[#This Row],[FTO_jb]]="Alle",Tabel1[[#This Row],[FTO_jb]]) -> Alle | E45: 804 | F45: 1983 | G45: =IF(Tabel1[[#This Row],[x.MQ00_20]]="NaN","",VALUE(Tabel1[[#This Row],[x.MQ00_20]])) -> 1983 | H45: 3205 | I45: =IF(Tabel1[[#This Row],[x.MQ20_40]]="NaN","",VALUE(Tabel1[[#This Row],[x.MQ20_40]])) -> 3205 | J45: 3756 | K45: =IF(Tabel1[[#This Row],[x.MQ40_60]]="NaN","",VALUE(Tabel1[[#This Row],[x.MQ40_60]])) -> 3756 | L45: 4333 | M45: =IF(Tabel1[[#This Row],[x.MQ60_80]]="NaN","",VALUE(Tabel1[[#This Row],[x.MQ60_80]])) -> 4333 | N45: 5596 | O45: =IF(Tabel1[[#This Row],[x.MQ80_100]]="NaN","",VALUE(Tabel1[[#This Row],[x.MQ80_100]])) -> 5596
A46: Vestjylland | B46: Planteavl | C46: Alle | D46: =_xlfn.IFS(Tabel1[[#This Row],[FTO_jb]]="1","JB1&3",Tabel1[[#This Row],[FTO_jb]]="2","JB2&4",Tabel1[[#This Row],[FTO_jb]]="3","JB5&6",Tabel1[[#This Row],[FTO_jb]]="4","JB7&8",Tabel1[[#This Row],[FTO_jb]]="Alle",Tabel1[[#This Row],[FTO_jb]]) -> Alle | E46: 210 | F46: 1905 | G46: =IF(Tabel1[[#This Row],[x.MQ00_20]]="NaN","",VALUE(Tabel1[[#This Row],[x.MQ00_20]])) -> 1905 | H46: 3049 | I46: =IF(Tabel1[[#This Row],[x.MQ20_40]]="NaN","",VALUE(Tabel1[[#This Row],[x.MQ20_40]])) -> 3049 | J46: 3546 | K46: =IF(Tabel1[[#This Row],[x.MQ40_60]]="NaN","",VALUE(Tabel1[[#This Row],[x.MQ40_60]])) -> 3546 | L46: 4242 | M46: =IF(Tabel1[[#This Row],[x.MQ60_80]]="NaN","",VALUE(Tabel1[[#This Row],[x.MQ60_80]])) -> 4242 | N46: 5602 | O46: =IF(Tabel1[[#This Row],[x.MQ80_100]]="NaN","",VALUE(Tabel1[[#This Row],[x.MQ80_100]])) -> 5602
A47: Østjylland-Fyn | B47: Husdyrproduktion | C47: Alle | D47: =_xlfn.IFS(Tabel1[[#This Row],[FTO_jb]]="1","JB1&3",Tabel1[[#This Row],[FTO_jb]]="2","JB2&4",Tabel1[[#This Row],[FTO_jb]]="3","JB5&6",Tabel1[[#This Row],[FTO_jb]]="4","JB7&8",Tabel1[[#This Row],[FTO_jb]]="Alle",Tabel1[[#This Row],[FTO_jb]]) -> Alle | E47: 731 | F47: 2556 | G47: =IF(Tabel1[[#This Row],[x.MQ00_20]]="NaN","",VALUE(Tabel1[[#This Row],[x.MQ00_20]])) -> 2556 | H47: 3513 | I47: =IF(Tabel1[[#This Row],[x.MQ20_40]]="NaN","",VALUE(Tabel1[[#This Row],[x.MQ20_40]])) -> 3513 | J47: 4051 | K47: =IF(Tabel1[[#This Row],[x.MQ40_60]]="NaN","",VALUE(Tabel1[[#This Row],[x.MQ40_60]])) -> 4051 | L47: 4599 | M47: =IF(Tabel1[[#This Row],[x.MQ60_80]]="NaN","",VALUE(Tabel1[[#This Row],[x.MQ60_80]])) -> 4599 | N47: 5893 | O47: =IF(Tabel1[[#This Row],[x.MQ80_100]]="NaN","",VALUE(Tabel1[[#This Row],[x.MQ80_100]])) -> 5893
A48: Østjylland-Fyn | B48: Planteavl | C48: Alle | D48: =_xlfn.IFS(Tabel1[[#This Row],[FTO_jb]]="1","JB1&3",Tabel1[[#This Row],[FTO_jb]]="2","JB2&4",Tabel1[[#This Row],[FTO_jb]]="3","JB5&6",Tabel1[[#This Row],[FTO_jb]]="4","JB7&8",Tabel1[[#This Row],[FTO_jb]]="Alle",Tabel1[[#This Row],[FTO_jb]]) -> Alle | E48: 355 | F48: 1701 | G48: =IF(Tabel1[[#This Row],[x.MQ00_20]]="NaN","",VALUE(Tabel1[[#This Row],[x.MQ00_20]])) -> 1701 | H48: 3146 | I48: =IF(Tabel1[[#This Row],[x.MQ20_40]]="NaN","",VALUE(Tabel1[[#This Row],[x.MQ20_40]])) -> 3146 | J48: 3804 | K48: =IF(Tabel1[[#This Row],[x.MQ40_60]]="NaN","",VALUE(Tabel1[[#This Row],[x.MQ40_60]])) -> 3804 | L48: 4362 | M48: =IF(Tabel1[[#This Row],[x.MQ60_80]]="NaN","",VALUE(Tabel1[[#This Row],[x.MQ60_80]])) -> 4362 | N48: 5756 | O48: =IF(Tabel1[[#This Row],[x.MQ80_100]]="NaN","",VALUE(Tabel1[[#This Row],[x.MQ80_100]])) -> 5756
A49: Lolland-Falster | B49: Alle | C49: 1 | D49: =_xlfn.IFS(Tabel1[[#This Row],[FTO_jb]]="1","JB1&3",Tabel1[[#This Row],[FTO_jb]]="2","JB2&4",Tabel1[[#This Row],[FTO_jb]]="3","JB5&6",Tabel1[[#This Row],[FTO_jb]]="4","JB7&8",Tabel1[[#This Row],[FTO_jb]]="Alle",Tabel1[[#This Row],[FTO_jb]]) -> JB1&3 | E49: 1 | F49: NaN | G49: =IF(Tabel1[[#This Row],[x.MQ00_20]]="NaN","",VALUE(Tabel1[[#This Row],[x.MQ00_20]])) ->  | H49: NaN | I49: =IF(Tabel1[[#This Row],[x.MQ20_40]]="NaN","",VALUE(Tabel1[[#This Row],[x.MQ20_40]])) ->  | J49: NaN | K49: =IF(Tabel1[[#This Row],[x.MQ40_60]]="NaN","",VALUE(Tabel1[[#This Row],[x.MQ40_60]])) ->  | L49: NaN | M49: =IF(Tabel1[[#This Row],[x.MQ60_80]]="NaN","",VALUE(Tabel1[[#This Row],[x.MQ60_80]])) ->  | N49: NaN | O49: =IF(Tabel1[[#This Row],[x.MQ80_100]]="NaN","",VALUE(Tabel1[[#This Row],[x.MQ80_100]])) -> 
A50: Lolland-Falster | B50: Alle | C50: 2 | D50: =_xlfn.IFS(Tabel1[[#This Row],[FTO_jb]]="1","JB1&3",Tabel1[[#This Row],[FTO_jb]]="2","JB2&4",Tabel1[[#This Row],[FTO_jb]]="3","JB5&6",Tabel1[[#This Row],[FTO_jb]]="4","JB7&8",Tabel1[[#This Row],[FTO_jb]]="Alle",Tabel1[[#This Row],[FTO_jb]]) -> JB2&4 | E50: 8 | F50: NaN | G50: =IF(Tabel1[[#This Row],[x.MQ00_20]]="NaN","",VALUE(Tabel1[[#This Row],[x.MQ00_20]])) ->  | H50: NaN | I50: =IF(Tabel1[[#This Row],[x.MQ20_40]]="NaN","",VALUE(Tabel1[[#This Row],[x.MQ20_40]])) ->  | J50: NaN | K50: =IF(Tabel1[[#This Row],[x.MQ40_60]]="NaN","",VALUE(Tabel1[[#This Row],[x.MQ40_60]])) ->  | L50: NaN | M50: =IF(Tabel1[[#This Row],[x.MQ60_80]]="NaN","",VALUE(Tabel1[[#This Row],[x.MQ60_80]])) ->  | N50: NaN | O50: =IF(Tabel1[[#This Row],[x.MQ80_100]]="NaN","",VALUE(Tabel1[[#This Row],[x.MQ80_100]])) -> 
A51: Lolland-Falster | B51: Alle | C51: 3 | D51: =_xlfn.IFS(Tabel1[[#This Row],[FTO_jb]]="1","JB1&3",Tabel1[[#This Row],[FTO_jb]]="2","JB2&4",Tabel1[[#This Row],[FTO_jb]]="3","JB5&6",Tabel1[[#This Row],[FTO_jb]]="4","JB7&8",Tabel1[[#This Row],[FTO_jb]]="Alle",Tabel1[[#This Row],[FTO_jb]]) -> JB5&6 | E51: 62 | F51: 3123 | G51: =IF(Tabel1[[#This Row],[x.MQ00_20]]="NaN","",VALUE(Tabel1[[#This Row],[x.MQ00_20]])) -> 3123 | H51: 5192 | I51: =IF(Tabel1[[#This Row],[x.MQ20_40]]="NaN","",VALUE(Tabel1[[#This Row],[x.MQ20_40]])) -> 5192 | J51: 5738 | K51: =IF(Tabel1[[#This Row],[x.MQ40_60]]="NaN","",VALUE(Tabel1[[#This Row],[x.MQ40_60]])) -> 5738 | L51: 6396 | M51: =IF(Tabel1[[#This Row],[x.MQ60_80]]="NaN","",VALUE(Tabel1[[#This Row],[x.MQ60_80]])) -> 6396 | N51: 7322 | O51: =IF(Tabel1[[#This Row],[x.MQ80_100]]="NaN","",VALUE(Tabel1[[#This Row],[x.MQ80_100]])) -> 7322
A52: Lolland-Falster | B52: Alle | C52: 4 | D52: =_xlfn.IFS(Tabel1[[#This Row],[FTO_jb]]="1","JB1&3",Tabel1[[#This Row],[FTO_jb]]="2","JB2&4",Tabel1[[#This Row],[FTO_jb]]="3","JB5&6",Tabel1[[#This Row],[FTO_jb]]="4","JB7&8",Tabel1[[#This Row],[FTO_jb]]="Alle",Tabel1[[#This Row],[FTO_jb]]) -> JB7&8 | E52: 48 | F52: NaN | G52: =IF(Tabel1[[#This Row],[x.MQ00_20]]="NaN","",VALUE(Tabel1[[#This Row],[x.MQ00_20]])) ->  | H52: NaN | I52: =IF(Tabel1[[#This Row],[x.MQ20_40]]="NaN","",VALUE(Tabel1[[#This Row],[x.MQ20_40]])) ->  | J52: NaN | K52: =IF(Tabel1[[#This Row],[x.MQ40_60]]="NaN","",VALUE(Tabel1[[#This Row],[x.MQ40_60]])) ->  | L52: NaN | M52: =IF(Tabel1[[#This Row],[x.MQ60_80]]="NaN","",VALUE(Tabel1[[#This Row],[x.MQ60_80]])) ->  | N52: NaN | O52: =IF(Tabel1[[#This Row],[x.MQ80_100]]="NaN","",VALUE(Tabel1[[#This Row],[x.MQ80_100]])) -> 
A53: Nordjylland | B53: Alle | C53: 1 | D53: =_xlfn.IFS(Tabel1[[#This Row],[FTO_jb]]="1","JB1&3",Tabel1[[#This Row],[FTO_jb]]="2","JB2&4",Tabel1[[#This Row],[FTO_jb]]="3","JB5&6",Tabel1[[#This Row],[FTO_jb]]="4","JB7&8",Tabel1[[#This Row],[FTO_jb]]="Alle",Tabel1[[#This Row],[FTO_jb]]) -> JB1&3 | E53: 96 | F53: 1978 | G53: =IF(Tabel1[[#This Row],[x.MQ00_20]]="NaN","",VALUE(Tabel1[[#This Row],[x.MQ00_20]])) -> 1978 | H53: 3383 | I53: =IF(Tabel1[[#This Row],[x.MQ20_40]]="NaN","",VALUE(Tabel1[[#This Row],[x.MQ20_40]])) -> 3383 | J53: 3841 | K53: =IF(Tabel1[[#This Row],[x.MQ40_60]]="NaN","",VALUE(Tabel1[[#This Row],[x.MQ40_60]])) -> 3841 | L53: 4442 | M53: =IF(Tabel1[[#This Row],[x.MQ60_80]]="NaN","",VALUE(Tabel1[[#This Row],[x.MQ60_80]])) -> 4442 | N53: 5530 | O53: =IF(Tabel1[[#This Row],[x.MQ80_100]]="NaN","",VALUE(Tabel1[[#This Row],[x.MQ80_100]])) -> 5530
A54: Nordjylland | B54: Alle | C54: 2 | D54: =_xlfn.IFS(Tabel1[[#This Row],[FTO_jb]]="1","JB1&3",Tabel1[[#This Row],[FTO_jb]]="2","JB2&4",Tabel1[[#This Row],[FTO_jb]]="3","JB5&6",Tabel1[[#This Row],[FTO_jb]]="4","JB7&8",Tabel1[[#This Row],[FTO_jb]]="Alle",Tabel1[[#This Row],[FTO_jb]]) -> JB2&4 | E54: 500 | F54: 1831 | G54: =IF(Tabel1[[#This Row],[x.MQ00_20]]="NaN","",VALUE(Tabel1[[#This Row],[x.MQ00_20]])) -> 1831 | H54: 3193 | I54: =IF(Tabel1[[#This Row],[x.MQ20_40]]="NaN","",VALUE(Tabel1[[#This Row],[x.MQ20_40]])) -> 3193 | J54: 3828 | K54: =IF(Tabel1[[#This Row],[x.MQ40_60]]="NaN","",VALUE(Tabel1[[#This Row],[x.MQ40_60]])) -> 3828 | L54: 4435 | M54: =IF(Tabel1[[#This Row],[x.MQ60_80]]="NaN","",VALUE(Tabel1[[#This Row],[x.MQ60_80]])) -> 4435 | N54: 5776 | O54: =IF(Tabel1[[#This Row],[x.MQ80_100]]="NaN","",VALUE(Tabel1[[#This Row],[x.MQ80_100]])) -> 5776
A55: Nordjylland | B55: Alle | C55: 3 | D55: =_xlfn.IFS(Tabel1[[#This Row],[FTO_jb]]="1","JB1&3",Tabel1[[#This Row],[FTO_jb]]="2","JB2&4",Tabel1[[#This Row],[FTO_jb]]="3","JB5&6",Tabel1[[#This Row],[FTO_jb]]="4","JB7&8",Tabel1[[#This Row],[FTO_jb]]="Alle",Tabel1[[#This Row],[FTO_jb]]) -> JB5&6 | E55: 74 | F55: 1797 | G55: =IF(Tabel1[[#This Row],[x.MQ00_20]]="NaN","",VALUE(Tabel1[[#This Row],[x.MQ00_20]])) -> 1797 | H55: 3872 | I55: =IF(Tabel1[[#This Row],[x.MQ20_40]]="NaN","",VALUE(Tabel1[[#This Row],[x.MQ20_40]])) -> 3872 | J55: 4394 | K55: =IF(Tabel1[[#This Row],[x.MQ40_60]]="NaN","",VALUE(Tabel1[[#This Row],[x.MQ40_60]])) -> 4394 | L55: 4933 | M55: =IF(Tabel1[[#This Row],[x.MQ60_80]]="NaN","",VALUE(Tabel1[[#This Row],[x.MQ60_80]])) -> 4933 | N55: 6209 | O55: =IF(Tabel1[[#This Row],[x.MQ80_100]]="NaN","",VALUE(Tabel1[[#This Row],[x.MQ80_100]])) -> 6209
A56: Nordjylland | B56: Alle | C56: 4 | D56: =_xlfn.IFS(Tabel1[[#This Row],[FTO_jb]]="1","JB1&3",Tabel1[[#This Row],[FTO_jb]]="2","JB2&4",Tabel1[[#This Row],[FTO_jb]]="3","JB5&6",Tabel1[[#This Row],[FTO_jb]]="4","JB7&8",Tabel1[[#This Row],[FTO_jb]]="Alle",Tabel1[[#This Row],[FTO_jb]]) -> JB7&8 | E56: 10 | F56: NaN | G56: =IF(Tabel1[[#This Row],[x.MQ00_20]]="NaN","",VALUE(Tabel1[[#This Row],[x.MQ00_20]])) ->  | H56: NaN | I56: =IF(Tabel1[[#This Row],[x.MQ20_40]]="NaN","",VALUE(Tabel1[[#This Row],[x.MQ20_40]])) ->  | J56: NaN | K56: =IF(Tabel1[[#This Row],[x.MQ40_60]]="NaN","",VALUE(Tabel1[[#This Row],[x.MQ40_60]])) ->  | L56: NaN | M56: =IF(Tabel1[[#This Row],[x.MQ60_80]]="NaN","",VALUE(Tabel1[[#This Row],[x.MQ60_80]])) ->  | N56: NaN | O56: =IF(Tabel1[[#This Row],[x.MQ80_100]]="NaN","",VALUE(Tabel1[[#This Row],[x.MQ80_100]])) -> 
A57: Sjælland Bornholm | B57: Alle | C57: 1 | D57: =_xlfn.IFS(Tabel1[[#This Row],[FTO_jb]]="1","JB1&3",Tabel1[[#This Row],[FTO_jb]]="2","JB2&4",Tabel1[[#This Row],[FTO_jb]]="3","JB5&6",Tabel1[[#This Row],[FTO_jb]]="4","JB7&8",Tabel1[[#This Row],[FTO_jb]]="Alle",Tabel1[[#This Row],[FTO_jb]]) -> JB1&3 | E57: 2 | F57: NaN | G57: =IF(Tabel1[[#This Row],[x.MQ00_20]]="NaN","",VALUE(Tabel1[[#This Row],[x.MQ00_20]])) ->  | H57: NaN | I57: =IF(Tabel1[[#This Row],[x.MQ20_40]]="NaN","",VALUE(Tabel1[[#This Row],[x.MQ20_40]])) ->  | J57: NaN | K57: =IF(Tabel1[[#This Row],[x.MQ40_60]]="NaN","",VALUE(Tabel1[[#This Row],[x.MQ40_60]])) ->  | L57: NaN | M57: =IF(Tabel1[[#This Row],[x.MQ60_80]]="NaN","",VALUE(Tabel1[[#This Row],[x.MQ60_80]])) ->  | N57: NaN | O57: =IF(Tabel1[[#This Row],[x.MQ80_100]]="NaN","",VALUE(Tabel1[[#This Row],[x.MQ80_100]])) -> 
A58: Sjælland Bornholm | B58: Alle | C58: 2 | D58: =_xlfn.IFS(Tabel1[[#This Row],[FTO_jb]]="1","JB1&3",Tabel1[[#This Row],[FTO_jb]]="2","JB2&4",Tabel1[[#This Row],[FTO_jb]]="3","JB5&6",Tabel1[[#This Row],[FTO_jb]]="4","JB7&8",Tabel1[[#This Row],[FTO_jb]]="Alle",Tabel1[[#This Row],[FTO_jb]]) -> JB2&4 | E58: 35 | F58: NaN | G58: =IF(Tabel1[[#This Row],[x.MQ00_20]]="NaN","",VALUE(Tabel1[[#This Row],[x.MQ00_20]])) ->  | H58: NaN | I58: =IF(Tabel1[[#This Row],[x.MQ20_40]]="NaN","",VALUE(Tabel1[[#This Row],[x.MQ20_40]])) ->  | J58: NaN | K58: =IF(Tabel1[[#This Row],[x.MQ40_60]]="NaN","",VALUE(Tabel1[[#This Row],[x.MQ40_60]])) ->  | L58: NaN | M58: =IF(Tabel1[[#This Row],[x.MQ60_80]]="NaN","",VALUE(Tabel1[[#This Row],[x.MQ60_80]])) ->  | N58: NaN | O58: =IF(Tabel1[[#This Row],[x.MQ80_100]]="NaN","",VALUE(Tabel1[[#This Row],[x.MQ80_100]])) -> 
A59: Sjælland Bornholm | B59: Alle | C59: 3 | D59: =_xlfn.IFS(Tabel1[[#This Row],[FTO_jb]]="1","JB1&3",Tabel1[[#This Row],[FTO_jb]]="2","JB2&4",Tabel1[[#This Row],[FTO_jb]]="3","JB5&6",Tabel1[[#This Row],[FTO_jb]]="4","JB7&8",Tabel1[[#This Row],[FTO_jb]]="Alle",Tabel1[[#This Row],[FTO_jb]]) -> JB5&6 | E59: 280 | F59: 2074 | G59: =IF(Tabel1[[#This Row],[x.MQ00_20]]="NaN","",VALUE(Tabel1[[#This Row],[x.MQ00_20]])) -> 2074 | H59: 3302 | I59: =IF(Tabel1[[#This Row],[x.MQ20_40]]="NaN","",VALUE(Tabel1[[#This Row],[x.MQ20_40]])) -> 3302 | J59: 3890 | K59: =IF(Tabel1[[#This Row],[x.MQ40_60]]="NaN","",VALUE(Tabel1[[#This Row],[x.MQ40_60]])) -> 3890 | L59: 4446 | M59: =IF(Tabel1[[#This Row],[x.MQ60_80]]="NaN","",VALUE(Tabel1[[#This Row],[x.MQ60_80]])) -> 4446 | N59: 5563 | O59: =IF(Tabel1[[#This Row],[x.MQ80_100]]="NaN","",VALUE(Tabel1[[#This Row],[x.MQ80_100]])) -> 5563
A60: Sjælland Bornholm | B60: Alle | C60: 4 | D60: =_xlfn.IFS(Tabel1[[#This Row],[FTO_jb]]="1","JB1&3",Tabel1[[#This Row],[FTO_jb]]="2","JB2&4",Tabel1[[#This Row],[FTO_jb]]="3","JB5&6",Tabel1[[#This Row],[FTO_jb]]="4","JB7&8",Tabel1[[#This Row],[FTO_jb]]="Alle",Tabel1[[#This Row],[FTO_jb]]) -> JB7&8 | E60: 62 | F60: 2286 | G60: =IF(Tabel1[[#This Row],[x.MQ00_20]]="NaN","",VALUE(Tabel1[[#This Row],[x.MQ00_20]])) -> 2286 | H60: 3424 | I60: =IF(Tabel1[[#This Row],[x.MQ20_40]]="NaN","",VALUE(Tabel1[[#This Row],[x.MQ20_40]])) -> 3424 | J60: 3970 | K60: =IF(Tabel1[[#This Row],[x.MQ40_60]]="NaN","",VALUE(Tabel1[[#This Row],[x.MQ40_60]])) -> 3970 | L60: 4372 | M60: =IF(Tabel1[[#This Row],[x.MQ60_80]]="NaN","",VALUE(Tabel1[[#This Row],[x.MQ60_80]])) -> 4372 | N60: 5448 | O60: =IF(Tabel1[[#This Row],[x.MQ80_100]]="NaN","",VALUE(Tabel1[[#This Row],[x.MQ80_100]])) -> 5448
A61: Vestjylland | B61: Alle | C61: 1 | D61: =_xlfn.IFS(Tabel1[[#This Row],[FTO_jb]]="1","JB1&3",Tabel1[[#This Row],[FTO_jb]]="2","JB2&4",Tabel1[[#This Row],[FTO_jb]]="3","JB5&6",Tabel1[[#This Row],[FTO_jb]]="4","JB7&8",Tabel1[[#This Row],[FTO_jb]]="Alle",Tabel1[[#This Row],[FTO_jb]]) -> JB1&3 | E61: 725 | F61: 1878 | G61: =IF(Tabel1[[#This Row],[x.MQ00_20]]="NaN","",VALUE(Tabel1[[#This Row],[x.MQ00_20]])) -> 1878 | H61: 3116 | I61: =IF(Tabel1[[#This Row],[x.MQ20_40]]="NaN","",VALUE(Tabel1[[#This Row],[x.MQ20_40]])) -> 3116 | J61: 3657 | K61: =IF(Tabel1[[#This Row],[x.MQ40_60]]="NaN","",VALUE(Tabel1[[#This Row],[x.MQ40_60]])) -> 3657 | L61: 4281 | M61: =IF(Tabel1[[#This Row],[x.MQ60_80]]="NaN","",VALUE(Tabel1[[#This Row],[x.MQ60_80]])) -> 4281 | N61: 5612 | O61: =IF(Tabel1[[#This Row],[x.MQ80_100]]="NaN","",VALUE(Tabel1[[#This Row],[x.MQ80_100]])) -> 5612
A62: Vestjylland | B62: Alle | C62: 2 | D62: =_xlfn.IFS(Tabel1[[#This Row],[FTO_jb]]="1","JB1&3",Tabel1[[#This Row],[FTO_jb]]="2","JB2&4",Tabel1[[#This Row],[FTO_jb]]="3","JB5&6",Tabel1[[#This Row],[FTO_jb]]="4","JB7&8",Tabel1[[#This Row],[FTO_jb]]="Alle",Tabel1[[#This Row],[FTO_jb]]) -> JB2&4 | E62: 180 | F62: 2096 | G62: =IF(Tabel1[[#This Row],[x.MQ00_20]]="NaN","",VALUE(Tabel1[[#This Row],[x.MQ00_20]])) -> 2096 | H62: 3217 | I62: =IF(Tabel1[[#This Row],[x.MQ20_40]]="NaN","",VALUE(Tabel1[[#This Row],[x.MQ20_40]])) -> 3217 | J62: 3785 | K62: =IF(Tabel1[[#This Row],[x.MQ40_60]]="NaN","",VALUE(Tabel1[[#This Row],[x.MQ40_60]])) -> 3785 | L62: 4280 | M62: =IF(Tabel1[[#This Row],[x.MQ60_80]]="NaN","",VALUE(Tabel1[[#This Row],[x.MQ60_80]])) -> 4280 | N62: 5574 | O62: =IF(Tabel1[[#This Row],[x.MQ80_100]]="NaN","",VALUE(Tabel1[[#This Row],[x.MQ80_100]])) -> 5574
A63: Vestjylland | B63: Alle | C63: 3 | D63: =_xlfn.IFS(Tabel1[[#This Row],[FTO_jb]]="1","JB1&3",Tabel1[[#This Row],[FTO_jb]]="2","JB2&4",Tabel1[[#This Row],[FTO_jb]]="3","JB5&6",Tabel1[[#This Row],[FTO_jb]]="4","JB7&8",Tabel1[[#This Row],[FTO_jb]]="Alle",Tabel1[[#This Row],[FTO_jb]]) -> JB5&6 | E63: 71 | F63: 2649 | G63: =IF(Tabel1[[#This Row],[x.MQ00_20]]="NaN","",VALUE(Tabel1[[#This Row],[x.MQ00_20]])) -> 2649 | H63: 3778 | I63: =IF(Tabel1[[#This Row],[x.MQ20_40]]="NaN","",VALUE(Tabel1[[#This Row],[x.MQ20_40]])) -> 3778 | J63: 4377 | K63: =IF(Tabel1[[#This Row],[x.MQ40_60]]="NaN","",VALUE(Tabel1[[#This Row],[x.MQ40_60]])) -> 4377 | L63: 4825 | M63: =IF(Tabel1[[#This Row],[x.MQ60_80]]="NaN","",VALUE(Tabel1[[#This Row],[x.MQ60_80]])) -> 4825 | N63: 5706 | O63: =IF(Tabel1[[#This Row],[x.MQ80_100]]="NaN","",VALUE(Tabel1[[#This Row],[x.MQ80_100]])) -> 5706
A64: Vestjylland | B64: Alle | C64: 4 | D64: =_xlfn.IFS(Tabel1[[#This Row],[FTO_jb]]="1","JB1&3",Tabel1[[#This Row],[FTO_jb]]="2","JB2&4",Tabel1[[#This Row],[FTO_jb]]="3","JB5&6",Tabel1[[#This Row],[FTO_jb]]="4","JB7&8",Tabel1[[#This Row],[FTO_jb]]="Alle",Tabel1[[#This Row],[FTO_jb]]) -> JB7&8 | E64: 38 | F64: NaN | G64: =IF(Tabel1[[#This Row],[x.MQ00_20]]="NaN","",VALUE(Tabel1[[#This Row],[x.MQ00_20]])) ->  | H64: NaN | I64: =IF(Tabel1[[#This Row],[x.MQ20_40]]="NaN","",VALUE(Tabel1[[#This Row],[x.MQ20_40]])) ->  | J64: NaN | K64: =IF(Tabel1[[#This Row],[x.MQ40_60]]="NaN","",VALUE(Tabel1[[#This Row],[x.MQ40_60]])) ->  | L64: NaN | M64: =IF(Tabel1[[#This Row],[x.MQ60_80]]="NaN","",VALUE(Tabel1[[#This Row],[x.MQ60_80]])) ->  | N64: NaN | O64: =IF(Tabel1[[#This Row],[x.MQ80_100]]="NaN","",VALUE(Tabel1[[#This Row],[x.MQ80_100]])) -> 
A65: Østjylland-Fyn | B65: Alle | C65: 1 | D65: =_xlfn.IFS(Tabel1[[#This Row],[FTO_jb]]="1","JB1&3",Tabel1[[#This Row],[FTO_jb]]="2","JB2&4",Tabel1[[#This Row],[FTO_jb]]="3","JB5&6",Tabel1[[#This Row],[FTO_jb]]="4","JB7&8",Tabel1[[#This Row],[FTO_jb]]="Alle",Tabel1[[#This Row],[FTO_jb]]) -> JB1&3 | E65: 314 | F65: 1966 | G65: =IF(Tabel1[[#This Row],[x.MQ00_20]]="NaN","",VALUE(Tabel1[[#This Row],[x.MQ00_20]])) -> 1966 | H65: 3138 | I65: =IF(Tabel1[[#This Row],[x.MQ20_40]]="NaN","",VALUE(Tabel1[[#This Row],[x.MQ20_40]])) -> 3138 | J65: 3618 | K65: =IF(Tabel1[[#This Row],[x.MQ40_60]]="NaN","",VALUE(Tabel1[[#This Row],[x.MQ40_60]])) -> 3618 | L65: 4133 | M65: =IF(Tabel1[[#This Row],[x.MQ60_80]]="NaN","",VALUE(Tabel1[[#This Row],[x.MQ60_80]])) -> 4133 | N65: 5443 | O65: =IF(Tabel1[[#This Row],[x.MQ80_100]]="NaN","",VALUE(Tabel1[[#This Row],[x.MQ80_100]])) -> 5443
A66: Østjylland-Fyn | B66: Alle | C66: 2 | D66: =_xlfn.IFS(Tabel1[[#This Row],[FTO_jb]]="1","JB1&3",Tabel1[[#This Row],[FTO_jb]]="2","JB2&4",Tabel1[[#This Row],[FTO_jb]]="3","JB5&6",Tabel1[[#This Row],[FTO_jb]]="4","JB7&8",Tabel1[[#This Row],[FTO_jb]]="Alle",Tabel1[[#This Row],[FTO_jb]]) -> JB2&4 | E66: 209 | F66: 2230 | G66: =IF(Tabel1[[#This Row],[x.MQ00_20]]="NaN","",VALUE(Tabel1[[#This Row],[x.MQ00_20]])) -> 2230 | H66: 3436 | I66: =IF(Tabel1[[#This Row],[x.MQ20_40]]="NaN","",VALUE(Tabel1[[#This Row],[x.MQ20_40]])) -> 3436 | J66: 3937 | K66: =IF(Tabel1[[#This Row],[x.MQ40_60]]="NaN","",VALUE(Tabel1[[#This Row],[x.MQ40_60]])) -> 3937 | L66: 4435 | M66: =IF(Tabel1[[#This Row],[x.MQ60_80]]="NaN","",VALUE(Tabel1[[#This Row],[x.MQ60_80]])) -> 4435 | N66: 5877 | O66: =IF(Tabel1[[#This Row],[x.MQ80_100]]="NaN","",VALUE(Tabel1[[#This Row],[x.MQ80_100]])) -> 5877
A67: Østjylland-Fyn | B67: Alle | C67: 3 | D67: =_xlfn.IFS(Tabel1[[#This Row],[FTO_jb]]="1","JB1&3",Tabel1[[#This Row],[FTO_jb]]="2","JB2&4",Tabel1[[#This Row],[FTO_jb]]="3","JB5&6",Tabel1[[#This Row],[FTO_jb]]="4","JB7&8",Tabel1[[#This Row],[FTO_jb]]="Alle",Tabel1[[#This Row],[FTO_jb]]) -> JB5&6 | E67: 516 | F67: 2460 | G67: =IF(Tabel1[[#This Row],[x.MQ00_20]]="NaN","",VALUE(Tabel1[[#This Row],[x.MQ00_20]])) -> 2460 | H67: 3654 | I67: =IF(Tabel1[[#This Row],[x.MQ20_40]]="NaN","",VALUE(Tabel1[[#This Row],[x.MQ20_40]])) -> 3654 | J67: 4200 | K67: =IF(Tabel1[[#This Row],[x.MQ40_60]]="NaN","",VALUE(Tabel1[[#This Row],[x.MQ40_60]])) -> 4200 | L67: 4740 | M67: =IF(Tabel1[[#This Row],[x.MQ60_80]]="NaN","",VALUE(Tabel1[[#This Row],[x.MQ60_80]])) -> 4740 | N67: 6027 | O67: =IF(Tabel1[[#This Row],[x.MQ80_100]]="NaN","",VALUE(Tabel1[[#This Row],[x.MQ80_100]])) -> 6027
A68: Østjylland-Fyn | B68: Alle | C68: 4 | D68: =_xlfn.IFS(Tabel1[[#This Row],[FTO_jb]]="1","JB1&3",Tabel1[[#This Row],[FTO_jb]]="2","JB2&4",Tabel1[[#This Row],[FTO_jb]]="3","JB5&6",Tabel1[[#This Row],[FTO_jb]]="4","JB7&8",Tabel1[[#This Row],[FTO_jb]]="Alle",Tabel1[[#This Row],[FTO_jb]]) -> JB7&8 | E68: 47 | F68: NaN | G68: =IF(Tabel1[[#This Row],[x.MQ00_20]]="NaN","",VALUE(Tabel1[[#This Row],[x.MQ00_20]])) ->  | H68: NaN | I68: =IF(Tabel1[[#This Row],[x.MQ20_40]]="NaN","",VALUE(Tabel1[[#This Row],[x.MQ20_40]])) ->  | J68: NaN | K68: =IF(Tabel1[[#This Row],[x.MQ40_60]]="NaN","",VALUE(Tabel1[[#This Row],[x.MQ40_60]])) ->  | L68: NaN | M68: =IF(Tabel1[[#This Row],[x.MQ60_80]]="NaN","",VALUE(Tabel1[[#This Row],[x.MQ60_80]])) ->  | N68: NaN | O68: =IF(Tabel1[[#This Row],[x.MQ80_100]]="NaN","",VALUE(Tabel1[[#This Row],[x.MQ80_100]])) -> 
A69: Lolland-Falster | B69: Alle | C69: Alle | D69: =_xlfn.IFS(Tabel1[[#This Row],[FTO_jb]]="1","JB1&3",Tabel1[[#This Row],[FTO_jb]]="2","JB2&4",Tabel1[[#This Row],[FTO_jb]]="3","JB5&6",Tabel1[[#This Row],[FTO_jb]]="4","JB7&8",Tabel1[[#This Row],[FTO_jb]]="Alle",Tabel1[[#This Row],[FTO_jb]]) -> Alle | E69: 119 | F69: 3204 | G69: =IF(Tabel1[[#This Row],[x.MQ00_20]]="NaN","",VALUE(Tabel1[[#This Row],[x.MQ00_20]])) -> 3204 | H69: 5257 | I69: =IF(Tabel1[[#This Row],[x.MQ20_40]]="NaN","",VALUE(Tabel1[[#This Row],[x.MQ20_40]])) -> 5257 | J69: 5965 | K69: =IF(Tabel1[[#This Row],[x.MQ40_60]]="NaN","",VALUE(Tabel1[[#This Row],[x.MQ40_60]])) -> 5965 | L69: 6570 | M69: =IF(Tabel1[[#This Row],[x.MQ60_80]]="NaN","",VALUE(Tabel1[[#This Row],[x.MQ60_80]])) -> 6570 | N69: 7754 | O69: =IF(Tabel1[[#This Row],[x.MQ80_100]]="NaN","",VALUE(Tabel1[[#This Row],[x.MQ80_100]])) -> 7754
A70: Nordjylland | B70: Alle | C70: Alle | D70: =_xlfn.IFS(Tabel1[[#This Row],[FTO_jb]]="1","JB1&3",Tabel1[[#This Row],[FTO_jb]]="2","JB2&4",Tabel1[[#This Row],[FTO_jb]]="3","JB5&6",Tabel1[[#This Row],[FTO_jb]]="4","JB7&8",Tabel1[[#This Row],[FTO_jb]]="Alle",Tabel1[[#This Row],[FTO_jb]]) -> Alle | E70: 680 | F70: 1818 | G70: =IF(Tabel1[[#This Row],[x.MQ00_20]]="NaN","",VALUE(Tabel1[[#This Row],[x.MQ00_20]])) -> 1818 | H70: 3277 | I70: =IF(Tabel1[[#This Row],[x.MQ20_40]]="NaN","",VALUE(Tabel1[[#This Row],[x.MQ20_40]])) -> 3277 | J70: 3894 | K70: =IF(Tabel1[[#This Row],[x.MQ40_60]]="NaN","",VALUE(Tabel1[[#This Row],[x.MQ40_60]])) -> 3894 | L70: 4516 | M70: =IF(Tabel1[[#This Row],[x.MQ60_80]]="NaN","",VALUE(Tabel1[[#This Row],[x.MQ60_80]])) -> 4516 | N70: 5807 | O70: =IF(Tabel1[[#This Row],[x.MQ80_100]]="NaN","",VALUE(Tabel1[[#This Row],[x.MQ80_100]])) -> 5807
A71: Sjælland Bornholm | B71: Alle | C71: Alle | D71: =_xlfn.IFS(Tabel1[[#This Row],[FTO_jb]]="1","JB1&3",Tabel1[[#This Row],[FTO_jb]]="2","JB2&4",Tabel1[[#This Row],[FTO_jb]]="3","JB5&6",Tabel1[[#This Row],[FTO_jb]]="4","JB7&8",Tabel1[[#This Row],[FTO_jb]]="Alle",Tabel1[[#This Row],[FTO_jb]]) -> Alle | E71: 379 | F71: 1973 | G71: =IF(Tabel1[[#This Row],[x.MQ00_20]]="NaN","",VALUE(Tabel1[[#This Row],[x.MQ00_20]])) -> 1973 | H71: 3250 | I71: =IF(Tabel1[[#This Row],[x.MQ20_40]]="NaN","",VALUE(Tabel1[[#This Row],[x.MQ20_40]])) -> 3250 | J71: 3849 | K71: =IF(Tabel1[[#This Row],[x.MQ40_60]]="NaN","",VALUE(Tabel1[[#This Row],[x.MQ40_60]])) -> 3849 | L71: 4380 | M71: =IF(Tabel1[[#This Row],[x.MQ60_80]]="NaN","",VALUE(Tabel1[[#This Row],[x.MQ60_80]])) -> 4380 | N71: 5492 | O71: =IF(Tabel1[[#This Row],[x.MQ80_100]]="NaN","",VALUE(Tabel1[[#This Row],[x.MQ80_100]])) -> 5492
A72: Vestjylland | B72: Alle | C72: Alle | D72: =_xlfn.IFS(Tabel1[[#This Row],[FTO_jb]]="1","JB1&3",Tabel1[[#This Row],[FTO_jb]]="2","JB2&4",Tabel1[[#This Row],[FTO_jb]]="3","JB5&6",Tabel1[[#This Row],[FTO_jb]]="4","JB7&8",Tabel1[[#This Row],[FTO_jb]]="Alle",Tabel1[[#This Row],[FTO_jb]]) -> Alle | E72: 1014 | F72: 1965 | G72: =IF(Tabel1[[#This Row],[x.MQ00_20]]="NaN","",VALUE(Tabel1[[#This Row],[x.MQ00_20]])) -> 1965 | H72: 3167 | I72: =IF(Tabel1[[#This Row],[x.MQ20_40]]="NaN","",VALUE(Tabel1[[#This Row],[x.MQ20_40]])) -> 3167 | J72: 3718 | K72: =IF(Tabel1[[#This Row],[x.MQ40_60]]="NaN","",VALUE(Tabel1[[#This Row],[x.MQ40_60]])) -> 3718 | L72: 4317 | M72: =IF(Tabel1[[#This Row],[x.MQ60_80]]="NaN","",VALUE(Tabel1[[#This Row],[x.MQ60_80]])) -> 4317 | N72: 5597 | O72: =IF(Tabel1[[#This Row],[x.MQ80_100]]="NaN","",VALUE(Tabel1[[#This Row],[x.MQ80_100]])) -> 5597
A73: Østjylland-Fyn | B73: Alle | C73: Alle | D73: =_xlfn.IFS(Tabel1[[#This Row],[FTO_jb]]="1","JB1&3",Tabel1[[#This Row],[FTO_jb]]="2","JB2&4",Tabel1[[#This Row],[FTO_jb]]="3","JB5&6",Tabel1[[#This Row],[FTO_jb]]="4","JB7&8",Tabel1[[#This Row],[FTO_jb]]="Alle",Tabel1[[#This Row],[FTO_jb]]) -> Alle | E73: 1086 | F73: 2239 | G73: =IF(Tabel1[[#This Row],[x.MQ00_20]]="NaN","",VALUE(Tabel1[[#This Row],[x.MQ00_20]])) -> 2239 | H73: 3419 | I73: =IF(Tabel1[[#This Row],[x.MQ20_40]]="NaN","",VALUE(Tabel1[[#This Row],[x.MQ20_40]])) -> 3419 | J73: 3970 | K73: =IF(Tabel1[[#This Row],[x.MQ40_60]]="NaN","",VALUE(Tabel1[[#This Row],[x.MQ40_60]])) -> 3970 | L73: 4530 | M73: =IF(Tabel1[[#This Row],[x.MQ60_80]]="NaN","",VALUE(Tabel1[[#This Row],[x.MQ60_80]])) -> 4530 | N73: 5852 | O73: =IF(Tabel1[[#This Row],[x.MQ80_100]]="NaN","",VALUE(Tabel1[[#This Row],[x.MQ80_100]])) -> 5852
A74: Alle | B74: Husdyrproduktion | C74: 1 | D74: =_xlfn.IFS(Tabel1[[#This Row],[FTO_jb]]="1","JB1&3",Tabel1[[#This Row],[FTO_jb]]="2","JB2&4",Tabel1[[#This Row],[FTO_jb]]="3","JB5&6",Tabel1[[#This Row],[FTO_jb]]="4","JB7&8",Tabel1[[#This Row],[FTO_jb]]="Alle",Tabel1[[#This Row],[FTO_jb]]) -> JB1&3 | E74: 887 | F74: 2050 | G74: =IF(Tabel1[[#This Row],[x.MQ00_20]]="NaN","",VALUE(Tabel1[[#This Row],[x.MQ00_20]])) -> 2050 | H74: 3197 | I74: =IF(Tabel1[[#This Row],[x.MQ20_40]]="NaN","",VALUE(Tabel1[[#This Row],[x.MQ20_40]])) -> 3197 | J74: 3699 | K74: =IF(Tabel1[[#This Row],[x.MQ40_60]]="NaN","",VALUE(Tabel1[[#This Row],[x.MQ40_60]])) -> 3699 | L74: 4264 | M74: =IF(Tabel1[[#This Row],[x.MQ60_80]]="NaN","",VALUE(Tabel1[[#This Row],[x.MQ60_80]])) -> 4264 | N74: 5587 | O74: =IF(Tabel1[[#This Row],[x.MQ80_100]]="NaN","",VALUE(Tabel1[[#This Row],[x.MQ80_100]])) -> 5587
A75: Alle | B75: Husdyrproduktion | C75: 2 | D75: =_xlfn.IFS(Tabel1[[#This Row],[FTO_jb]]="1","JB1&3",Tabel1[[#This Row],[FTO_jb]]="2","JB2&4",Tabel1[[#This Row],[FTO_jb]]="3","JB5&6",Tabel1[[#This Row],[FTO_jb]]="4","JB7&8",Tabel1[[#This Row],[FTO_jb]]="Alle",Tabel1[[#This Row],[FTO_jb]]) -> JB2&4 | E75: 701 | F75: 2125 | G75: =IF(Tabel1[[#This Row],[x.MQ00_20]]="NaN","",VALUE(Tabel1[[#This Row],[x.MQ00_20]])) -> 2125 | H75: 3347 | I75: =IF(Tabel1[[#This Row],[x.MQ20_40]]="NaN","",VALUE(Tabel1[[#This Row],[x.MQ20_40]])) -> 3347 | J75: 3912 | K75: =IF(Tabel1[[#This Row],[x.MQ40_60]]="NaN","",VALUE(Tabel1[[#This Row],[x.MQ40_60]])) -> 3912 | L75: 4475 | M75: =IF(Tabel1[[#This Row],[x.MQ60_80]]="NaN","",VALUE(Tabel1[[#This Row],[x.MQ60_80]])) -> 4475 | N75: 5822 | O75: =IF(Tabel1[[#This Row],[x.MQ80_100]]="NaN","",VALUE(Tabel1[[#This Row],[x.MQ80_100]])) -> 5822
A76: Alle | B76: Husdyrproduktion | C76: 3 | D76: =_xlfn.IFS(Tabel1[[#This Row],[FTO_jb]]="1","JB1&3",Tabel1[[#This Row],[FTO_jb]]="2","JB2&4",Tabel1[[#This Row],[FTO_jb]]="3","JB5&6",Tabel1[[#This Row],[FTO_jb]]="4","JB7&8",Tabel1[[#This Row],[FTO_jb]]="Alle",Tabel1[[#This Row],[FTO_jb]]) -> JB5&6 | E76: 557 | F76: 2627 | G76: =IF(Tabel1[[#This Row],[x.MQ00_20]]="NaN","",VALUE(Tabel1[[#This Row],[x.MQ00_20]])) -> 2627 | H76: 3782 | I76: =IF(Tabel1[[#This Row],[x.MQ20_40]]="NaN","",VALUE(Tabel1[[#This Row],[x.MQ20_40]])) -> 3782 | J76: 4347 | K76: =IF(Tabel1[[#This Row],[x.MQ40_60]]="NaN","",VALUE(Tabel1[[#This Row],[x.MQ40_60]])) -> 4347 | L76: 4928 | M76: =IF(Tabel1[[#This Row],[x.MQ60_80]]="NaN","",VALUE(Tabel1[[#This Row],[x.MQ60_80]])) -> 4928 | N76: 6201 | O76: =IF(Tabel1[[#This Row],[x.MQ80_100]]="NaN","",VALUE(Tabel1[[#This Row],[x.MQ80_100]])) -> 6201
A77: Alle | B77: Husdyrproduktion | C77: 4 | D77: =_xlfn.IFS(Tabel1[[#This Row],[FTO_jb]]="1","JB1&3",Tabel1[[#This Row],[FTO_jb]]="2","JB2&4",Tabel1[[#This Row],[FTO_jb]]="3","JB5&6",Tabel1[[#This Row],[FTO_jb]]="4","JB7&8",Tabel1[[#This Row],[FTO_jb]]="Alle",Tabel1[[#This Row],[FTO_jb]]) -> JB7&8 | E77: 103 | F77: 2447 | G77: =IF(Tabel1[[#This Row],[x.MQ00_20]]="NaN","",VALUE(Tabel1[[#This Row],[x.MQ00_20]])) -> 2447 | H77: 3506 | I77: =IF(Tabel1[[#This Row],[x.MQ20_40]]="NaN","",VALUE(Tabel1[[#This Row],[x.MQ20_40]])) -> 3506 | J77: 4061 | K77: =IF(Tabel1[[#This Row],[x.MQ40_60]]="NaN","",VALUE(Tabel1[[#This Row],[x.MQ40_60]])) -> 4061 | L77: 4663 | M77: =IF(Tabel1[[#This Row],[x.MQ60_80]]="NaN","",VALUE(Tabel1[[#This Row],[x.MQ60_80]])) -> 4663 | N77: 6241 | O77: =IF(Tabel1[[#This Row],[x.MQ80_100]]="NaN","",VALUE(Tabel1[[#This Row],[x.MQ80_100]])) -> 6241
A78: Alle | B78: Planteavl | C78: 1 | D78: =_xlfn.IFS(Tabel1[[#This Row],[FTO_jb]]="1","JB1&3",Tabel1[[#This Row],[FTO_jb]]="2","JB2&4",Tabel1[[#This Row],[FTO_jb]]="3","JB5&6",Tabel1[[#This Row],[FTO_jb]]="4","JB7&8",Tabel1[[#This Row],[FTO_jb]]="Alle",Tabel1[[#This Row],[FTO_jb]]) -> JB1&3 | E78: 251 | F78: 1505 | G78: =IF(Tabel1[[#This Row],[x.MQ00_20]]="NaN","",VALUE(Tabel1[[#This Row],[x.MQ00_20]])) -> 1505 | H78: 2887 | I78: =IF(Tabel1[[#This Row],[x.MQ20_40]]="NaN","",VALUE(Tabel1[[#This Row],[x.MQ20_40]])) -> 2887 | J78: 3524 | K78: =IF(Tabel1[[#This Row],[x.MQ40_60]]="NaN","",VALUE(Tabel1[[#This Row],[x.MQ40_60]])) -> 3524 | L78: 4200 | M78: =IF(Tabel1[[#This Row],[x.MQ60_80]]="NaN","",VALUE(Tabel1[[#This Row],[x.MQ60_80]])) -> 4200 | N78: 5479 | O78: =IF(Tabel1[[#This Row],[x.MQ80_100]]="NaN","",VALUE(Tabel1[[#This Row],[x.MQ80_100]])) -> 5479
A79: Alle | B79: Planteavl | C79: 2 | D79: =_xlfn.IFS(Tabel1[[#This Row],[FTO_jb]]="1","JB1&3",Tabel1[[#This Row],[FTO_jb]]="2","JB2&4",Tabel1[[#This Row],[FTO_jb]]="3","JB5&6",Tabel1[[#This Row],[FTO_jb]]="4","JB7&8",Tabel1[[#This Row],[FTO_jb]]="Alle",Tabel1[[#This Row],[FTO_jb]]) -> JB2&4 | E79: 231 | F79: 1439 | G79: =IF(Tabel1[[#This Row],[x.MQ00_20]]="NaN","",VALUE(Tabel1[[#This Row],[x.MQ00_20]])) -> 1439 | H79: 2880 | I79: =IF(Tabel1[[#This Row],[x.MQ20_40]]="NaN","",VALUE(Tabel1[[#This Row],[x.MQ20_40]])) -> 2880 | J79: 3629 | K79: =IF(Tabel1[[#This Row],[x.MQ40_60]]="NaN","",VALUE(Tabel1[[#This Row],[x.MQ40_60]])) -> 3629 | L79: 4113 | M79: =IF(Tabel1[[#This Row],[x.MQ60_80]]="NaN","",VALUE(Tabel1[[#This Row],[x.MQ60_80]])) -> 4113 | N79: 5466 | O79: =IF(Tabel1[[#This Row],[x.MQ80_100]]="NaN","",VALUE(Tabel1[[#This Row],[x.MQ80_100]])) -> 5466
A80: Alle | B80: Planteavl | C80: 3 | D80: =_xlfn.IFS(Tabel1[[#This Row],[FTO_jb]]="1","JB1&3",Tabel1[[#This Row],[FTO_jb]]="2","JB2&4",Tabel1[[#This Row],[FTO_jb]]="3","JB5&6",Tabel1[[#This Row],[FTO_jb]]="4","JB7&8",Tabel1[[#This Row],[FTO_jb]]="Alle",Tabel1[[#This Row],[FTO_jb]]) -> JB5&6 | E80: 446 | F80: 2003 | G80: =IF(Tabel1[[#This Row],[x.MQ00_20]]="NaN","",VALUE(Tabel1[[#This Row],[x.MQ00_20]])) -> 2003 | H80: 3352 | I80: =IF(Tabel1[[#This Row],[x.MQ20_40]]="NaN","",VALUE(Tabel1[[#This Row],[x.MQ20_40]])) -> 3352 | J80: 4001 | K80: =IF(Tabel1[[#This Row],[x.MQ40_60]]="NaN","",VALUE(Tabel1[[#This Row],[x.MQ40_60]])) -> 4001 | L80: 4581 | M80: =IF(Tabel1[[#This Row],[x.MQ60_80]]="NaN","",VALUE(Tabel1[[#This Row],[x.MQ60_80]])) -> 4581 | N80: 5981 | O80: =IF(Tabel1[[#This Row],[x.MQ80_100]]="NaN","",VALUE(Tabel1[[#This Row],[x.MQ80_100]])) -> 5981
A81: Alle | B81: Planteavl | C81: 4 | D81: =_xlfn.IFS(Tabel1[[#This Row],[FTO_jb]]="1","JB1&3",Tabel1[[#This Row],[FTO_jb]]="2","JB2&4",Tabel1[[#This Row],[FTO_jb]]="3","JB5&6",Tabel1[[#This Row],[FTO_jb]]="4","JB7&8",Tabel1[[#This Row],[FTO_jb]]="Alle",Tabel1[[#This Row],[FTO_jb]]) -> JB7&8 | E81: 102 | F81: 2269 | G81: =IF(Tabel1[[#This Row],[x.MQ00_20]]="NaN","",VALUE(Tabel1[[#This Row],[x.MQ00_20]])) -> 2269 | H81: 3504 | I81: =IF(Tabel1[[#This Row],[x.MQ20_40]]="NaN","",VALUE(Tabel1[[#This Row],[x.MQ20_40]])) -> 3504 | J81: 4305 | K81: =IF(Tabel1[[#This Row],[x.MQ40_60]]="NaN","",VALUE(Tabel1[[#This Row],[x.MQ40_60]])) -> 4305 | L81: 5459 | M81: =IF(Tabel1[[#This Row],[x.MQ60_80]]="NaN","",VALUE(Tabel1[[#This Row],[x.MQ60_80]])) -> 5459 | N81: 7336 | O81: =IF(Tabel1[[#This Row],[x.MQ80_100]]="NaN","",VALUE(Tabel1[[#This Row],[x.MQ80_100]])) -> 7336
A82: Alle | B82: Husdyrproduktion | C82: Alle | D82: =_xlfn.IFS(Tabel1[[#This Row],[FTO_jb]]="1","JB1&3",Tabel1[[#This Row],[FTO_jb]]="2","JB2&4",Tabel1[[#This Row],[FTO_jb]]="3","JB5&6",Tabel1[[#This Row],[FTO_jb]]="4","JB7&8",Tabel1[[#This Row],[FTO_jb]]="Alle",Tabel1[[#This Row],[FTO_jb]]) -> Alle | E82: 2248 | F82: 2199 | G82: =IF(Tabel1[[#This Row],[x.MQ00_20]]="NaN","",VALUE(Tabel1[[#This Row],[x.MQ00_20]])) -> 2199 | H82: 3377 | I82: =IF(Tabel1[[#This Row],[x.MQ20_40]]="NaN","",VALUE(Tabel1[[#This Row],[x.MQ20_40]])) -> 3377 | J82: 3935 | K82: =IF(Tabel1[[#This Row],[x.MQ40_60]]="NaN","",VALUE(Tabel1[[#This Row],[x.MQ40_60]])) -> 3935 | L82: 4535 | M82: =IF(Tabel1[[#This Row],[x.MQ60_80]]="NaN","",VALUE(Tabel1[[#This Row],[x.MQ60_80]])) -> 4535 | N82: 5889 | O82: =IF(Tabel1[[#This Row],[x.MQ80_100]]="NaN","",VALUE(Tabel1[[#This Row],[x.MQ80_100]])) -> 5889
A83: Alle | B83: Planteavl | C83: Alle | D83: =_xlfn.IFS(Tabel1[[#This Row],[FTO_jb]]="1","JB1&3",Tabel1[[#This Row],[FTO_jb]]="2","JB2&4",Tabel1[[#This Row],[FTO_jb]]="3","JB5&6",Tabel1[[#This Row],[FTO_jb]]="4","JB7&8",Tabel1[[#This Row],[FTO_jb]]="Alle",Tabel1[[#This Row],[FTO_jb]]) -> Alle | E83: 1030 | F83: 1732 | G83: =IF(Tabel1[[#This Row],[x.MQ00_20]]="NaN","",VALUE(Tabel1[[#This Row],[x.MQ00_20]])) -> 1732 | H83: 3126 | I83: =IF(Tabel1[[#This Row],[x.MQ20_40]]="NaN","",VALUE(Tabel1[[#This Row],[x.MQ20_40]])) -> 3126 | J83: 3812 | K83: =IF(Tabel1[[#This Row],[x.MQ40_60]]="NaN","",VALUE(Tabel1[[#This Row],[x.MQ40_60]])) -> 3812 | L83: 4452 | M83: =IF(Tabel1[[#This Row],[x.MQ60_80]]="NaN","",VALUE(Tabel1[[#This Row],[x.MQ60_80]])) -> 4452 | N83: 5978 | O83: =IF(Tabel1[[#This Row],[x.MQ80_100]]="NaN","",VALUE(Tabel1[[#This Row],[x.MQ80_100]])) -> 5978
A84: Alle | B84: Alle | C84: 1 | D84: =_xlfn.IFS(Tabel1[[#This Row],[FTO_jb]]="1","JB1&3",Tabel1[[#This Row],[FTO_jb]]="2","JB2&4",Tabel1[[#This Row],[FTO_jb]]="3","JB5&6",Tabel1[[#This Row],[FTO_jb]]="4","JB7&8",Tabel1[[#This Row],[FTO_jb]]="Alle",Tabel1[[#This Row],[FTO_jb]]) -> JB1&3 | E84: 1138 | F84: 1906 | G84: =IF(Tabel1[[#This Row],[x.MQ00_20]]="NaN","",VALUE(Tabel1[[#This Row],[x.MQ00_20]])) -> 1906 | H84: 3138 | I84: =IF(Tabel1[[#This Row],[x.MQ20_40]]="NaN","",VALUE(Tabel1[[#This Row],[x.MQ20_40]])) -> 3138 | J84: 3664 | K84: =IF(Tabel1[[#This Row],[x.MQ40_60]]="NaN","",VALUE(Tabel1[[#This Row],[x.MQ40_60]])) -> 3664 | L84: 4253 | M84: =IF(Tabel1[[#This Row],[x.MQ60_80]]="NaN","",VALUE(Tabel1[[#This Row],[x.MQ60_80]])) -> 4253 | N84: 5568 | O84: =IF(Tabel1[[#This Row],[x.MQ80_100]]="NaN","",VALUE(Tabel1[[#This Row],[x.MQ80_100]])) -> 5568
A85: Alle | B85: Alle | C85: 2 | D85: =_xlfn.IFS(Tabel1[[#This Row],[FTO_jb]]="1","JB1&3",Tabel1[[#This Row],[FTO_jb]]="2","JB2&4",Tabel1[[#This Row],[FTO_jb]]="3","JB5&6",Tabel1[[#This Row],[FTO_jb]]="4","JB7&8",Tabel1[[#This Row],[FTO_jb]]="Alle",Tabel1[[#This Row],[FTO_jb]]) -> JB2&4 | E85: 932 | F85: 1920 | G85: =IF(Tabel1[[#This Row],[x.MQ00_20]]="NaN","",VALUE(Tabel1[[#This Row],[x.MQ00_20]])) -> 1920 | H85: 3240 | I85: =IF(Tabel1[[#This Row],[x.MQ20_40]]="NaN","",VALUE(Tabel1[[#This Row],[x.MQ20_40]])) -> 3240 | J85: 3840 | K85: =IF(Tabel1[[#This Row],[x.MQ40_60]]="NaN","",VALUE(Tabel1[[#This Row],[x.MQ40_60]])) -> 3840 | L85: 4392 | M85: =IF(Tabel1[[#This Row],[x.MQ60_80]]="NaN","",VALUE(Tabel1[[#This Row],[x.MQ60_80]])) -> 4392 | N85: 5750 | O85: =IF(Tabel1[[#This Row],[x.MQ80_100]]="NaN","",VALUE(Tabel1[[#This Row],[x.MQ80_100]])) -> 5750
A86: Alle | B86: Alle | C86: 3 | D86: =_xlfn.IFS(Tabel1[[#This Row],[FTO_jb]]="1","JB1&3",Tabel1[[#This Row],[FTO_jb]]="2","JB2&4",Tabel1[[#This Row],[FTO_jb]]="3","JB5&6",Tabel1[[#This Row],[FTO_jb]]="4","JB7&8",Tabel1[[#This Row],[FTO_jb]]="Alle",Tabel1[[#This Row],[FTO_jb]]) -> JB5&6 | E86: 1003 | F86: 2301 | G86: =IF(Tabel1[[#This Row],[x.MQ00_20]]="NaN","",VALUE(Tabel1[[#This Row],[x.MQ00_20]])) -> 2301 | H86: 3600 | I86: =IF(Tabel1[[#This Row],[x.MQ20_40]]="NaN","",VALUE(Tabel1[[#This Row],[x.MQ20_40]])) -> 3600 | J86: 4196 | K86: =IF(Tabel1[[#This Row],[x.MQ40_60]]="NaN","",VALUE(Tabel1[[#This Row],[x.MQ40_60]])) -> 4196 | L86: 4788 | M86: =IF(Tabel1[[#This Row],[x.MQ60_80]]="NaN","",VALUE(Tabel1[[#This Row],[x.MQ60_80]])) -> 4788 | N86: 6123 | O86: =IF(Tabel1[[#This Row],[x.MQ80_100]]="NaN","",VALUE(Tabel1[[#This Row],[x.MQ80_100]])) -> 6123
A87: Alle | B87: Alle | C87: 4 | D87: =_xlfn.IFS(Tabel1[[#This Row],[FTO_jb]]="1","JB1&3",Tabel1[[#This Row],[FTO_jb]]="2","JB2&4",Tabel1[[#This Row],[FTO_jb]]="3","JB5&6",Tabel1[[#This Row],[FTO_jb]]="4","JB7&8",Tabel1[[#This Row],[FTO_jb]]="Alle",Tabel1[[#This Row],[FTO_jb]]) -> JB7&8 | E87: 205 | F87: 2338 | G87: =IF(Tabel1[[#This Row],[x.MQ00_20]]="NaN","",VALUE(Tabel1[[#This Row],[x.MQ00_20]])) -> 2338 | H87: 3484 | I87: =IF(Tabel1[[#This Row],[x.MQ20_40]]="NaN","",VALUE(Tabel1[[#This Row],[x.MQ20_40]])) -> 3484 | J87: 4190 | K87: =IF(Tabel1[[#This Row],[x.MQ40_60]]="NaN","",VALUE(Tabel1[[#This Row],[x.MQ40_60]])) -> 4190 | L87: 5016 | M87: =IF(Tabel1[[#This Row],[x.MQ60_80]]="NaN","",VALUE(Tabel1[[#This Row],[x.MQ60_80]])) -> 5016 | N87: 6918 | O87: =IF(Tabel1[[#This Row],[x.MQ80_100]]="NaN","",VALUE(Tabel1[[#This Row],[x.MQ80_100]])) -> 6918
